Workbook

Sheet ProjectInformation
A1: CPN DATA
A2: INFORMATION ADDED BY DESIGNER
A3: Section Engineer
A4: Design Team
A6: County
A7: Project Number
A8: English or Metric | B8: ENGLISH
A9: Revised
A10: Bridge Block
A11: File No.

Sheet PrintSheets
B94: FILE NO. | I94: =IF(ProjectInformation!$B$11<>"",ProjectInformation!$B$11,"") ->  | P94: =UPPER(ProjectInformation!B8) -> ENGLISH | W94: DESIGN TEAM | AF94: =IF(AND(ProjectInformation!$B$3<>"",ProjectInformation!$B$4<>"",ProjectInformation!$B$5<>""),ProjectInformation!$B$3&"\"&ProjectInformation!$B$4&"\"&ProjectInformation!$B$5,IF(AND(ProjectInformation!$B$3<>"",ProjectInformation!$B$4<>""),ProjectInformation!$B$3&"\"&ProjectInformation!$B$4,IF(ProjectInformation!$B$3<>"",ProjectInformation!$B$3,""))) ->  | BN94: =IF(ProjectInformation!$B$6<>"",ProjectInformation!$B$6,"") ->  | CX94: COUNTY | DD94: PROJECT NUMBER | DP94: =IF(ProjectInformation!$B$7<>"",ProjectInformation!$B$7,"") ->  | ET94: SHEET NUMBER | FJ94: =IF(FP94<>"","REVISED","") ->  | FP94: =IF(ProjectInformation!$B$9<>"",ProjectInformation!$B$9,"") -> 

Sheet PrintSheetTemplate (hidden)
B94: FILE NO. | I94: =IF(ProjectInformation!$B$11<>"",ProjectInformation!$B$11,"") ->  | P94: =UPPER(ProjectInformation!$B$8) -> ENGLISH | W94: DESIGN TEAM | AF94: =IF(AND(ProjectInformation!$B$3<>"",ProjectInformation!$B$4<>"",ProjectInformation!$B$5<>""),ProjectInformation!$B$3&"\"&ProjectInformation!$B$4&"\"&ProjectInformation!$B$5,IF(AND(ProjectInformation!$B$3<>"",ProjectInformation!$B$4<>""),ProjectInformation!$B$3&"\"&ProjectInformation!$B$4,IF(ProjectInformation!$B$3<>"",ProjectInformation!$B$3,""))) ->  | BN94: =IF(ProjectInformation!$B$6<>"",ProjectInformation!$B$6,"") ->  | CX94: COUNTY | DD94: PROJECT NUMBER | DP94: =IF(ProjectInformation!$B$7<>"",ProjectInformation!$B$7,"") ->  | ET94: SHEET NUMBER | FJ94: =IF(FP94<>"","REVISED","") ->  | FP94: =IF(ProjectInformation!$B$9<>"",ProjectInformation!$B$9,"") -> 

Sheet Note1 (hidden)
A1: SEE V SHEETS FOR ADDITIONAL BID ITEMS AND QUANTITIES

Sheet BridgeBlock (hidden)
A1: 2
C3: Design No. | J3: =IF(#REF!<>"",#REF!,"") -> 
C4: File No. | I4: =IF(#REF!<>"",#REF!,"") -> 

Sheet DE108_22
A1: TabTitle | B1: =C44 -> PAVEMENT MARKING LINE TYPES
A2: Number of Tab Columns | B2: 24 | BB2: Old 9001 | BC2: Line Types (See PM-110) | BG2: Marking Type | BH2: =L54 -> BCY4* | BI2: DCY4 | BJ2: NPY4** | BK2: BLW4 | BL2: ELW4 | BM2: ELY4 | BN2: SLW4 | BO2: SLW2 | BP2: CHW8 | BQ2: 0 | BR2: 0 | BS2: 0 | BT2: 0 | BU2: 0 | BV2: 0 | BX2: Direction of Travel
A3: DE Starter Row Number | B3: 57 | BB3: Detail Number | BC3: Key | BD3: Description | BE3: Factor | BG3: Waterborne/Solvent Paint | BX3: NB
A4: TabSheet Starter Row Number | B4: 15 | BB4: 2 | BC4: BCY4* | BD4: BCY4: Broken Centerline (Yellow) @ 0.25 | BE4: 0.25 | BG4: Highbuild Waterborne Paint | BX4: EB
A5: TabSheet Header Row Count | B5: 14 | BB5: 6 | BC5: BLW4 | BD5: BLW4: Broken Lane Line (White) @ 0.25 | BE5: 0.25 | BG5: Durable Paint | BX5: SB
A6: Top Header Cell | B6: AC15 | BB6: new | BC6: CBW6 | BD6: CBW6: Crosswalk Bar (White) @ 15.00 | BE6: 15 | BG6: Permanent Regular Tape | BX6: WB
A7: Bottom Header Cell | B7: AZ28 | BB7: 11 | BC7: CHW8 | BD7: CHW8: Channelizing Line (White) @ 2.00 | BE7: 2 | BG7: Permanent Preform Polymer Tape | BX7: BOTH
A8: DESheet Row Count | B8: 2 | BB8: 12 | BC8: CHY8 | BD8: CHY8: Channelizing Line (Yellow) @ 2.00 | BE8: 2 | BG8: Permanent Profiled Tape
A9: Fixed Empty Rows | B9: 2 | BB9: 14 | BC9: CLW6 | BD9: CLW6: Crosswalk Line (White) @ 3.00 | BE9: 3 | BG9: Permanent Intersection Tape
A10: Usable Empty Rows | B10: 0 | BB10: 3 | BC10: DCY4 | BD10: DCY4: Double Centerline (Yellow) @ 2.00 | BE10: 2 | BG10: Grooves Cut for Pavement Markings
A11: Total Rows Placed | B11: 2 | C11: xlLeft(1) | D11: xlRight(1) | E11: xlRight(1) | G11: xlCenter | H11: xlCenter | I11: xlCenter | J11: xlCenter | K11: xlCenter | L11: xlRight(1) | M11: xlRight(1) | N11: xlRight(1) | O11: xlRight(1) | P11: xlRight(1) | Q11: xlRight(1) | R11: xlRight(1) | S11: xlRight(1) | T11: xlRight(1) | U11: xlRight(1) | V11: xlRight(1) | W11: xlRight(1) | X11: xlRight(1) | Y11: xlRight(1) | Z11: xlRight(1) | AA11: xlLeft(1) | AC11: =C11 -> xlLeft(1) | AD11: xlRight(1) | AE11: xlRight(1) | AF11: =G11 -> xlCenter | AG11: xlCenter | AH11: xlCenter | AI11: xlCenter | AJ11: xlCenter | AK11: xlRight(1) | AL11: xlRight(1) | AM11: xlRight(1) | AN11: xlRight(1) | AO11: xlRight(1) | AP11: xlRight(1) | AQ11: xlRight(1) | AR11: xlRight(1) | AS11: xlRight(1) | AT11: xlRight(1) | AU11: xlRight(1) | AV11: =W11 -> xlRight(1) | AW11: xlRight(1) | AX11: xlRight(1) | AY11: xlRight(1) | AZ11: xlLeft(1) | BB11: 18 | BC11: DDY4 | BD11: DDY4: Double Dotted Line (Yellow) @ 0.67 | BE11: =2/3 -> 0.6666666667 | BG11: Wet Retroreflective Removable Tape
A12: Total Rows Needed | B12: =SUM(B8:B10) -> 4 | C12: General | D12: #+00.00 | E12: #+00.00 | G12: General | H12: General | I12: General | J12: General | K12: General | L12: 0.00 | M12: 0.00 | N12: 0.00 | O12: 0.00 | P12: 0.00 | Q12: 0.00 | R12: 0.00 | S12: 0.00 | T12: 0.00 | U12: 0.00 | V12: 0.00 | W12: 0.00 | X12: 0.00 | Y12: 0.00 | Z12: 0.00 | AA12: General | AC12: General | AD12: #+00.00 | AE12: #+00.00 | AF12: General | AG12: General | AH12: General | AI12: General | AJ12: General | AK12: 0.00 | AL12: 0.00 | AM12: 0.00 | AN12: 0.00 | AO12: 0.00 | AP12: 0.00 | AQ12: 0.00 | AR12: 0.00 | AS12: 0.00 | AT12: 0.00 | AU12: 0.00 | AV12: 0.00 | AW12: 0.00 | AX12: 0.00 | AY12: 0.00 | AZ12: General | BB12: 9 | BC12: DLW4 | BD12: DLW4: Dotted Line (White) @ 0.33 | BE12: =1/3 -> 0.3333333333 | BG12: Nonreflective, Preformed Removable Tape
A13: Last Tab DE Starter Row | B13: 57 | C13: =CELL("width",C13) -> 15 | D13: =CELL("width",D13) -> 16 | E13: =CELL("width",E13) -> 16 | G13: =CELL("width",G13) -> 10 | H13: 54 | I13: 4 | J13: 4 | K13: 4 | L13: 10 | M13: 10 | N13: 10 | O13: 10 | P13: 10 | Q13: 10 | R13: 10 | S13: 10 | T13: 10 | U13: 10 | V13: 10 | W13: 10 | X13: 10 | Y13: 10 | Z13: 10 | AA13: 34 | AC13: =CELL("width",AC13) -> 0 | AD13: 0 | AE13: 0 | AF13: 0 | AG13: 0 | AH13: 0 | AI13: 0 | AJ13: 0 | AK13: 0 | AL13: 0 | AM13: 0 | AN13: 0 | AO13: 0 | AP13: 0 | AQ13: 0 | AR13: 0 | AS13: 0 | AT13: 0 | AU13: 0 | AV13: 0 | AW13: 0 | AX13: 0 | AY13: 0 | AZ13: 0 | BB13: new | BC13: DLY4 | BD13: DLY4: Dotted Line (Yellow) @ 0.33 | BE13: =1/3 -> 0.3333333333 | BG13: Removal of Paint
A14: Last Tab TabSheet Starter Row | B14: 15 | C14: A | D14: B | E14: C | G14: D | H14: E | I14: F | J14: G | K14: H | L14: I | M14: J | N14: K | O14: L | P14: M | Q14: N | R14: O | S14: P | T14: Q | U14: R | V14: S | W14: T | X14: U | Y14: V | Z14: W | AA14: X | AC14: =LOWER(C14) -> a | AD14: =LOWER(D14) -> b | AE14: =LOWER(E14) -> c | AF14: =LOWER(G14) -> d | AG14: e | AH14: f | AI14: g | AJ14: h | AK14: i | AL14: j | AM14: k | AN14: l | AO14: m | AP14: n | AQ14: o | AR14: p | AS14: q | AT14: r | AU14: s | AV14: t | AW14: u | AX14: v | AY14: w | AZ14: x | BB14: 7 | BC14: ELW4 | BD14: ELW4: Edge Line Right (White) @ 1.00 | BE14: 1 | BG14: Removal of Permanent Tape
A15: Last Copy Starter Row | B15: 1 | F15: =BB2 -> Old 9001 | H15: =BC2 -> Line Types (See PM-110) | AC15: 108-22 | BB15: 8 | BC15: ELY4 | BD15: ELY4: Edge Line Left (Yellow) @ 1.00 | BE15: 1 | BG15: Removal of Removable Tape
A16: Tab Loop Number | B16: 2 | F16: Detail Number | G16: Key | H16: Description | I16: Factor | J16: 0 | AC16: =B17 -> 2013-04-16 | BB16: new | BC16: LDW8 | BD16: LDW8: Lane Drop (White) @ 0.50 | BE16: 0.5 | BG16: ="Factored Total: "&BG3 -> Factored Total: Waterborne/Solvent Paint | BH16: =SUMIF($H$57:$H$2001,$BG3,L$57:L$2001)*L$43 -> 0 | BI16: =SUMIF($H$57:$H$2001,$BG3,M$57:M$2001)*M$43 -> 0 | BJ16: =SUMIF($H$57:$H$2001,$BG3,N$57:N$2001)*N$43 -> 0 | BK16: =SUMIF($H$57:$H$2001,$BG3,O$57:O$2001)*O$43 -> 0 | BL16: =SUMIF($H$57:$H$2001,$BG3,P$57:P$2001)*P$43 -> 0 | BM16: =SUMIF($H$57:$H$2001,$BG3,Q$57:Q$2001)*Q$43 -> 0 | BN16: =SUMIF($H$57:$H$2001,$BG3,R$57:R$2001)*R$43 -> 0 | BO16: =SUMIF($H$57:$H$2001,$BG3,S$57:S$2001)*S$43 -> 0 | BP16: =SUMIF($H$57:$H$2001,$BG3,T$57:T$2001)*T$43 -> 0 | BQ16: =SUMIF($H$57:$H$2001,$BG3,U$57:U$2001)*U$43 -> 0 | BR16: =SUMIF($H$57:$H$2001,$BG3,V$57:V$2001)*V$43 -> 0 | BS16: =SUMIF($H$57:$H$2001,$BG3,W$57:W$2001)*W$43 -> 0 | BT16: =SUMIF($H$57:$H$2001,$BG3,X$57:X$2001)*X$43 -> 0 | BU16: =SUMIF($H$57:$H$2001,$BG3,Y$57:Y$2001)*Y$43 -> 0 | BV16: =SUMIF($H$57:$H$2001,$BG3,Z$57:Z$2001)*Z$43 -> 0
A17: Revision Date | B17: 2013-04-16 | F17: 2 | G17: BCY4* | H17: BCY4: Broken Centerline (Yellow) @ 0.25 | I17: 0.25 | J17: 0 | AC17: =C44 -> PAVEMENT MARKING LINE TYPES | BB17: new | BC17: MNY4*** | BD17: MNY4: Median Nose (Yellow) @ 1.00 | BE17: 1 | BG17: Factored Total: Highbuild Waterborne Paint | BH17: =SUMIF($H$57:$H$2001,$BG4,L$57:L$2001)*L$43 -> 0 | BI17: =SUMIF($H$57:$H$2001,$BG4,M$57:M$2001)*M$43 -> 0 | BJ17: =SUMIF($H$57:$H$2001,$BG4,N$57:N$2001)*N$43 -> 0 | BK17: =SUMIF($H$57:$H$2001,$BG4,O$57:O$2001)*O$43 -> 90.6236 | BL17: =SUMIF($H$57:$H$2001,$BG4,P$57:P$2001)*P$43 -> 175.5698 | BM17: =SUMIF($H$57:$H$2001,$BG4,Q$57:Q$2001)*Q$43 -> 186.9501 | BN17: =SUMIF($H$57:$H$2001,$BG4,R$57:R$2001)*R$43 -> 59.4994 | BO17: =SUMIF($H$57:$H$2001,$BG4,S$57:S$2001)*S$43 -> 8.7474 | BP17: =SUMIF($H$57:$H$2001,$BG4,T$57:T$2001)*T$43 -> 17.8252 | BQ17: =SUMIF($H$57:$H$2001,$BG4,U$57:U$2001)*U$43 -> 0 | BR17: =SUMIF($H$57:$H$2001,$BG4,V$57:V$2001)*V$43 -> 0 | BS17: =SUMIF($H$57:$H$2001,$BG4,W$57:W$2001)*W$43 -> 0 | BT17: =SUMIF($H$57:$H$2001,$BG4,X$57:X$2001)*X$43 -> 0 | BU17: =SUMIF($H$57:$H$2001,$BG4,Y$57:Y$2001)*Y$43 -> 0 | BV17: =SUMIF($H$57:$H$2001,$BG4,Z$57:Z$2001)*Z$43 -> 0
A18: Tabulation Width | B18: 4 | F18: 6 | G18: BLW4 | H18: BLW4: Broken Lane Line (White) @ 0.25 | I18: 0.25 | J18: 0 | BB18: 5 | BC18: NPY4** | BD18: NPY4: No Passing Zone Line (Yellow) @ 1.25 | BE18: 1.25 | BG18: Factored Total: Durable Paint | BH18: =SUMIF($H$57:$H$2001,$BG5,L$57:L$2001)*L$43 -> 0 | BI18: =SUMIF($H$57:$H$2001,$BG5,M$57:M$2001)*M$43 -> 0 | BJ18: =SUMIF($H$57:$H$2001,$BG5,N$57:N$2001)*N$43 -> 0 | BK18: =SUMIF($H$57:$H$2001,$BG5,O$57:O$2001)*O$43 -> 0 | BL18: =SUMIF($H$57:$H$2001,$BG5,P$57:P$2001)*P$43 -> 0 | BM18: =SUMIF($H$57:$H$2001,$BG5,Q$57:Q$2001)*Q$43 -> 0 | BN18: =SUMIF($H$57:$H$2001,$BG5,R$57:R$2001)*R$43 -> 0 | BO18: =SUMIF($H$57:$H$2001,$BG5,S$57:S$2001)*S$43 -> 0 | BP18: =SUMIF($H$57:$H$2001,$BG5,T$57:T$2001)*T$43 -> 0 | BQ18: =SUMIF($H$57:$H$2001,$BG5,U$57:U$2001)*U$43 -> 0 | BR18: =SUMIF($H$57:$H$2001,$BG5,V$57:V$2001)*V$43 -> 0 | BS18: =SUMIF($H$57:$H$2001,$BG5,W$57:W$2001)*W$43 -> 0 | BT18: =SUMIF($H$57:$H$2001,$BG5,X$57:X$2001)*X$43 -> 0 | BU18: =SUMIF($H$57:$H$2001,$BG5,Y$57:Y$2001)*Y$43 -> 0 | BV18: =SUMIF($H$57:$H$2001,$BG5,Z$57:Z$2001)*Z$43 -> 0
A19: Horizontal Grid Lines | B19: Yes | F19: new | G19: CBW6 | H19: CBW6: Crosswalk Bar (White) @ 15.00 | I19: 15 | J19: 0 | AC19: =C46 -> See PM-110 | BB19: new | BC19: RLW4 | BD19: RLW4: Ramp Edge Line Right (White) @ 1.00 | BE19: 1 | BG19: Factored Total: Permanent Regular Tape | BH19: =SUMIF($H$57:$H$2001,$BG6,L$57:L$2001)*L$43 -> 0 | BI19: =SUMIF($H$57:$H$2001,$BG6,M$57:M$2001)*M$43 -> 0 | BJ19: =SUMIF($H$57:$H$2001,$BG6,N$57:N$2001)*N$43 -> 0 | BK19: =SUMIF($H$57:$H$2001,$BG6,O$57:O$2001)*O$43 -> 0 | BL19: =SUMIF($H$57:$H$2001,$BG6,P$57:P$2001)*P$43 -> 0 | BM19: =SUMIF($H$57:$H$2001,$BG6,Q$57:Q$2001)*Q$43 -> 0 | BN19: =SUMIF($H$57:$H$2001,$BG6,R$57:R$2001)*R$43 -> 0 | BO19: =SUMIF($H$57:$H$2001,$BG6,S$57:S$2001)*S$43 -> 0 | BP19: =SUMIF($H$57:$H$2001,$BG6,T$57:T$2001)*T$43 -> 0 | BQ19: =SUMIF($H$57:$H$2001,$BG6,U$57:U$2001)*U$43 -> 0 | BR19: =SUMIF($H$57:$H$2001,$BG6,V$57:V$2001)*V$43 -> 0 | BS19: =SUMIF($H$57:$H$2001,$BG6,W$57:W$2001)*W$43 -> 0 | BT19: =SUMIF($H$57:$H$2001,$BG6,X$57:X$2001)*X$43 -> 0 | BU19: =SUMIF($H$57:$H$2001,$BG6,Y$57:Y$2001)*Y$43 -> 0 | BV19: =SUMIF($H$57:$H$2001,$BG6,Z$57:Z$2001)*Z$43 -> 0
F20: 11 | G20: CHW8 | H20: CHW8: Channelizing Line (White) @ 2.00 | I20: 2 | J20: 0 | AC20: =C47 -> *BCY4 - Place on the same side of the roadway to match existing markings near the project. | AH20: =I47 -> ***MNY4 - Factor of 1.00 as value includes number of 4-inch passes to cover median nose area. | BB20: new | BC20: RLY4 | BD20: RLY4: Ramp Edge Line Left (Yellow) @ 1.00 | BE20: 1 | BG20: Factored Total: Permanent Preform Polymer Tape | BH20: =SUMIF($H$57:$H$2001,$BG7,L$57:L$2001)*L$43 -> 0 | BI20: =SUMIF($H$57:$H$2001,$BG7,M$57:M$2001)*M$43 -> 0 | BJ20: =SUMIF($H$57:$H$2001,$BG7,N$57:N$2001)*N$43 -> 0 | BK20: =SUMIF($H$57:$H$2001,$BG7,O$57:O$2001)*O$43 -> 0 | BL20: =SUMIF($H$57:$H$2001,$BG7,P$57:P$2001)*P$43 -> 0 | BM20: =SUMIF($H$57:$H$2001,$BG7,Q$57:Q$2001)*Q$43 -> 0 | BN20: =SUMIF($H$57:$H$2001,$BG7,R$57:R$2001)*R$43 -> 0 | BO20: =SUMIF($H$57:$H$2001,$BG7,S$57:S$2001)*S$43 -> 0 | BP20: =SUMIF($H$57:$H$2001,$BG7,T$57:T$2001)*T$43 -> 0 | BQ20: =SUMIF($H$57:$H$2001,$BG7,U$57:U$2001)*U$43 -> 0 | BR20: =SUMIF($H$57:$H$2001,$BG7,V$57:V$2001)*V$43 -> 0 | BS20: =SUMIF($H$57:$H$2001,$BG7,W$57:W$2001)*W$43 -> 0 | BT20: =SUMIF($H$57:$H$2001,$BG7,X$57:X$2001)*X$43 -> 0 | BU20: =SUMIF($H$57:$H$2001,$BG7,Y$57:Y$2001)*Y$43 -> 0 | BV20: =SUMIF($H$57:$H$2001,$BG7,Z$57:Z$2001)*Z$43 -> 0
F21: 12 | G21: CHY8 | H21: CHY8: Channelizing Line (Yellow) @ 2.00 | I21: 2 | J21: 0 | AC21: =C48 -> **NPY4 - For estimating purposes only. No Passing Zone Lines will be located in the field. | BB21: 13 | BC21: SLW2 | BD21: SLW2: Stop Line (White) @ 6.00 | BE21: 6 | BG21: Factored Total: Permanent Profiled Tape | BH21: =SUMIF($H$57:$H$2001,$BG8,L$57:L$2001)*L$43 -> 0 | BI21: =SUMIF($H$57:$H$2001,$BG8,M$57:M$2001)*M$43 -> 0 | BJ21: =SUMIF($H$57:$H$2001,$BG8,N$57:N$2001)*N$43 -> 0 | BK21: =SUMIF($H$57:$H$2001,$BG8,O$57:O$2001)*O$43 -> 0 | BL21: =SUMIF($H$57:$H$2001,$BG8,P$57:P$2001)*P$43 -> 0 | BM21: =SUMIF($H$57:$H$2001,$BG8,Q$57:Q$2001)*Q$43 -> 0 | BN21: =SUMIF($H$57:$H$2001,$BG8,R$57:R$2001)*R$43 -> 0 | BO21: =SUMIF($H$57:$H$2001,$BG8,S$57:S$2001)*S$43 -> 0 | BP21: =SUMIF($H$57:$H$2001,$BG8,T$57:T$2001)*T$43 -> 0 | BQ21: =SUMIF($H$57:$H$2001,$BG8,U$57:U$2001)*U$43 -> 0 | BR21: =SUMIF($H$57:$H$2001,$BG8,V$57:V$2001)*V$43 -> 0 | BS21: =SUMIF($H$57:$H$2001,$BG8,W$57:W$2001)*W$43 -> 0 | BT21: =SUMIF($H$57:$H$2001,$BG8,X$57:X$2001)*X$43 -> 0 | BU21: =SUMIF($H$57:$H$2001,$BG8,Y$57:Y$2001)*Y$43 -> 0 | BV21: =SUMIF($H$57:$H$2001,$BG8,Z$57:Z$2001)*Z$43 -> 0
F22: 14 | G22: CLW6 | H22: CLW6: Crosswalk Line (White) @ 3.00 | I22: 3 | J22: 0 | AC22: =C50 -> BCY4: Broken Centerline (Yellow) @ 0.25 | AG22: =H50 -> DCY4: Double Centerline (Yellow) @ 2.00 | AL22: =L50 -> NPY4: No Passing Zone Line (Yellow) @ 1.25 | AR22: =R50 -> BLW4: Broken Lane Line (White) @ 0.25 | AX22: =X50 -> ELW4: Edge Line Right (White) @ 1.00 | BB22: 13 | BC22: SLW4 | BD22: SLW4: Solid Lane Line (White) @ 1.00 | BE22: 1 | BG22: Factored Total: Permanent Intersection Tape | BH22: =SUMIF($H$57:$H$2001,$BG9,L$57:L$2001)*L$43 -> 0 | BI22: =SUMIF($H$57:$H$2001,$BG9,M$57:M$2001)*M$43 -> 0 | BJ22: =SUMIF($H$57:$H$2001,$BG9,N$57:N$2001)*N$43 -> 0 | BK22: =SUMIF($H$57:$H$2001,$BG9,O$57:O$2001)*O$43 -> 0 | BL22: =SUMIF($H$57:$H$2001,$BG9,P$57:P$2001)*P$43 -> 0 | BM22: =SUMIF($H$57:$H$2001,$BG9,Q$57:Q$2001)*Q$43 -> 0 | BN22: =SUMIF($H$57:$H$2001,$BG9,R$57:R$2001)*R$43 -> 0 | BO22: =SUMIF($H$57:$H$2001,$BG9,S$57:S$2001)*S$43 -> 0 | BP22: =SUMIF($H$57:$H$2001,$BG9,T$57:T$2001)*T$43 -> 0 | BQ22: =SUMIF($H$57:$H$2001,$BG9,U$57:U$2001)*U$43 -> 0 | BR22: =SUMIF($H$57:$H$2001,$BG9,V$57:V$2001)*V$43 -> 0 | BS22: =SUMIF($H$57:$H$2001,$BG9,W$57:W$2001)*W$43 -> 0 | BT22: =SUMIF($H$57:$H$2001,$BG9,X$57:X$2001)*X$43 -> 0 | BU22: =SUMIF($H$57:$H$2001,$BG9,Y$57:Y$2001)*Y$43 -> 0 | BV22: =SUMIF($H$57:$H$2001,$BG9,Z$57:Z$2001)*Z$43 -> 0
F23: 3 | G23: DCY4 | H23: DCY4: Double Centerline (Yellow) @ 2.00 | I23: 2 | J23: 0 | AC23: =C51 -> ELY4: Edge Line Left (Yellow) @ 1.00 | AG23: =H51 -> SLW4: Solid Lane Line (White) @ 1.00 | AL23: =L51 -> SLW2: Stop Line (White) @ 6.00 | AR23: =R51 -> CHW8: Channelizing Line (White) @ 2.00 | AX23: =X51 ->  | BB23: new | BC23: SPW4 | BD23: SPW4: Sloped Curb 4" (White) @ 3.23 | BE23: 3.23 | BG23: Factored Total: Grooves Cut for Pavement Markings | BH23: =SUMIF($H$57:$H$2001,$BG10,L$57:L$2001)*L$43 -> 0 | BI23: =SUMIF($H$57:$H$2001,$BG10,M$57:M$2001)*M$43 -> 0 | BJ23: =SUMIF($H$57:$H$2001,$BG10,N$57:N$2001)*N$43 -> 0 | BK23: =SUMIF($H$57:$H$2001,$BG10,O$57:O$2001)*O$43 -> 0 | BL23: =SUMIF($H$57:$H$2001,$BG10,P$57:P$2001)*P$43 -> 0 | BM23: =SUMIF($H$57:$H$2001,$BG10,Q$57:Q$2001)*Q$43 -> 0 | BN23: =SUMIF($H$57:$H$2001,$BG10,R$57:R$2001)*R$43 -> 0 | BO23: =SUMIF($H$57:$H$2001,$BG10,S$57:S$2001)*S$43 -> 0 | BP23: =SUMIF($H$57:$H$2001,$BG10,T$57:T$2001)*T$43 -> 0 | BQ23: =SUMIF($H$57:$H$2001,$BG10,U$57:U$2001)*U$43 -> 0 | BR23: =SUMIF($H$57:$H$2001,$BG10,V$57:V$2001)*V$43 -> 0 | BS23: =SUMIF($H$57:$H$2001,$BG10,W$57:W$2001)*W$43 -> 0 | BT23: =SUMIF($H$57:$H$2001,$BG10,X$57:X$2001)*X$43 -> 0 | BU23: =SUMIF($H$57:$H$2001,$BG10,Y$57:Y$2001)*Y$43 -> 0 | BV23: =SUMIF($H$57:$H$2001,$BG10,Z$57:Z$2001)*Z$43 -> 0
F24: 18 | G24: DDY4 | H24: DDY4: Double Dotted Line (Yellow) @ 0.67 | I24: 0.6666666667 | J24: 0 | AC24: =C52 ->  | AG24: =H52 ->  | AL24: =L52 ->  | AR24: =R52 ->  | AX24: =X52 ->  | BB24: 16B | BC24: SPW6 | BD24: SPW6: Sloped Curb 6" (White) @ 3.40 | BE24: 3.4 | BG24: Factored Total: Wet Retroreflective Removable Tape | BH24: =SUMIF($H$57:$H$2001,$BG11,L$57:L$2001)*L$43 -> 0 | BI24: =SUMIF($H$57:$H$2001,$BG11,M$57:M$2001)*M$43 -> 0 | BJ24: =SUMIF($H$57:$H$2001,$BG11,N$57:N$2001)*N$43 -> 0 | BK24: =SUMIF($H$57:$H$2001,$BG11,O$57:O$2001)*O$43 -> 0 | BL24: =SUMIF($H$57:$H$2001,$BG11,P$57:P$2001)*P$43 -> 0 | BM24: =SUMIF($H$57:$H$2001,$BG11,Q$57:Q$2001)*Q$43 -> 0 | BN24: =SUMIF($H$57:$H$2001,$BG11,R$57:R$2001)*R$43 -> 0 | BO24: =SUMIF($H$57:$H$2001,$BG11,S$57:S$2001)*S$43 -> 0 | BP24: =SUMIF($H$57:$H$2001,$BG11,T$57:T$2001)*T$43 -> 0 | BQ24: =SUMIF($H$57:$H$2001,$BG11,U$57:U$2001)*U$43 -> 0 | BR24: =SUMIF($H$57:$H$2001,$BG11,V$57:V$2001)*V$43 -> 0 | BS24: =SUMIF($H$57:$H$2001,$BG11,W$57:W$2001)*W$43 -> 0 | BT24: =SUMIF($H$57:$H$2001,$BG11,X$57:X$2001)*X$43 -> 0 | BU24: =SUMIF($H$57:$H$2001,$BG11,Y$57:Y$2001)*Y$43 -> 0 | BV24: =SUMIF($H$57:$H$2001,$BG11,Z$57:Z$2001)*Z$43 -> 0
F25: 9 | G25: DLW4 | H25: DLW4: Dotted Line (White) @ 0.33 | I25: 0.3333333333 | J25: 0 | AC25: =C53 -> Location | AK25: =L53 -> Length by Line Type (Unfactored) | AZ25: =AA53 -> Remarks | BB25: new | BC25: SPY4 | BD25: SPY4: Sloped Curb 4" (Yellow) @ 3.23 | BE25: 3.23 | BG25: Factored Total: Nonreflective, Preformed Removable Tape | BH25: =SUMIF($H$57:$H$2001,$BG12,L$57:L$2001)*L$43 -> 0 | BI25: =SUMIF($H$57:$H$2001,$BG12,M$57:M$2001)*M$43 -> 0 | BJ25: =SUMIF($H$57:$H$2001,$BG12,N$57:N$2001)*N$43 -> 0 | BK25: =SUMIF($H$57:$H$2001,$BG12,O$57:O$2001)*O$43 -> 0 | BL25: =SUMIF($H$57:$H$2001,$BG12,P$57:P$2001)*P$43 -> 0 | BM25: =SUMIF($H$57:$H$2001,$BG12,Q$57:Q$2001)*Q$43 -> 0 | BN25: =SUMIF($H$57:$H$2001,$BG12,R$57:R$2001)*R$43 -> 0 | BO25: =SUMIF($H$57:$H$2001,$BG12,S$57:S$2001)*S$43 -> 0 | BP25: =SUMIF($H$57:$H$2001,$BG12,T$57:T$2001)*T$43 -> 0 | BQ25: =SUMIF($H$57:$H$2001,$BG12,U$57:U$2001)*U$43 -> 0 | BR25: =SUMIF($H$57:$H$2001,$BG12,V$57:V$2001)*V$43 -> 0 | BS25: =SUMIF($H$57:$H$2001,$BG12,W$57:W$2001)*W$43 -> 0 | BT25: =SUMIF($H$57:$H$2001,$BG12,X$57:X$2001)*X$43 -> 0 | BU25: =SUMIF($H$57:$H$2001,$BG12,Y$57:Y$2001)*Y$43 -> 0 | BV25: =SUMIF($H$57:$H$2001,$BG12,Z$57:Z$2001)*Z$43 -> 0
F26: new | G26: DLY4 | H26: DLY4: Dotted Line (Yellow) @ 0.33 | I26: 0.3333333333 | J26: 0 | AC26: =C54 -> Road ID | AD26: =D54 -> Station to Station | AF26: =G54 -> Dir. of Travel | AG26: =H54 -> Marking Type | AH26: =I54 -> Side | AK26: =IF(L54<>"",L54,"") -> BCY4* | AL26: DCY4 | AM26: NPY4** | AN26: BLW4 | AO26: ELW4 | AP26: ELY4 | AQ26: SLW4 | AR26: SLW2 | AS26: CHW8 | BB26: 15B | BC26: SPY6 | BD26: SPY6: Sloped Curb 6" (Yellow) @ 3.40 | BE26: 3.4 | BG26: Factored Total: Removal of Paint | BH26: =SUMIF($H$57:$H$2001,$BG13,L$57:L$2001)*L$43 -> 0 | BI26: =SUMIF($H$57:$H$2001,$BG13,M$57:M$2001)*M$43 -> 0 | BJ26: =SUMIF($H$57:$H$2001,$BG13,N$57:N$2001)*N$43 -> 0 | BK26: =SUMIF($H$57:$H$2001,$BG13,O$57:O$2001)*O$43 -> 0 | BL26: =SUMIF($H$57:$H$2001,$BG13,P$57:P$2001)*P$43 -> 0 | BM26: =SUMIF($H$57:$H$2001,$BG13,Q$57:Q$2001)*Q$43 -> 0 | BN26: =SUMIF($H$57:$H$2001,$BG13,R$57:R$2001)*R$43 -> 0 | BO26: =SUMIF($H$57:$H$2001,$BG13,S$57:S$2001)*S$43 -> 0 | BP26: =SUMIF($H$57:$H$2001,$BG13,T$57:T$2001)*T$43 -> 0 | BQ26: =SUMIF($H$57:$H$2001,$BG13,U$57:U$2001)*U$43 -> 0 | BR26: =SUMIF($H$57:$H$2001,$BG13,V$57:V$2001)*V$43 -> 0 | BS26: =SUMIF($H$57:$H$2001,$BG13,W$57:W$2001)*W$43 -> 0 | BT26: =SUMIF($H$57:$H$2001,$BG13,X$57:X$2001)*X$43 -> 0 | BU26: =SUMIF($H$57:$H$2001,$BG13,Y$57:Y$2001)*Y$43 -> 0 | BV26: =SUMIF($H$57:$H$2001,$BG13,Z$57:Z$2001)*Z$43 -> 0
F27: 7 | G27: ELW4 | H27: ELW4: Edge Line Right (White) @ 1.00 | I27: 1 | J27: 0 | BB27: 16A | BC27: STW6 | BD27: STW6: Standard Curb 6" (White) @ 3.03 | BE27: 3.03 | BG27: Factored Total: Removal of Permanent Tape | BH27: =SUMIF($H$57:$H$2001,$BG14,L$57:L$2001)*L$43 -> 0 | BI27: =SUMIF($H$57:$H$2001,$BG14,M$57:M$2001)*M$43 -> 0 | BJ27: =SUMIF($H$57:$H$2001,$BG14,N$57:N$2001)*N$43 -> 0 | BK27: =SUMIF($H$57:$H$2001,$BG14,O$57:O$2001)*O$43 -> 0 | BL27: =SUMIF($H$57:$H$2001,$BG14,P$57:P$2001)*P$43 -> 0 | BM27: =SUMIF($H$57:$H$2001,$BG14,Q$57:Q$2001)*Q$43 -> 0 | BN27: =SUMIF($H$57:$H$2001,$BG14,R$57:R$2001)*R$43 -> 0 | BO27: =SUMIF($H$57:$H$2001,$BG14,S$57:S$2001)*S$43 -> 0 | BP27: =SUMIF($H$57:$H$2001,$BG14,T$57:T$2001)*T$43 -> 0 | BQ27: =SUMIF($H$57:$H$2001,$BG14,U$57:U$2001)*U$43 -> 0 | BR27: =SUMIF($H$57:$H$2001,$BG14,V$57:V$2001)*V$43 -> 0 | BS27: =SUMIF($H$57:$H$2001,$BG14,W$57:W$2001)*W$43 -> 0 | BT27: =SUMIF($H$57:$H$2001,$BG14,X$57:X$2001)*X$43 -> 0 | BU27: =SUMIF($H$57:$H$2001,$BG14,Y$57:Y$2001)*Y$43 -> 0 | BV27: =SUMIF($H$57:$H$2001,$BG14,Z$57:Z$2001)*Z$43 -> 0
F28: 8 | G28: ELY4 | H28: ELY4: Edge Line Left (Yellow) @ 1.00 | I28: 1 | J28: 0 | AH28: =I56 -> L | AI28: C | AJ28: R | AK28: STA | AL28: STA | AM28: STA | AN28: STA | AO28: STA | AP28: STA | AQ28: STA | AR28: STA | AS28: STA | AT28: STA | AU28: STA | AV28: STA | AW28: STA | AX28: STA | AY28: STA | BB28: 15A | BC28: STY6 | BD28: STY6: Standard Curb 6" (Yellow) @ 3.03 | BE28: 3.03 | BG28: Factored Total: Removal of Removable Tape | BH28: =SUMIF($H$57:$H$2001,$BG15,L$57:L$2001)*L$43 -> 0 | BI28: =SUMIF($H$57:$H$2001,$BG15,M$57:M$2001)*M$43 -> 0 | BJ28: =SUMIF($H$57:$H$2001,$BG15,N$57:N$2001)*N$43 -> 0 | BK28: =SUMIF($H$57:$H$2001,$BG15,O$57:O$2001)*O$43 -> 0 | BL28: =SUMIF($H$57:$H$2001,$BG15,P$57:P$2001)*P$43 -> 0 | BM28: =SUMIF($H$57:$H$2001,$BG15,Q$57:Q$2001)*Q$43 -> 0 | BN28: =SUMIF($H$57:$H$2001,$BG15,R$57:R$2001)*R$43 -> 0 | BO28: =SUMIF($H$57:$H$2001,$BG15,S$57:S$2001)*S$43 -> 0 | BP28: =SUMIF($H$57:$H$2001,$BG15,T$57:T$2001)*T$43 -> 0 | BQ28: =SUMIF($H$57:$H$2001,$BG15,U$57:U$2001)*U$43 -> 0 | BR28: =SUMIF($H$57:$H$2001,$BG15,V$57:V$2001)*V$43 -> 0 | BS28: =SUMIF($H$57:$H$2001,$BG15,W$57:W$2001)*W$43 -> 0 | BT28: =SUMIF($H$57:$H$2001,$BG15,X$57:X$2001)*X$43 -> 0 | BU28: =SUMIF($H$57:$H$2001,$BG15,Y$57:Y$2001)*Y$43 -> 0 | BV28: =SUMIF($H$57:$H$2001,$BG15,Z$57:Z$2001)*Z$43 -> 0
F29: new | G29: LDW8 | H29: LDW8: Lane Drop (White) @ 0.50 | I29: 0.5 | J29: 0 | BB29: 17 | BC29: YLW2 | BD29: YLW2: Yield Line (White) @ 1.71 | BE29: 1.71 | BG29: Bid Quantity: Painted Pavement Markings, Waterborne or Solvent-Based | BH29: =SUMIF(BH16:BV16,">0",BH16:BV16) -> 0
F30: new | G30: MNY4*** | H30: MNY4: Median Nose (Yellow) @ 1.00 | I30: 1 | J30: 0 | BG30: Bid Quantity: Painted Pavement Markings, Highbuild Waterborne | BH30: 539.2155
F31: 5 | G31: NPY4** | H31: NPY4: No Passing Zone Line (Yellow) @ 1.25 | I31: 1.25 | J31: 0 | BG31: Bid Quantity: Painted Pavement Markings, Durable | BH31: 0
F32: new | G32: RLW4 | H32: RLW4: Ramp Edge Line Right (White) @ 1.00 | I32: 1 | J32: 0 | BG32: Bid Quantity: Permanent Tape Markings, Regular Marking Tape | BH32: 0
F33: new | G33: RLY4 | H33: RLY4: Ramp Edge Line Left (Yellow) @ 1.00 | I33: 1 | J33: 0 | BG33: Bid Quantity: Permanent Tape Markings, Preformed Polymer Marking Material | BH33: 0
F34: 13 | G34: SLW2 | H34: SLW2: Stop Line (White) @ 6.00 | I34: 6 | J34: 0 | BG34: Bid Quantity: Permanent Tape Markings, Profiled Pavement Marking Tape | BH34: 0
F35: 13 | G35: SLW4 | H35: SLW4: Solid Lane Line (White) @ 1.00 | I35: 1 | J35: 0 | BG35: Bid Quantity: Permanent Tape Markings, Intersection Marking Tape | BH35: 0
F36: new | G36: SPW4 | H36: SPW4: Sloped Curb 4" (White) @ 3.23 | I36: 3.23 | J36: 0 | BG36: Bid Quantity: Grooves Cut for Pavement Markings | BH36: 0
F37: 16B | G37: SPW6 | H37: SPW6: Sloped Curb 6" (White) @ 3.40 | I37: 3.4 | J37: 0 | BG37: Bid Quantity: Wet Retroreflective Removable Tape Markings | BH37: 0
F38: new | G38: SPY4 | H38: SPY4: Sloped Curb 4" (Yellow) @ 3.23 | I38: 3.23 | J38: 0 | BG38: Bid Quantity: Removable, Nonreflective, Preformed Tape | BH38: 0
F39: 15B | G39: SPY6 | H39: SPY6: Sloped Curb 6" (Yellow) @ 3.40 | I39: 3.4 | J39: 0 | BG39: Bid Quantity: Pavement Markings Removed | BH39: =SUMIF(BH26:BV26,">0",BH26:BV26)+SUMIF(BH27:BV27,">0",BH27:BV27) -> 0
F40: 16A | G40: STW6 | H40: STW6: Standard Curb 6" (White) @ 3.03 | I40: 3.03 | J40: 0 | BG40: Incidental Removal of Removable Tape | BH40: =SUMIF(BH28:BV28,">0",BH28:BV28) -> 0
F41: 15A | G41: STY6 | H41: STY6: Standard Curb 6" (Yellow) @ 3.03 | I41: 3.03 | J41: 0
F42: 17 | G42: YLW2 | H42: YLW2: Yield Line (White) @ 1.71 | I42: 1.71 | J42: 0
K43: Factors: | L43: =IF(L$54<>"",VLOOKUP(L$54,$BC$4:$BE$29,3,FALSE),0) -> 0.25 | M43: 2 | N43: 1.25 | O43: 0.25 | P43: 1 | Q43: 1 | R43: 1 | S43: 6 | T43: 2 | U43: 0 | V43: 0 | W43: 0 | X43: 0 | Y43: 0 | Z43: 0
C44: PAVEMENT MARKING LINE TYPES
C46: See PM-110
C47: *BCY4 - Place on the same side of the roadway to match existing markings near the project. | I47: ***MNY4 - Factor of 1.00 as value includes number of 4-inch passes to cover median nose area.
C48: **NPY4 - For estimating purposes only. No Passing Zone Lines will be located in the field.
C49: ="This Data Entry Sheet fills Tab "&AC15&" effective "&TEXT(B17,"mm-dd-yy") -> This Data Entry Sheet fills Tab 108-22 effective 04-16-13
C50: =IF(L54<>"",VLOOKUP(L54,BC4:BE29,2,FALSE),"") -> BCY4: Broken Centerline (Yellow) @ 0.25 | H50: =IF(M54<>"",VLOOKUP(M54,BC4:BE29,2,FALSE),"") -> DCY4: Double Centerline (Yellow) @ 2.00 | L50: =IF(N54<>"",VLOOKUP(N54,BC4:BE29,2,FALSE),"") -> NPY4: No Passing Zone Line (Yellow) @ 1.25 | R50: =IF(O54<>"",VLOOKUP(O54,BC4:BE29,2,FALSE),"") -> BLW4: Broken Lane Line (White) @ 0.25 | X50: =IF(P54<>"",VLOOKUP(P54,BC4:BE29,2,FALSE),"") -> ELW4: Edge Line Right (White) @ 1.00
C51: =IF(Q54<>"",VLOOKUP(Q54,BC4:BE29,2,FALSE),"") -> ELY4: Edge Line Left (Yellow) @ 1.00 | H51: =IF(R54<>"",VLOOKUP(R54,BC4:BE29,2,FALSE),"") -> SLW4: Solid Lane Line (White) @ 1.00 | L51: =IF(S54<>"",VLOOKUP(S54,BC4:BE29,2,FALSE),"") -> SLW2: Stop Line (White) @ 6.00 | R51: =IF(T54<>"",VLOOKUP(T54,BC4:BE29,2,FALSE),"") -> CHW8: Channelizing Line (White) @ 2.00 | X51: =IF(U54<>"",VLOOKUP(U54,BC4:BE29,2,FALSE),"") -> 
C52: =IF(V54<>"",VLOOKUP(V54,BC4:BE29,2,FALSE),"") ->  | H52: =IF(W54<>"",VLOOKUP(W54,BC4:BE29,2,FALSE),"") ->  | L52: =IF(X54<>"",VLOOKUP(X54,BC4:BE29,2,FALSE),"") ->  | R52: =IF(Y54<>"",VLOOKUP(Y54,BC4:BE29,2,FALSE),"") ->  | X52: =IF(Z54<>"",VLOOKUP(Z54,BC4:BE29,2,FALSE),"") -> 
C53: Location | L53: Length by Line Type (Unfactored) | AA53: Remarks
C54: Road ID | D54: Station to Station | F54: Length (STA) | G54: Dir. of Travel | H54: Marking Type | I54: Side | L54: BCY4* | M54: DCY4 | N54: NPY4** | O54: BLW4 | P54: ELW4 | Q54: ELY4 | R54: SLW4 | S54: SLW2 | T54: CHW8
I56: L | J56: C | K56: R | L56: STA | M56: STA | N56: STA | O56: STA | P56: STA | Q56: STA | R56: STA | S56: STA | T56: STA | U56: STA | V56: STA | W56: STA | X56: STA | Y56: STA | Z56: STA
F57: =(ABS(E57-D57))/100 -> 0
C58: Iowa 141 | D58: 4596.81 | E58: 5218 | F58: 6.2119 | G58: NB | H58: Highbuild Waterborne Paint | K58: X | P58: =F58 -> 6.2119 | AA58: Along Alignment SUR141A
C59: Iowa 141 | D59: 4776.81 | E59: 5218 | F59: 4.4119 | G59: NB | H59: Highbuild Waterborne Paint | K59: X | R59: =F59 -> 4.4119 | AA59: Along Alignment SUR141A
C60: Iowa 141 | D60: 4596.81 | E60: 5218 | F60: 6.2119 | G60: NB | H60: Highbuild Waterborne Paint | J60: X | O60: =F60 -> 6.2119 | AA60: Along Alignment SUR141A
C61: Iowa 141 | D61: 5217 | E61: 5219 | F61: 0.02 | G61: NB | H61: Highbuild Waterborne Paint | J61: X | S61: =F61 -> 0.02 | AA61: Along Alignment SUR141A
C62: Iowa 141 | D62: 5217 | E62: 5219 | F62: =(ABS(E62-D62))/100 -> 0.02 | G62: NB | H62: Highbuild Waterborne Paint | J62: X | S62: =F62 -> 0.02 | AA62: Along Alignment SUR141A
C63: Iowa 141 | D63: 5217 | E63: 5219 | F63: 0.02 | G63: NB | H63: Highbuild Waterborne Paint | J63: X | S63: 0.02 | AA63: Along Alignment SUR141A
C64: Iowa 141 | D64: 5217 | E64: 5219 | F64: 0.02 | G64: NB | H64: Highbuild Waterborne Paint | J64: X | S64: 0.02 | AA64: Along Alignment SUR141A
C65: Iowa 141 | D65: 5217 | E65: 5219 | F65: 0.02 | G65: NB | H65: Highbuild Waterborne Paint | J65: X | S65: 0.02 | AA65: Along Alignment SUR141A
C66: Iowa 141 | D66: 5217 | E66: 5219 | F66: 0.02 | G66: NB | H66: Highbuild Waterborne Paint | J66: X | S66: 0.02 | AA66: Along Alignment SUR141A
C67: Iowa 141 | D67: 5217 | E67: 5219.33 | F67: =(ABS(E67-D67))/100 -> 0.0233 | G67: NB | H67: Highbuild Waterborne Paint | J67: X | S67: =F67 -> 0.0233 | AA67: Along Alignment SUR141A
C68: Iowa 141 | D68: 5326 | E68: 5328 | F68: =(ABS(E68-D68))/100 -> 0.02 | G68: SB | H68: Highbuild Waterborne Paint | J68: X | S68: =F68 -> 0.02 | AA68: Along Alignment SUR141A
C69: Iowa 141 | D69: 5326 | E69: 5328 | F69: =(ABS(E69-D69))/100 -> 0.02 | G69: SB | H69: Highbuild Waterborne Paint | J69: X | S69: =F69 -> 0.02 | AA69: Along Alignment SUR141A
C70: Iowa 141 | D70: 5326 | E70: 5328 | F70: 0.02 | G70: SB | H70: Highbuild Waterborne Paint | J70: X | S70: 0.02 | AA70: Along Alignment SUR141A
C71: Iowa 141 | D71: 5326 | E71: 5328 | F71: 0.02 | G71: SB | H71: Highbuild Waterborne Paint | J71: X | S71: 0.02 | AA71: Along Alignment SUR141A
C72: Iowa 141 | D72: 5326 | E72: 5328 | F72: 0.02 | G72: SB | H72: Highbuild Waterborne Paint | J72: X | S72: 0.02 | AA72: Along Alignment SUR141A
C73: Iowa 141 | D73: 5326 | E73: 5328 | F73: 0.02 | G73: SB | H73: Highbuild Waterborne Paint | J73: X | S73: 0.02 | AA73: Along Alignment SUR141A
C74: Iowa 141 | D74: 5326 | E74: 5329.16 | F74: 0.0316 | G74: SB | H74: Highbuild Waterborne Paint | J74: X | S74: 0.0316 | AA74: Along Alignment SUR141A
C75: Iowa 141 | D75: 5580.1 | E75: 6450.62 | F75: 8.7052 | G75: NB | H75: Highbuild Waterborne Paint | K75: X | P75: =F75 -> 8.7052 | AA75: Along Alignment SUR141A
C76: Iowa 141 | D76: 5580.1 | E76: 6450.62 | F76: 8.7052 | G76: NB | H76: Highbuild Waterborne Paint | J76: X | O76: =F76 -> 8.7052 | AA76: Along Alignment SUR141A
C77: Iowa 141 | D77: 6378.03 | E77: 6450.62 | F77: 0.7259 | G77: NB | H77: Highbuild Waterborne Paint | I77: X | R77: =F77 -> 0.7259 | AA77: Along Alignment SUR141A
C78: Iowa 141 | D78: 5580.1 | E78: 6450.62 | F78: =(ABS(E78-D78))/100 -> 8.7052 | G78: NB | H78: Highbuild Waterborne Paint | J78: X | O78: =F78 -> 8.7052 | AA78: Along Alignment SUR141A
C79: Iowa 141 | D79: 5318.88 | E79: 6450.62 | F79: 11.3174 | G79: NB | H79: Highbuild Waterborne Paint | I79: X | Q79: =F79 -> 11.3174 | AA79: Along Alignment SUR141A
C80: Iowa 141 | D80: 5802.67 | E80: 6438.99 | F80: =(ABS(E80-D80))/100 -> 6.3632 | G80: SB | H80: Highbuild Waterborne Paint | I80: X | Q80: =F80 -> 6.3632 | AA80: Along Alignment SUR141A
C81: Iowa 141 | D81: 5813.25 | E81: 6450.62 | F81: 6.3737 | G81: SB | H81: Highbuild Waterborne Paint | J81: X | O81: =F81 -> 6.3737 | AA81: Along Alignment SUR141A
C82: Iowa 141 | D82: 6052.82 | E82: 6450.62 | F82: =(ABS(E82-D82))/100 -> 3.978 | G82: SB | H82: Highbuild Waterborne Paint | J82: X | O82: =F82 -> 3.978 | AA82: Along Alignment SUR141A
C83: Iowa 141 | D83: 5927.41 | E83: 6450.62 | F83: 5.2321 | G83: SB | H83: Highbuild Waterborne Paint | K83: X | P83: =F83 -> 5.2321 | AA83: Along Alignment SUR141A
C84: Iowa 141 | D84: 6450.72 | E84: 7824.76 | F84: 13.7404 | G84: NB | H84: Highbuild Waterborne Paint | K84: X | P84: =F84 -> 13.7404 | AA84: Along Alignment SUR141B
C85: Iowa 141 | D85: 6450.72 | E85: 10468 | F85: 40.1728 | G85: NB | H85: Highbuild Waterborne Paint | J85: X | O85: =F85 -> 40.1728 | AA85: Along Alignment SUR141B
C86: Iowa 141 | D86: 6450.72 | E86: 10468 | F86: =(ABS(E86-D86))/100 -> 40.1728 | G86: NB | H86: Highbuild Waterborne Paint | J86: X | O86: =F86 -> 40.1728 | AA86: Along Alignment SUR141B
C87: Iowa 141 | D87: 6450.72 | E87: 6555.3 | F87: 1.0458 | G87: NB | H87: Highbuild Waterborne Paint | I87: X | R87: =F87 -> 1.0458 | AA87: Along Alignment SUR141B
C88: Iowa 141 | D88: 6450.72 | E88: 6535 | F88: 0.8428 | G88: NB | H88: Highbuild Waterborne Paint | I88: X | Q88: =F88 -> 0.8428 | AA88: Along Alignment SUR141B
C89: Iowa 141 | D89: 6718.09 | E89: 7824 | F89: =(ABS(E89-D89))/100 -> 11.0591 | G89: NB | H89: Highbuild Waterborne Paint | I89: X | Q89: =F89 -> 11.0591 | AA89: Along Alignment SUR141B
C90: Iowa 141 | D90: 7254 | E90: 7824.76 | F90: 5.7076 | G90: NB | H90: Highbuild Waterborne Paint | I90: X | R90: =F90 -> 5.7076 | AA90: Along Alignment SUR141B
C91: Iowa 141 | D91: 7968.42 | E91: 10340.79 | F91: =(ABS(E91-D91))/100 -> 23.7237 | G91: NB | H91: Highbuild Waterborne Paint | I91: X | Q91: =F91 -> 23.7237 | AA91: Along Alignment SUR141B
C92: Iowa 141 | D92: 9985.83 | E92: 10468 | F92: 4.8217 | G92: NB | H92: Highbuild Waterborne Paint | I92: X | R92: =F92 -> 4.8217 | AA92: Along Alignment SUR141B
C93: Iowa 141 | D93: 8039.65 | E93: 10415.22 | F93: 23.7557 | G93: NB | H93: Highbuild Waterborne Paint | K93: X | P93: =F93 -> 23.7557 | AA93: Along Alignment SUR141B
C94: Iowa 141 | D94: 10065.22 | E94: 10468 | F94: =(ABS(E94-D94))/100 -> 4.0278 | G94: NB | H94: Highbuild Waterborne Paint | K94: X | R94: =F94 -> 4.0278 | AA94: Along Alignment SUR141B
C95: Iowa 141 | D95: 10140.87 | E95: 10468 | F95: =(ABS(E95-D95))/100 -> 3.2713 | G95: NB | H95: Highbuild Waterborne Paint | I95: X | R95: =F95 -> 3.2713 | AA95: Along Alignment SUR141B
C96: Iowa 141 | D96: 6655.16 | E96: 7806.34 | F96: 11.5118 | G96: SB | H96: Highbuild Waterborne Paint | I96: X | Q96: =F96 -> 11.5118 | AA96: Along Alignment SUR141B
C97: Iowa 141 | D97: 7970.33 | E97: 10394.37 | F97: =(ABS(E97-D97))/100 -> 24.2404 | G97: SB | H97: Highbuild Waterborne Paint | I97: X | Q97: =F97 -> 24.2404 | AA97: Along Alignment SUR141B
C98: Iowa 141 | D98: 6450.72 | E98: 10468 | F98: 40.1728 | G98: SB | H98: Highbuild Waterborne Paint | J98: X | O98: =F98 -> 40.1728 | AA98: Along Alignment SUR141B
C99: Iowa 141 | D99: 6450.72 | E99: 10468 | F99: =(ABS(E99-D99))/100 -> 40.1728 | G99: SB | H99: Highbuild Waterborne Paint | J99: X | O99: =F99 -> 40.1728 | AA99: Along Alignment SUR141B
C100: Iowa 141 | D100: 7970.33 | E100: 8284.96 | F100: 3.1463 | G100: SB | H100: Highbuild Waterborne Paint | I100: X | R100: =F100 -> 3.1463 | AA100: Along Alignment SUR141B
C101: Iowa 141 | D101: 6450.72 | E101: 6456.25 | F101: 0.0553 | G101: SB | H101: Highbuild Waterborne Paint | K101: X | P101: =F101 -> 0.0553 | AA101: Along Alignment SUR141B
C102: Iowa 141 | D102: 6629.97 | E102: 7750.82 | F102: =(ABS(E102-D102))/100 -> 11.2085 | G102: SB | H102: Highbuild Waterborne Paint | K102: X | P102: =F102 -> 11.2085 | AA102: Along Alignment SUR141B
C103: Iowa 141 | D103: 7973.14 | E103: 10389 | F103: =(ABS(E103-D103))/100 -> 24.1586 | G103: SB | H103: Highbuild Waterborne Paint | K103: X | P103: =F103 -> 24.1586 | AA103: Along Alignment SUR141B
C104: Iowa 141 | D104: 10468 | E104: 10470 | F104: 0.02 | G104: NB | H104: Highbuild Waterborne Paint | J104: X | S104: =F104 -> 0.02 | AA104: Along Alignment SUR141B
C105: Iowa 141 | D105: 10468 | E105: 10470 | F105: =(ABS(E105-D105))/100 -> 0.02 | G105: NB | H105: Highbuild Waterborne Paint | J105: X | S105: =F105 -> 0.02 | AA105: Along Alignment SUR141B
C106: Iowa 141 | D106: 10468 | E106: 10470 | F106: 0.02 | G106: NB | H106: Highbuild Waterborne Paint | J106: X | S106: 0.02 | AA106: Along Alignment SUR141B
C107: Iowa 141 | D107: 10468 | E107: 10470 | F107: 0.02 | G107: NB | H107: Highbuild Waterborne Paint | J107: X | S107: 0.02 | AA107: Along Alignment SUR141B
C108: Iowa 141 | D108: 10468 | E108: 10470 | F108: 0.02 | G108: NB | H108: Highbuild Waterborne Paint | J108: X | S108: 0.02 | AA108: Along Alignment SUR141B
C109: Iowa 141 | D109: 10468 | E109: 10470 | F109: 0.02 | G109: NB | H109: Highbuild Waterborne Paint | J109: X | S109: 0.02 | AA109: Along Alignment SUR141B
C110: Iowa 141 | D110: 10468 | E110: 10470 | F110: 0.02 | G110: NB | H110: Highbuild Waterborne Paint | J110: X | S110: 0.02 | AA110: Along Alignment SUR141B
C111: Iowa 141 | D111: 10468 | E111: 10470.5 | F111: 0.025 | G111: NB | H111: Highbuild Waterborne Paint | J111: X | S111: 0.025 | AA111: Along Alignment SUR141B
C112: 19th Street | D112: 50421 | E112: 50423 | F112: =(ABS(E112-D112))/100 -> 0.02 | G112: EB | H112: Highbuild Waterborne Paint | J112: X | S112: =F112 -> 0.02
C113: 19th Street | D113: 50421 | E113: 50423 | F113: =(ABS(E113-D113))/100 -> 0.02 | G113: EB | H113: Highbuild Waterborne Paint | J113: X | S113: =F113 -> 0.02
C114: 19th Street | D114: 50421 | E114: 50423 | F114: 0.02 | G114: EB | H114: Highbuild Waterborne Paint | J114: X | S114: 0.02
C115: 19th Street | D115: 50421 | E115: 50423 | F115: 0.02 | G115: EB | H115: Highbuild Waterborne Paint | J115: X | S115: 0.02
C116: 19th Street | D116: 50421 | E116: 50423 | F116: 0.02 | G116: EB | H116: Highbuild Waterborne Paint | J116: X | S116: 0.02
C117: 19th Street | D117: 50421 | E117: 50424.06 | F117: 0.0306 | G117: EB | H117: Highbuild Waterborne Paint | J117: X | S117: 0.0306
C118: 19th Street | D118: 60077 | E118: 60079 | F118: =(ABS(E118-D118))/100 -> 0.02 | G118: WB | H118: Highbuild Waterborne Paint | J118: X | S118: =F118 -> 0.02
C119: 19th Street | D119: 60077 | E119: 60079 | F119: =(ABS(E119-D119))/100 -> 0.02 | G119: WB | H119: Highbuild Waterborne Paint | J119: X | S119: =F119 -> 0.02
C120: 19th Street | D120: 60077 | E120: 60079 | F120: 0.02 | G120: WB | H120: Highbuild Waterborne Paint | J120: X | S120: 0.02
C121: 19th Street | D121: 60077 | E121: 60079 | F121: 0.02 | G121: WB | H121: Highbuild Waterborne Paint | J121: X | S121: 0.02
C122: 19th Street | D122: 60077 | E122: 60079 | F122: 0.02 | G122: WB | H122: Highbuild Waterborne Paint | J122: X | S122: 0.02
C123: 19th Street | D123: 60077 | E123: 60079 | F123: 0.02 | G123: WB | H123: Highbuild Waterborne Paint | J123: X | S123: 0.02
C124: 19th Street | D124: 60077 | E124: 60079.88 | F124: 0.0288 | G124: WB | H124: Highbuild Waterborne Paint | J124: X | S124: 0.0288
C125: Iowa 141 | D125: 10591 | E125: 10593 | F125: 0.02 | G125: SB | H125: Highbuild Waterborne Paint | J125: X | S125: 0.02 | AA125: Along Alignment SUR141B
C126: Iowa 141 | D126: 10591 | E126: 10593 | F126: =(ABS(E126-D126))/100 -> 0.02 | G126: SB | H126: Highbuild Waterborne Paint | J126: X | S126: =F126 -> 0.02 | AA126: Along Alignment SUR141B
C127: Iowa 141 | D127: 10591 | E127: 10593 | F127: 0.02 | G127: SB | H127: Highbuild Waterborne Paint | J127: X | S127: 0.02 | AA127: Along Alignment SUR141B
C128: Iowa 141 | D128: 10591 | E128: 10593 | F128: 0.02 | G128: SB | H128: Highbuild Waterborne Paint | J128: X | S128: 0.02 | AA128: Along Alignment SUR141B
C129: Iowa 141 | D129: 10591 | E129: 10593 | F129: 0.02 | G129: SB | H129: Highbuild Waterborne Paint | J129: X | S129: 0.02 | AA129: Along Alignment SUR141B
C130: Iowa 141 | D130: 10591 | E130: 10593 | F130: 0.02 | G130: SB | H130: Highbuild Waterborne Paint | J130: X | S130: 0.02 | AA130: Along Alignment SUR141B
C131: Iowa 141 | D131: 10591 | E131: 10593 | F131: 0.02 | G131: SB | H131: Highbuild Waterborne Paint | J131: X | S131: 0.02 | AA131: Along Alignment SUR141B
C132: Iowa 141 | D132: 10591 | E132: 10593.52 | F132: 0.0252 | G132: SB | H132: Highbuild Waterborne Paint | J132: X | S132: 0.0252 | AA132: Along Alignment SUR141B
C133: Iowa 141 | D133: 10681.78 | E133: 13077.36 | F133: 23.9558 | G133: NB | H133: Highbuild Waterborne Paint | K133: X | P133: =F133 -> 23.9558 | AA133: Along Alignment SUR141B
C134: Iowa 141 | D134: 10593 | E134: 13117 | F134: 25.24 | G134: NB | H134: Highbuild Waterborne Paint | J134: X | O134: =F134 -> 25.24 | AA134: Along Alignment SUR141B
C135: Iowa 141 | D135: 10593 | E135: 13117 | F135: =(ABS(E135-D135))/100 -> 25.24 | G135: NB | H135: Highbuild Waterborne Paint | J135: X | O135: =F135 -> 25.24 | AA135: Along Alignment SUR141B
C136: Iowa 141 | D136: 10602.37 | E136: 12970.5 | F136: 23.6813 | G136: NB | H136: Highbuild Waterborne Paint | I136: X | Q136: =F136 -> 23.6813 | AA136: Along Alignment SUR141B
C137: Iowa 141 | D137: 12593.8 | E137: 13117 | F137: 5.232 | G137: NB | H137: Highbuild Waterborne Paint | I137: X | R137: =F137 -> 5.232 | AA137: Along Alignment SUR141B
C138: Iowa 141 | D138: 12766.84 | E138: 13117 | F138: =(ABS(E138-D138))/100 -> 3.5016 | G138: NB | H138: Highbuild Waterborne Paint | I138: X | R138: =F138 -> 3.5016 | AA138: Along Alignment SUR141B
C139: Iowa 141 | D139: 10716.68 | E139: 13033.55 | F139: 23.1687 | G139: SB | H139: Highbuild Waterborne Paint | I139: X | Q139: =F139 -> 23.1687 | AA139: Along Alignment SUR141B
C140: Iowa 141 | D140: 10593 | E140: 10902.08 | F140: 3.0908 | G140: SB | H140: Highbuild Waterborne Paint | I140: X | R140: =F140 -> 3.0908 | AA140: Along Alignment SUR141B
C141: Iowa 141 | D141: 10593 | E141: 11065.57 | F141: =(ABS(E141-D141))/100 -> 4.7257 | G141: SB | H141: Highbuild Waterborne Paint | I141: X | R141: =F141 -> 4.7257 | AA141: Along Alignment SUR141B
C142: Iowa 141 | D142: 10593 | E142: 13117 | F142: 25.24 | G142: SB | H142: Highbuild Waterborne Paint | J142: X | O142: =F142 -> 25.24 | AA142: Along Alignment SUR141B
C143: Iowa 141 | D143: 10593 | E143: 13117 | F143: =(ABS(E143-D143))/100 -> 25.24 | G143: SB | H143: Highbuild Waterborne Paint | J143: X | O143: =F143 -> 25.24 | AA143: Along Alignment SUR141B
C144: Iowa 141 | D144: 10593 | E144: 10999.88 | F144: 4.0688 | G144: SB | H144: Highbuild Waterborne Paint | K144: X | R144: =F144 -> 4.0688 | AA144: Along Alignment SUR141B
C145: Iowa 141 | D145: 10593 | E145: 13016.49 | F145: 24.2349 | G145: SB | H145: Highbuild Waterborne Paint | K145: X | P145: =F145 -> 24.2349 | AA145: Along Alignment SUR141B
C146: Iowa 141 | D146: 13117 | E146: 13119 | F146: 0.02 | G146: SB | H146: Highbuild Waterborne Paint | J146: X | S146: =F146 -> 0.02 | AA146: Along Alignment SUR141B
C147: Iowa 141 | D147: 13117 | E147: 13119 | F147: =(ABS(E147-D147))/100 -> 0.02 | G147: SB | H147: Highbuild Waterborne Paint | J147: X | S147: =F147 -> 0.02 | AA147: Along Alignment SUR141B
C148: Iowa 141 | D148: 13117 | E148: 13119 | F148: 0.02 | G148: SB | H148: Highbuild Waterborne Paint | J148: X | S148: 0.02 | AA148: Along Alignment SUR141B
C149: Iowa 141 | D149: 13117 | E149: 13119 | F149: 0.02 | G149: SB | H149: Highbuild Waterborne Paint | J149: X | S149: 0.02 | AA149: Along Alignment SUR141B
C150: Iowa 141 | D150: 13117 | E150: 13119 | F150: 0.02 | G150: SB | H150: Highbuild Waterborne Paint | J150: X | S150: 0.02 | AA150: Along Alignment SUR141B
C151: Iowa 141 | D151: 13117 | E151: 13119 | F151: 0.02 | G151: SB | H151: Highbuild Waterborne Paint | J151: X | S151: 0.02 | AA151: Along Alignment SUR141B
C152: Iowa 141 | D152: 13117 | E152: 13119.14 | F152: 0.0214 | G152: SB | H152: Highbuild Waterborne Paint | J152: X | S152: 0.0214 | AA152: Along Alignment SUR141B
C153: 11th Street | D153: 70420.35 | E153: 70422.35 | F153: =(ABS(E153-D153))/100 -> 0.02 | G153: EB | H153: Highbuild Waterborne Paint | J153: X | S153: =F153 -> 0.02
C154: 11th Street | D154: 70420.35 | E154: 70422.35 | F154: =(ABS(E154-D154))/100 -> 0.02 | G154: EB | H154: Highbuild Waterborne Paint | J154: X | S154: =F154 -> 0.02
C155: 11th Street | D155: 70420.35 | E155: 70422.35 | F155: 0.02 | G155: EB | H155: Highbuild Waterborne Paint | J155: X | S155: 0.02
C156: 11th Street | D156: 70420.35 | E156: 70422.35 | F156: 0.02 | G156: EB | H156: Highbuild Waterborne Paint | J156: X | S156: 0.02
C157: 11th Street | D157: 70420.35 | E157: 70422.35 | F157: 0.02 | G157: EB | H157: Highbuild Waterborne Paint | J157: X | S157: 0.02
C158: 11th Street | D158: 70420.35 | E158: 70422.73 | F158: 0.0238 | G158: EB | H158: Highbuild Waterborne Paint | J158: X | S158: 0.0238
C159: 11th Street | D159: 80077.6 | E159: 80079.6 | F159: =(ABS(E159-D159))/100 -> 0.02 | G159: WB | H159: Highbuild Waterborne Paint | J159: X | S159: =F159 -> 0.02
C160: 11th Street | D160: 80077.6 | E160: 80079.6 | F160: =(ABS(E160-D160))/100 -> 0.02 | G160: WB | H160: Highbuild Waterborne Paint | J160: X | S160: =F160 -> 0.02
C161: 11th Street | D161: 80077.6 | E161: 80079.6 | F161: 0.02 | G161: WB | H161: Highbuild Waterborne Paint | J161: X | S161: 0.02
C162: 11th Street | D162: 80077.6 | E162: 80079.6 | F162: 0.02 | G162: WB | H162: Highbuild Waterborne Paint | J162: X | S162: 0.02
C163: 11th Street | D163: 80077.6 | E163: 80079.6 | F163: 0.02 | G163: WB | H163: Highbuild Waterborne Paint | J163: X | S163: 0.02
C164: 11th Street | D164: 80077.6 | E164: 80079.6 | F164: 0.02 | G164: WB | H164: Highbuild Waterborne Paint | J164: X | S164: 0.02
C165: 11th Street | D165: 80077.6 | E165: 80079.77 | F165: 0.0217 | G165: WB | H165: Highbuild Waterborne Paint | J165: X | S165: 0.0217
C166: Iowa 141 | D166: 13240 | E166: 13242 | F166: 0.02 | G166: SB | H166: Highbuild Waterborne Paint | J166: X | S166: 0.02 | AA166: Along Alignment SUR141B
C167: Iowa 141 | D167: 13240 | E167: 13242 | F167: =(ABS(E167-D167))/100 -> 0.02 | G167: SB | H167: Highbuild Waterborne Paint | J167: X | S167: =F167 -> 0.02 | AA167: Along Alignment SUR141B
C168: Iowa 141 | D168: 13240 | E168: 13242 | F168: 0.02 | G168: SB | H168: Highbuild Waterborne Paint | J168: X | S168: 0.02 | AA168: Along Alignment SUR141B
C169: Iowa 141 | D169: 13240 | E169: 13242 | F169: 0.02 | G169: SB | H169: Highbuild Waterborne Paint | J169: X | S169: 0.02 | AA169: Along Alignment SUR141B
C170: Iowa 141 | D170: 13240 | E170: 13242 | F170: 0.02 | G170: SB | H170: Highbuild Waterborne Paint | J170: X | S170: 0.02 | AA170: Along Alignment SUR141B
C171: Iowa 141 | D171: 13240 | E171: 13242 | F171: 0.02 | G171: SB | H171: Highbuild Waterborne Paint | J171: X | S171: 0.02 | AA171: Along Alignment SUR141B
C172: Iowa 141 | D172: 13240 | E172: 13242.65 | F172: 0.0265 | G172: SB | H172: Highbuild Waterborne Paint | J172: X | S172: 0.0265 | AA172: Along Alignment SUR141B
C173: Iowa 141 | D173: 13338 | E173: 14829.38 | F173: 14.9138 | G173: NB | H173: Highbuild Waterborne Paint | K173: X | P173: =F173 -> 14.9138 | AA173: Along Alignment SUR141B
C174: Iowa 141 | D174: 13242 | E174: 14491 | F174: 12.49 | G174: NB | H174: Highbuild Waterborne Paint | J174: X | O174: =F174 -> 12.49 | AA174: Along Alignment SUR141B
C175: Iowa 141 | D175: 13242 | E175: 15213.23 | F175: =(ABS(E175-D175))/100 -> 19.7123 | G175: NB | H175: Highbuild Waterborne Paint | J175: X | O175: =F175 -> 19.7123 | AA175: Along Alignment SUR141B
C176: Iowa 141 | D176: 13309.51 | E176: 15733 | F176: 24.2349 | G176: NB | H176: Highbuild Waterborne Paint | I176: X | Q176: =F176 -> 24.2349 | AA176: Along Alignment SUR141B
C177: Iowa 141 | D177: 14553.48 | E177: 14830.41 | F177: 2.7693 | G177: NB | H177: Highbuild Waterborne Paint | K177: X | T177: =F177 -> 2.7693 | AA177: Along Alignment SUR141B
C178: Iowa 141 | D178: 14553.48 | E178: 14840.48 | F178: =(ABS(E178-D178))/100 -> 2.87 | G178: NB | H178: Highbuild Waterborne Paint | K178: X | T178: =F178 -> 2.87 | AA178: Along Alignment SUR141B
C179: Iowa 141 | D179: 14840.48 | E179: 15213.23 | F179: 3.7275 | G179: NB | H179: Highbuild Waterborne Paint | K179: X | P179: =F179 -> 3.7275 | AA179: Along Alignment SUR141B
C180: Iowa 141 | D180: 13366.32 | E180: 16047 | F180: 26.8068 | G180: SB | H180: Highbuild Waterborne Paint | I180: X | Q180: =F180 -> 26.8068 | AA180: Along Alignment SUR141B
C181: Iowa 141 | D181: 13242 | E181: 13575.22 | F181: 3.3322 | G181: SB | H181: Highbuild Waterborne Paint | I181: X | R181: =F181 -> 3.3322 | AA181: Along Alignment SUR141B
C182: Iowa 141 | D182: 13242 | E182: 13747.43 | F182: =(ABS(E182-D182))/100 -> 5.0543 | G182: SB | H182: Highbuild Waterborne Paint | I182: X | R182: =F182 -> 5.0543 | AA182: Along Alignment SUR141B
C183: Iowa 141 | D183: 13242 | E183: 15491 | F183: 22.49 | G183: SB | H183: Highbuild Waterborne Paint | J183: X | O183: =F183 -> 22.49 | AA183: Along Alignment SUR141B
C184: Iowa 141 | D184: 13242 | E184: 14459.69 | F184: =(ABS(E184-D184))/100 -> 12.1769 | G184: SB | H184: Highbuild Waterborne Paint | J184: X | O184: =F184 -> 12.1769 | AA184: Along Alignment SUR141B
C185: Iowa 141 | D185: 13242 | E185: 13575.57 | F185: 3.3357 | G185: SB | H185: Highbuild Waterborne Paint | K185: X | R185: =F185 -> 3.3357 | AA185: Along Alignment SUR141B
C186: Iowa 141 | D186: 13273.57 | E186: 14774.95 | F186: 15.0138 | G186: SB | H186: Highbuild Waterborne Paint | K186: X | P186: =F186 -> 15.0138 | AA186: Along Alignment SUR141B
C187: Iowa 141 | D187: 14792.08 | E187: 14935.57 | F187: 1.4349 | G187: SB | H187: Highbuild Waterborne Paint | K187: X | T187: =F187 -> 1.4349 | AA187: Along Alignment SUR141B
C188: Iowa 141 | D188: 14792.08 | E188: 14975.92 | F188: =(ABS(E188-D188))/100 -> 1.8384 | G188: SB | H188: Highbuild Waterborne Paint | K188: X | T188: =F188 -> 1.8384 | AA188: Along Alignment SUR141B
C189: Iowa 141 | D189: 14935.57 | E189: 15001.2 | F189: 0.6563 | G189: SB | H189: Highbuild Waterborne Paint | K189: X | P189: =F189 -> 0.6563 | AA189: Along Alignment SUR141B
F190: =(ABS(E190-D190))/100 -> 0
F191: 0
F192: 0
F193: 0
F194: 0 | H194: Factored Total: Highbuild Waterborne Paint | L194: =IF(BH17<>0,BH17, "-") -> - | M194: =IF(BI17<>0,BI17, "-") -> - | N194: =IF(BJ17<>0,BJ17, "-") -> - | O194: =IF(BK17<>0,BK17, "-") -> 90.6236 | P194: =IF(BL17<>0,BL17, "-") -> 175.5698 | Q194: =IF(BM17<>0,BM17, "-") -> 186.9501 | R194: =IF(BN17<>0,BN17, "-") -> 59.4994 | S194: =IF(BO17<>0,BO17, "-") -> 8.7474 | T194: =IF(BP17<>0,BP17, "-") -> 17.8252 | U194: =IF(BQ17<>0,BQ17, "-") -> - | V194: =IF(BR17<>0,BR17, "-") -> - | W194: =IF(BS17<>0,BS17, "-") -> - | X194: =IF(BT17<>0,BT17, "-") -> - | Y194: =IF(BU17<>0,BU17, "-") -> - | Z194: =IF(BV17<>0,BV17, "-") -> -
F195: 0
F196: 0 | H196: Bid Quantity: Painted Pavement Markings, Highbuild Waterborne | O196: =BH30 -> 539.2155
F197: 0
F198: 0
F199: 0
F200: 0
F201: 0
F202: 0
... 5799 more rows

Sheet DE108_22T
A1: TabTitle | B1: =C44 -> TEMPORARY PAVEMENT MARKING LINE TYPES
A2: Number of Tab Columns | B2: 24 | BB2: Old 9001 | BC2: Line Types (See PM-110) | BG2: Marking Type | BH2: =L54 -> BCY4* | BI2: DCY4 | BJ2: NPY4** | BK2: BLW4 | BL2: ELW4 | BM2: ELY4 | BN2: SLW4 | BO2: 0 | BP2: 0 | BQ2: 0 | BR2: 0 | BS2: 0 | BT2: 0 | BU2: 0 | BV2: 0 | BX2: Direction of Travel
A3: DE Starter Row Number | B3: 57 | BB3: Detail Number | BC3: Key | BD3: Description | BE3: Factor | BG3: Waterborne/Solvent Paint | BX3: NB
A4: TabSheet Starter Row Number | B4: 15 | BB4: 2 | BC4: BCY4* | BD4: BCY4: Broken Centerline (Yellow) @ 0.25 | BE4: 0.25 | BG4: Highbuild Waterborne Paint | BX4: EB
A5: TabSheet Header Row Count | B5: 14 | BB5: 6 | BC5: BLW4 | BD5: BLW4: Broken Lane Line (White) @ 0.25 | BE5: 0.25 | BG5: Durable Paint | BX5: SB
A6: Top Header Cell | B6: AC15 | BB6: new | BC6: CBW6 | BD6: CBW6: Crosswalk Bar (White) @ 15.00 | BE6: 15 | BG6: Permanent Regular Tape | BX6: WB
A7: Bottom Header Cell | B7: AZ28 | BB7: 11 | BC7: CHW8 | BD7: CHW8: Channelizing Line (White) @ 2.00 | BE7: 2 | BG7: Permanent Preform Polymer Tape | BX7: BOTH
A8: DESheet Row Count | B8: 37 | BB8: 12 | BC8: CHY8 | BD8: CHY8: Channelizing Line (Yellow) @ 2.00 | BE8: 2 | BG8: Permanent Profiled Tape
A9: Fixed Empty Rows | B9: 2 | BB9: 14 | BC9: CLW6 | BD9: CLW6: Crosswalk Line (White) @ 3.00 | BE9: 3 | BG9: Permanent Intersection Tape
A10: Usable Empty Rows | B10: 0 | BB10: 3 | BC10: DCY4 | BD10: DCY4: Double Centerline (Yellow) @ 2.00 | BE10: 2 | BG10: Grooves Cut for Pavement Markings
A11: Total Rows Placed | B11: 2 | C11: xlLeft(1) | D11: xlRight(1) | E11: xlRight(1) | G11: xlCenter | H11: xlCenter | I11: xlCenter | J11: xlCenter | K11: xlCenter | L11: xlRight(1) | M11: xlRight(1) | N11: xlRight(1) | O11: xlRight(1) | P11: xlRight(1) | Q11: xlRight(1) | R11: xlRight(1) | S11: xlRight(1) | T11: xlRight(1) | U11: xlRight(1) | V11: xlRight(1) | W11: xlRight(1) | X11: xlRight(1) | Y11: xlRight(1) | Z11: xlRight(1) | AA11: xlLeft(1) | AC11: =C11 -> xlLeft(1) | AD11: xlRight(1) | AE11: xlRight(1) | AF11: =G11 -> xlCenter | AG11: xlCenter | AH11: xlCenter | AI11: xlCenter | AJ11: xlCenter | AK11: xlRight(1) | AL11: xlRight(1) | AM11: xlRight(1) | AN11: xlRight(1) | AO11: xlRight(1) | AP11: xlRight(1) | AQ11: xlRight(1) | AR11: xlRight(1) | AS11: xlRight(1) | AT11: xlRight(1) | AU11: xlRight(1) | AV11: =W11 -> xlRight(1) | AW11: xlRight(1) | AX11: xlRight(1) | AY11: xlRight(1) | AZ11: xlLeft(1) | BB11: 18 | BC11: DDY4 | BD11: DDY4: Double Dotted Line (Yellow) @ 0.67 | BE11: =2/3 -> 0.6666666667 | BG11: Wet Retroreflective Removable Tape
A12: Total Rows Needed | B12: =SUM(B8:B10) -> 39 | C12: General | D12: #+00.00 | E12: #+00.00 | G12: General | H12: General | I12: General | J12: General | K12: General | L12: 0.00 | M12: 0.00 | N12: 0.00 | O12: 0.00 | P12: 0.00 | Q12: 0.00 | R12: 0.00 | S12: 0.00 | T12: 0.00 | U12: 0.00 | V12: 0.00 | W12: 0.00 | X12: 0.00 | Y12: 0.00 | Z12: 0.00 | AA12: General | AC12: General | AD12: #+00.00 | AE12: #+00.00 | AF12: General | AG12: General | AH12: General | AI12: General | AJ12: General | AK12: 0.00 | AL12: 0.00 | AM12: 0.00 | AN12: 0.00 | AO12: 0.00 | AP12: 0.00 | AQ12: 0.00 | AR12: 0.00 | AS12: 0.00 | AT12: 0.00 | AU12: 0.00 | AV12: 0.00 | AW12: 0.00 | AX12: 0.00 | AY12: 0.00 | AZ12: General | BB12: 9 | BC12: DLW4 | BD12: DLW4: Dotted Line (White) @ 0.33 | BE12: =1/3 -> 0.3333333333 | BG12: Nonreflective, Preformed Removable Tape
A13: Last Tab DE Starter Row | B13: 57 | C13: =CELL("width",C13) -> 15 | D13: =CELL("width",D13) -> 16 | E13: =CELL("width",E13) -> 16 | G13: =CELL("width",G13) -> 10 | H13: 54 | I13: 4 | J13: 4 | K13: 4 | L13: 10 | M13: 10 | N13: 10 | O13: 10 | P13: 10 | Q13: 10 | R13: 10 | S13: 10 | T13: 10 | U13: 10 | V13: 10 | W13: 10 | X13: 10 | Y13: 10 | Z13: 10 | AA13: 34 | AC13: =CELL("width",AC13) -> 0 | AD13: 0 | AE13: 0 | AF13: 0 | AG13: 0 | AH13: 0 | AI13: 0 | AJ13: 0 | AK13: 0 | AL13: 0 | AM13: 0 | AN13: 0 | AO13: 0 | AP13: 0 | AQ13: 0 | AR13: 0 | AS13: 0 | AT13: 0 | AU13: 0 | AV13: 0 | AW13: 0 | AX13: 0 | AY13: 0 | AZ13: 0 | BB13: new | BC13: DLY4 | BD13: DLY4: Dotted Line (Yellow) @ 0.33 | BE13: =1/3 -> 0.3333333333 | BG13: Removal of Paint
A14: Last Tab TabSheet Starter Row | B14: 15 | C14: A | D14: B | E14: C | G14: D | H14: E | I14: F | J14: G | K14: H | L14: I | M14: J | N14: K | O14: L | P14: M | Q14: N | R14: O | S14: P | T14: Q | U14: R | V14: S | W14: T | X14: U | Y14: V | Z14: W | AA14: X | AC14: =LOWER(C14) -> a | AD14: =LOWER(D14) -> b | AE14: =LOWER(E14) -> c | AF14: =LOWER(G14) -> d | AG14: e | AH14: f | AI14: g | AJ14: h | AK14: i | AL14: j | AM14: k | AN14: l | AO14: m | AP14: n | AQ14: o | AR14: p | AS14: q | AT14: r | AU14: s | AV14: t | AW14: u | AX14: v | AY14: w | AZ14: x | BB14: 7 | BC14: ELW4 | BD14: ELW4: Edge Line Right (White) @ 1.00 | BE14: 1 | BG14: Removal of Permanent Tape
A15: Last Copy Starter Row | B15: 1 | F15: =BB2 -> Old 9001 | H15: =BC2 -> Line Types (See PM-110) | AC15: 108-22 | BB15: 8 | BC15: ELY4 | BD15: ELY4: Edge Line Left (Yellow) @ 1.00 | BE15: 1 | BG15: Removal of Removable Tape
A16: Tab Loop Number | B16: 2 | F16: Detail Number | G16: Key | H16: Description | I16: Factor | J16: 0 | AC16: =B17 -> 2013-04-16 | BB16: new | BC16: LDW8 | BD16: LDW8: Lane Drop (White) @ 0.50 | BE16: 0.5 | BG16: ="Factored Total: "&BG3 -> Factored Total: Waterborne/Solvent Paint | BH16: =SUMIF($H$57:$H$1999,$BG3,L$57:L$1999)*L$43 -> 0 | BI16: =SUMIF($H$57:$H$1999,$BG3,M$57:M$1999)*M$43 -> 0 | BJ16: =SUMIF($H$57:$H$1999,$BG3,N$57:N$1999)*N$43 -> 0 | BK16: =SUMIF($H$57:$H$1999,$BG3,O$57:O$1999)*O$43 -> 43.419925 | BL16: =SUMIF($H$57:$H$1999,$BG3,P$57:P$1999)*P$43 -> 6.5028 | BM16: =SUMIF($H$57:$H$1999,$BG3,Q$57:Q$1999)*Q$43 -> 0 | BN16: =SUMIF($H$57:$H$1999,$BG3,R$57:R$1999)*R$43 -> 13.2555 | BO16: =SUMIF($H$57:$H$1999,$BG3,S$57:S$1999)*S$43 -> 0 | BP16: =SUMIF($H$57:$H$1999,$BG3,T$57:T$1999)*T$43 -> 0 | BQ16: =SUMIF($H$57:$H$1999,$BG3,U$57:U$1999)*U$43 -> 0 | BR16: =SUMIF($H$57:$H$1999,$BG3,V$57:V$1999)*V$43 -> 0 | BS16: =SUMIF($H$57:$H$1999,$BG3,W$57:W$1999)*W$43 -> 0 | BT16: =SUMIF($H$57:$H$1999,$BG3,X$57:X$1999)*X$43 -> 0 | BU16: =SUMIF($H$57:$H$1999,$BG3,Y$57:Y$1999)*Y$43 -> 0 | BV16: =SUMIF($H$57:$H$1999,$BG3,Z$57:Z$1999)*Z$43 -> 0
A17: Revision Date | B17: 2013-04-16 | F17: 2 | G17: BCY4* | H17: BCY4: Broken Centerline (Yellow) @ 0.25 | I17: 0.25 | J17: 0 | AC17: =C44 -> TEMPORARY PAVEMENT MARKING LINE TYPES | BB17: new | BC17: MNY4*** | BD17: MNY4: Median Nose (Yellow) @ 1.00 | BE17: 1 | BG17: Factored Total: Highbuild Waterborne Paint | BH17: 0 | BI17: 0 | BJ17: 0 | BK17: 0 | BL17: 0 | BM17: 0 | BN17: 0 | BO17: 0 | BP17: 0 | BQ17: 0 | BR17: 0 | BS17: 0 | BT17: 0 | BU17: 0 | BV17: 0
A18: Tabulation Width | B18: 4 | F18: 6 | G18: BLW4 | H18: BLW4: Broken Lane Line (White) @ 0.25 | I18: 0.25 | J18: 0 | BB18: 5 | BC18: NPY4** | BD18: NPY4: No Passing Zone Line (Yellow) @ 1.25 | BE18: 1.25 | BG18: Factored Total: Durable Paint | BH18: 0 | BI18: 0 | BJ18: 0 | BK18: 0 | BL18: 0 | BM18: 0 | BN18: 0 | BO18: 0 | BP18: 0 | BQ18: 0 | BR18: 0 | BS18: 0 | BT18: 0 | BU18: 0 | BV18: 0
A19: Horizontal Grid Lines | B19: Yes | F19: new | G19: CBW6 | H19: CBW6: Crosswalk Bar (White) @ 15.00 | I19: 15 | J19: 0 | AC19: =C46 -> See PM-110 | BB19: new | BC19: RLW4 | BD19: RLW4: Ramp Edge Line Right (White) @ 1.00 | BE19: 1 | BG19: Factored Total: Permanent Regular Tape | BH19: 0 | BI19: 0 | BJ19: 0 | BK19: 0 | BL19: 0 | BM19: 0 | BN19: 0 | BO19: 0 | BP19: 0 | BQ19: 0 | BR19: 0 | BS19: 0 | BT19: 0 | BU19: 0 | BV19: 0
F20: 11 | G20: CHW8 | H20: CHW8: Channelizing Line (White) @ 2.00 | I20: 2 | J20: 0 | AC20: =C47 -> *BCY4 - Place on the same side of the roadway to match existing markings near the project. | AH20: =I47 -> ***MNY4 - Factor of 1.00 as value includes number of 4-inch passes to cover median nose area. | BB20: new | BC20: RLY4 | BD20: RLY4: Ramp Edge Line Left (Yellow) @ 1.00 | BE20: 1 | BG20: Factored Total: Permanent Preform Polymer Tape | BH20: 0 | BI20: 0 | BJ20: 0 | BK20: 0 | BL20: 0 | BM20: 0 | BN20: 0 | BO20: 0 | BP20: 0 | BQ20: 0 | BR20: 0 | BS20: 0 | BT20: 0 | BU20: 0 | BV20: 0
F21: 12 | G21: CHY8 | H21: CHY8: Channelizing Line (Yellow) @ 2.00 | I21: 2 | J21: 0 | AC21: =C48 -> **NPY4 - For estimating purposes only. No Passing Zone Lines will be located in the field. | BB21: 13 | BC21: SLW2 | BD21: SLW2: Stop Line (White) @ 6.00 | BE21: 6 | BG21: Factored Total: Permanent Profiled Tape | BH21: 0 | BI21: 0 | BJ21: 0 | BK21: 0 | BL21: 0 | BM21: 0 | BN21: 0 | BO21: 0 | BP21: 0 | BQ21: 0 | BR21: 0 | BS21: 0 | BT21: 0 | BU21: 0 | BV21: 0
F22: 14 | G22: CLW6 | H22: CLW6: Crosswalk Line (White) @ 3.00 | I22: 3 | J22: 0 | AC22: =C50 -> BCY4: Broken Centerline (Yellow) @ 0.25 | AG22: =H50 -> DCY4: Double Centerline (Yellow) @ 2.00 | AL22: =L50 -> NPY4: No Passing Zone Line (Yellow) @ 1.25 | AR22: =R50 -> BLW4: Broken Lane Line (White) @ 0.25 | AX22: =X50 -> ELW4: Edge Line Right (White) @ 1.00 | BB22: 13 | BC22: SLW4 | BD22: SLW4: Solid Lane Line (White) @ 1.00 | BE22: 1 | BG22: Factored Total: Permanent Intersection Tape | BH22: 0 | BI22: 0 | BJ22: 0 | BK22: 0 | BL22: 0 | BM22: 0 | BN22: 0 | BO22: 0 | BP22: 0 | BQ22: 0 | BR22: 0 | BS22: 0 | BT22: 0 | BU22: 0 | BV22: 0
F23: 3 | G23: DCY4 | H23: DCY4: Double Centerline (Yellow) @ 2.00 | I23: 2 | J23: 0 | AC23: =C51 -> ELY4: Edge Line Left (Yellow) @ 1.00 | AG23: =H51 -> SLW4: Solid Lane Line (White) @ 1.00 | AL23: =L51 ->  | AR23: =R51 ->  | AX23: =X51 ->  | BB23: new | BC23: SPW4 | BD23: SPW4: Sloped Curb 4" (White) @ 3.23 | BE23: 3.23 | BG23: Factored Total: Grooves Cut for Pavement Markings | BH23: 0 | BI23: 0 | BJ23: 0 | BK23: 0 | BL23: 0 | BM23: 0 | BN23: 0 | BO23: 0 | BP23: 0 | BQ23: 0 | BR23: 0 | BS23: 0 | BT23: 0 | BU23: 0 | BV23: 0
F24: 18 | G24: DDY4 | H24: DDY4: Double Dotted Line (Yellow) @ 0.67 | I24: 0.6666666667 | J24: 0 | AC24: =C52 ->  | AG24: =H52 ->  | AL24: =L52 ->  | AR24: =R52 ->  | AX24: =X52 ->  | BB24: 16B | BC24: SPW6 | BD24: SPW6: Sloped Curb 6" (White) @ 3.40 | BE24: 3.4 | BG24: Factored Total: Wet Retroreflective Removable Tape | BH24: 0 | BI24: 0 | BJ24: 0 | BK24: 0 | BL24: 0 | BM24: 0 | BN24: 0 | BO24: 0 | BP24: 0 | BQ24: 0 | BR24: 0 | BS24: 0 | BT24: 0 | BU24: 0 | BV24: 0
F25: 9 | G25: DLW4 | H25: DLW4: Dotted Line (White) @ 0.33 | I25: 0.3333333333 | J25: 0 | AC25: =C53 -> Location | AK25: =L53 -> Length by Line Type (Unfactored) | AZ25: =AA53 -> Remarks | BB25: new | BC25: SPY4 | BD25: SPY4: Sloped Curb 4" (Yellow) @ 3.23 | BE25: 3.23 | BG25: Factored Total: Nonreflective, Preformed Removable Tape | BH25: 0 | BI25: 0 | BJ25: 0 | BK25: 0 | BL25: 0 | BM25: 0 | BN25: 0 | BO25: 0 | BP25: 0 | BQ25: 0 | BR25: 0 | BS25: 0 | BT25: 0 | BU25: 0 | BV25: 0
F26: new | G26: DLY4 | H26: DLY4: Dotted Line (Yellow) @ 0.33 | I26: 0.3333333333 | J26: 0 | AC26: =C54 -> Road ID | AD26: =D54 -> Station to Station | AF26: =G54 -> Dir. of Travel | AG26: =H54 -> Marking Type | AH26: =I54 -> Side | AK26: =IF(L54<>"",L54,"") -> BCY4* | AL26: DCY4 | AM26: NPY4** | AN26: BLW4 | AO26: ELW4 | AP26: ELY4 | AQ26: SLW4 | BB26: 15B | BC26: SPY6 | BD26: SPY6: Sloped Curb 6" (Yellow) @ 3.40 | BE26: 3.4 | BG26: Factored Total: Removal of Paint | BH26: 0 | BI26: 0 | BJ26: 0 | BK26: 0 | BL26: 0 | BM26: 0 | BN26: 0 | BO26: 0 | BP26: 0 | BQ26: 0 | BR26: 0 | BS26: 0 | BT26: 0 | BU26: 0 | BV26: 0
F27: 7 | G27: ELW4 | H27: ELW4: Edge Line Right (White) @ 1.00 | I27: 1 | J27: 0 | BB27: 16A | BC27: STW6 | BD27: STW6: Standard Curb 6" (White) @ 3.03 | BE27: 3.03 | BG27: Factored Total: Removal of Permanent Tape | BH27: 0 | BI27: 0 | BJ27: 0 | BK27: 0 | BL27: 0 | BM27: 0 | BN27: 0 | BO27: 0 | BP27: 0 | BQ27: 0 | BR27: 0 | BS27: 0 | BT27: 0 | BU27: 0 | BV27: 0
F28: 8 | G28: ELY4 | H28: ELY4: Edge Line Left (Yellow) @ 1.00 | I28: 1 | J28: 0 | AH28: =I56 -> L | AI28: C | AJ28: R | AK28: STA | AL28: STA | AM28: STA | AN28: STA | AO28: STA | AP28: STA | AQ28: STA | AR28: STA | AS28: STA | AT28: STA | AU28: STA | AV28: STA | AW28: STA | AX28: STA | AY28: STA | BB28: 15A | BC28: STY6 | BD28: STY6: Standard Curb 6" (Yellow) @ 3.03 | BE28: 3.03 | BG28: Factored Total: Removal of Removable Tape | BH28: 0 | BI28: 0 | BJ28: 0 | BK28: 0 | BL28: 0 | BM28: 0 | BN28: 0 | BO28: 0 | BP28: 0 | BQ28: 0 | BR28: 0 | BS28: 0 | BT28: 0 | BU28: 0 | BV28: 0
F29: new | G29: LDW8 | H29: LDW8: Lane Drop (White) @ 0.50 | I29: 0.5 | J29: 0 | BB29: 17 | BC29: YLW2 | BD29: YLW2: Yield Line (White) @ 1.71 | BE29: 1.71 | BG29: Bid Quantity: Painted Pavement Markings, Waterborne or Solvent-Based | BH29: =SUMIF(BH16:BV16,">0",BH16:BV16) -> 63.178225
F30: new | G30: MNY4*** | H30: MNY4: Median Nose (Yellow) @ 1.00 | I30: 1 | J30: 0 | BG30: Bid Quantity: Painted Pavement Markings, Highbuild Waterborne | BH30: 0
F31: 5 | G31: NPY4** | H31: NPY4: No Passing Zone Line (Yellow) @ 1.25 | I31: 1.25 | J31: 0 | BG31: Bid Quantity: Painted Pavement Markings, Durable | BH31: 0
F32: new | G32: RLW4 | H32: RLW4: Ramp Edge Line Right (White) @ 1.00 | I32: 1 | J32: 0 | BG32: Bid Quantity: Permanent Tape Markings, Regular Marking Tape | BH32: 0
F33: new | G33: RLY4 | H33: RLY4: Ramp Edge Line Left (Yellow) @ 1.00 | I33: 1 | J33: 0 | BG33: Bid Quantity: Permanent Tape Markings, Preformed Polymer Marking Material | BH33: 0
F34: 13 | G34: SLW2 | H34: SLW2: Stop Line (White) @ 6.00 | I34: 6 | J34: 0 | BG34: Bid Quantity: Permanent Tape Markings, Profiled Pavement Marking Tape | BH34: 0
F35: 13 | G35: SLW4 | H35: SLW4: Solid Lane Line (White) @ 1.00 | I35: 1 | J35: 0 | BG35: Bid Quantity: Permanent Tape Markings, Intersection Marking Tape | BH35: 0
F36: new | G36: SPW4 | H36: SPW4: Sloped Curb 4" (White) @ 3.23 | I36: 3.23 | J36: 0 | BG36: Bid Quantity: Grooves Cut for Pavement Markings | BH36: 0
F37: 16B | G37: SPW6 | H37: SPW6: Sloped Curb 6" (White) @ 3.40 | I37: 3.4 | J37: 0 | BG37: Bid Quantity: Wet Retroreflective Removable Tape Markings | BH37: 0
F38: new | G38: SPY4 | H38: SPY4: Sloped Curb 4" (Yellow) @ 3.23 | I38: 3.23 | J38: 0 | BG38: Bid Quantity: Removable, Nonreflective, Preformed Tape | BH38: 0
F39: 15B | G39: SPY6 | H39: SPY6: Sloped Curb 6" (Yellow) @ 3.40 | I39: 3.4 | J39: 0 | BG39: Bid Quantity: Pavement Markings Removed | BH39: =SUMIF(BH26:BV26,">0",BH26:BV26)+SUMIF(BH27:BV27,">0",BH27:BV27) -> 0
F40: 16A | G40: STW6 | H40: STW6: Standard Curb 6" (White) @ 3.03 | I40: 3.03 | J40: 0 | BG40: Incidental Removal of Removable Tape | BH40: =SUMIF(BH28:BV28,">0",BH28:BV28) -> 0
F41: 15A | G41: STY6 | H41: STY6: Standard Curb 6" (Yellow) @ 3.03 | I41: 3.03 | J41: 0
F42: 17 | G42: YLW2 | H42: YLW2: Yield Line (White) @ 1.71 | I42: 1.71 | J42: 0
K43: Factors: | L43: =IF(L$54<>"",VLOOKUP(L$54,$BC$4:$BE$29,3,FALSE),0) -> 0.25 | M43: 2 | N43: 1.25 | O43: 0.25 | P43: 1 | Q43: 1 | R43: 1 | S43: 0 | T43: 0 | U43: 0 | V43: 0 | W43: 0 | X43: 0 | Y43: 0 | Z43: 0
C44: TEMPORARY PAVEMENT MARKING LINE TYPES
C46: See PM-110
C47: *BCY4 - Place on the same side of the roadway to match existing markings near the project. | I47: ***MNY4 - Factor of 1.00 as value includes number of 4-inch passes to cover median nose area.
C48: **NPY4 - For estimating purposes only. No Passing Zone Lines will be located in the field.
C49: ="This Data Entry Sheet fills Tab "&AC15&" effective "&TEXT(B17,"mm-dd-yy") -> This Data Entry Sheet fills Tab 108-22 effective 04-16-13
C50: =IF(L54<>"",VLOOKUP(L54,BC4:BE29,2,FALSE),"") -> BCY4: Broken Centerline (Yellow) @ 0.25 | H50: =IF(M54<>"",VLOOKUP(M54,BC4:BE29,2,FALSE),"") -> DCY4: Double Centerline (Yellow) @ 2.00 | L50: =IF(N54<>"",VLOOKUP(N54,BC4:BE29,2,FALSE),"") -> NPY4: No Passing Zone Line (Yellow) @ 1.25 | R50: =IF(O54<>"",VLOOKUP(O54,BC4:BE29,2,FALSE),"") -> BLW4: Broken Lane Line (White) @ 0.25 | X50: =IF(P54<>"",VLOOKUP(P54,BC4:BE29,2,FALSE),"") -> ELW4: Edge Line Right (White) @ 1.00
C51: =IF(Q54<>"",VLOOKUP(Q54,BC4:BE29,2,FALSE),"") -> ELY4: Edge Line Left (Yellow) @ 1.00 | H51: =IF(R54<>"",VLOOKUP(R54,BC4:BE29,2,FALSE),"") -> SLW4: Solid Lane Line (White) @ 1.00 | L51: =IF(S54<>"",VLOOKUP(S54,BC4:BE29,2,FALSE),"") ->  | R51: =IF(T54<>"",VLOOKUP(T54,BC4:BE29,2,FALSE),"") ->  | X51: =IF(U54<>"",VLOOKUP(U54,BC4:BE29,2,FALSE),"") -> 
C52: =IF(V54<>"",VLOOKUP(V54,BC4:BE29,2,FALSE),"") ->  | H52: =IF(W54<>"",VLOOKUP(W54,BC4:BE29,2,FALSE),"") ->  | L52: =IF(X54<>"",VLOOKUP(X54,BC4:BE29,2,FALSE),"") ->  | R52: =IF(Y54<>"",VLOOKUP(Y54,BC4:BE29,2,FALSE),"") ->  | X52: =IF(Z54<>"",VLOOKUP(Z54,BC4:BE29,2,FALSE),"") -> 
C53: Location | L53: Length by Line Type (Unfactored) | AA53: Remarks
C54: Road ID | D54: Station to Station | F54: Length (STA) | G54: Dir. of Travel | H54: Marking Type | I54: Side | L54: BCY4* | M54: DCY4 | N54: NPY4** | O54: BLW4 | P54: ELW4 | Q54: ELY4 | R54: SLW4
I56: L | J56: C | K56: R | L56: STA | M56: STA | N56: STA | O56: STA | P56: STA | Q56: STA | R56: STA | S56: STA | T56: STA | U56: STA | V56: STA | W56: STA | X56: STA | Y56: STA | Z56: STA
F57: =(ABS(E57-D57))/100 -> 0
C58: Stage 2 | F58: 0
F59: 0
C60: Iowa 141 | D60: 4122.1 | E60: 4772.38 | F60: 6.5028 | G60: NB | H60: Waterborne/Solvent Paint | K60: X | P60: =F60 -> 6.5028 | AA60: Edge line prior to TBR
C61: Iowa 141 | D61: 5621.17 | E61: 5946.17 | F61: 3.25 | G61: NB | H61: Waterborne/Solvent Paint | J61: X | R61: =F61 -> 3.25 | AA61: Shifting taper
C62: Iowa 141 | D62: 5946.17 | E62: 10471.04 | F62: 45.2487 | G62: NB | H62: Waterborne/Solvent Paint | J62: X | O62: =F62 -> 45.2487 | AA62: Shifted centerline - 37th to 19th
C63: Iowa 141 | D63: 10590.09 | E63: 13122.15 | F63: 25.3206 | G63: NB | H63: Waterborne/Solvent Paint | J63: X | O63: =F63 -> 25.3206 | AA63: Shifted centerline - 19th to 11th
C64: Iowa 141 | D64: 13237.54 | E64: 14875.73 | F64: 16.3819 | G64: NB | H64: Waterborne/Solvent Paint | J64: X | O64: =F64 -> 16.3819 | AA64: Shifted centerline - 11th to Iowa 44
C65: Iowa 141 | D65: 14875.73 | E65: 15213.23 | F65: 3.375 | G65: NB | H65: Waterborne/Solvent Paint | J65: X | R65: =F65 -> 3.375 | AA65: Shifting taper
C66: Iowa 141 | D66: 15176.06 | E66: 15513.56 | F66: 3.375 | G66: SB | H66: Waterborne/Solvent Paint | J66: X | R66: =F66 -> 3.375 | AA66: Shifting taper
C67: Iowa 141 | D67: 13237.54 | E67: 15176.06 | F67: 19.3852 | G67: SB | H67: Waterborne/Solvent Paint | J67: X | O67: =F67 -> 19.3852 | AA67: Shifted centerline - 11th to Iowa 44
C68: Iowa 141 | D68: 10590.08 | E68: 13122.02 | F68: 25.3194 | G68: SB | H68: Waterborne/Solvent Paint | J68: X | O68: =F68 -> 25.3194 | AA68: Shifted centerline - 19th to 11th
C69: Iowa 141 | D69: 7927.46 | E69: 10471.04 | F69: 25.4358 | G69: SB | H69: Waterborne/Solvent Paint | J69: X | O69: =F69 -> 25.4358 | AA69: Shifted centerline - 28th to 19th
C70: Iowa 141 | D70: 6605.43 | E70: 7864.2 | F70: 12.5877 | G70: SB | H70: Waterborne/Solvent Paint | J70: X | O70: =F70 -> 12.5877 | AA70: Shifted centerline - Johnson to 28th
C71: Iowa 141 | D71: 6153.44 | E71: 6553.48 | F71: 4.0004 | G71: SB | H71: Waterborne/Solvent Paint | J71: X | O71: =F71 -> 4.0004 | AA71: Shifted centerline - 37th to Johnson
C72: Iowa 141 | D72: 5827.89 | E72: 6153.44 | F72: 3.2555 | G72: SB | H72: Waterborne/Solvent Paint | J72: X | R72: =F72 -> 3.2555 | AA72: Shifting taper
C73: Iowa 141 | D73: 14734.4 | E73: 14851.06 | F73: 1.1666 | G73: SB | I73: X | R73: =F73 -> 1.1666 | AA73: Left edge in entrance ramp gore area
C74: Iowa 141 | D74: 14734.4 | E74: 15413.38 | F74: 6.7898 | G74: SB | K74: X | P74: =F74 -> 6.7898 | AA74: Edge line prior to entrance ramp
C75: Iowa 141 | D75: 14459.69 | E75: 14776.24 | F75: 3.1655 | G75: SB | K75: X | P75: =F75 -> 3.1655 | AA75: Edge line between entrance ramp and TBR
C76: Iowa 141 | D76: 14495.85 | E76: 14775.97 | F76: 2.8012 | G76: NB | K76: X | P76: =F76 -> 2.8012 | AA76: Edge line on exit ramp
C77: Iowa 141 | D77: 14766.11 | E77: 14824.95 | F77: 0.5884 | G77: NB | I77: X | R77: =F77 -> 0.5884 | AA77: Left edge in exit ramp gore area
C78: Iowa 141 | D78: 14766.11 | E78: 15075.85 | F78: 3.0974 | G78: NB | K78: X | P78: =F78 -> 3.0974 | AA78: Edge line after exit ramp
C79: Iowa 141 | D79: 5720.93 | E79: 10471.04 | F79: 47.5011 | G79: NB | I79: X | Q79: =F79 -> 47.5011 | AA79: Left edge south shift to 19th
C80: Iowa 141 | D80: 10590.09 | E80: 12970.47 | F80: 23.8038 | G80: NB | I80: X | Q80: =F80 -> 23.8038 | AA80: Left edge 19th to 11th
C81: Iowa 141 | D81: 13309.63 | E81: 15113.45 | F81: 18.0382 | G81: NB | I81: X | Q81: =F81 -> 18.0382 | AA81: Left edge 11th to north shift
C82: Iowa 141 | D82: 5357.39 | E82: 5476.96 | F82: 1.1957 | G82: NB | K82: X | P82: 122.4919 | AA82: Iowa 141 @ 37th St NE Quadrant
C83: Iowa 141 | D83: 6605.41 | E83: 6618.52 | F83: 0.1311 | G83: NB | K83: X | P83: 17.7861 | AA83: Iowa 141 @ Johnson NE Quadrant
C84: 28th St | D84: 40051.13 | E84: 40278.87 | F84: 2.2774 | G84: WB | K84: X | P84: 247.2787 | AA84: Iowa 141 @ 28th St NE Quadrant
C85: Iowa 141 | D85: 9232.83 | E85: 9240.32 | F85: 0.0749 | G85: NB | K85: X | P85: 19.7428 | AA85: Iowa 141 @ Farm Access NE Quadrant
C86: 19th St | D86: 60050.99 | E86: 60381.94 | F86: 3.3095 | G86: WB | K86: X | P86: 357.631 | AA86: Iowa 141 @ 19th St NE Quadrant
C87: Iowa 141 | D87: 11897.32 | E87: 11907.79 | F87: 0.1047 | G87: NB | K87: X | P87: 18.0002 | AA87: Iowa 141 @ Farm Access NE Quadrant
C88: 11th St | D88: 80054.83 | E88: 80459.17 | F88: 4.0434 | G88: WB | K88: X | P88: 419.6415 | AA88: Iowa 141 @ 11th St NE Quadrant
C89: 11th St | D89: 70016.27 | E89: 70445.98 | F89: 4.2971 | G89: EB | K89: X | P89: 438.1414 | AA89: Iowa 141 @ 11th St SW Quadrant
C90: Iowa 141 | D90: 11850.03 | E90: 11863.98 | F90: 0.1395 | G90: SB | K90: X | P90: 22.1753 | AA90: Iowa 141 @ Farm Access SW Quadrant
C91: Iowa 141 | D91: 0 | E91: 0 | F91: 0 | G91: SB | K91: X | AA91: Iowa 141 @ Johnson SW Quadrant
C92: Iowa 141 | D92: 0 | E92: 0 | F92: 0 | G92: SB | K92: X | AA92: Iowa 141 @ 28th St SW Quadrant
C93: Iowa 141 | D93: 0 | E93: 0 | F93: 0 | G93: SB | K93: X | AA93: Iowa 141 @ 19th St SW Quadrant
F94: 0
F95: 0
F96: 0
F97: 0
F98: 0
F99: 0
F100: 0
F101: 0
F102: 0
F103: 0
F104: 0
F105: 0
F106: 0
F107: 0
F108: 0
F109: 0
F110: 0
F111: 0
F112: 0
F113: 0
F114: 0
F115: 0
F116: 0
F117: 0
F118: 0
F119: 0
F120: =(ABS(E120-D120))/100 -> 0
F121: 0
F122: 0
F123: 0
F124: 0
F125: 0
F126: 0
F127: 0
F128: 0
F129: 0
F130: 0
F131: 0
F132: 0
F133: 0
F134: 0
F135: 0
F136: 0
F137: 0
F138: 0
F139: 0
F140: 0
F141: 0
F142: 0
F143: 0
F144: 0
F145: 0
F146: 0
F147: 0
F148: 0
F149: 0
F150: 0
F151: 0
F152: 0
F153: 0
F154: 0
F155: 0
F156: 0
F157: 0
F158: 0
F159: 0
F160: 0
F161: 0
F162: 0
F163: 0
F164: 0
F165: 0
F166: 0
F167: 0
F168: 0
F169: 0
F170: 0
F171: 0
F172: 0
F173: 0
F174: 0
F175: 0
F176: 0
F177: 0
F178: 0
F179: 0
F180: 0
F181: 0
F182: 0
F183: 0
F184: =(ABS(E184-D184))/100 -> 0
F185: 0
F186: 0
F187: 0
F188: 0
F189: 0
F190: 0
F191: 0
F192: 0
F193: 0
F194: 0
F195: 0
F196: 0
F197: 0
F198: 0
F199: 0
F200: 0
F201: 0
F202: 0
... 5797 more rows

Sheet DE108_22R
A1: TabTitle | B1: =C44 -> PAVEMENT MARKING LINE REMOVALS
A2: Number of Tab Columns | B2: 24 | BB2: Old 9001 | BC2: Line Types (See PM-110) | BG2: Marking Type | BH2: =L54 -> BCY4* | BI2: DCY4 | BJ2: NPY4** | BK2: BLW4 | BL2: ELW4 | BM2: ELY4 | BN2: SLW4 | BO2: 0 | BP2: 0 | BQ2: 0 | BR2: 0 | BS2: 0 | BT2: 0 | BU2: 0 | BV2: 0 | BX2: Direction of Travel
A3: DE Starter Row Number | B3: 57 | BB3: Detail Number | BC3: Key | BD3: Description | BE3: Factor | BG3: Waterborne/Solvent Paint | BX3: NB
A4: TabSheet Starter Row Number | B4: 15 | BB4: 2 | BC4: BCY4* | BD4: BCY4: Broken Centerline (Yellow) @ 0.25 | BE4: 0.25 | BG4: Highbuild Waterborne Paint | BX4: EB
A5: TabSheet Header Row Count | B5: 14 | BB5: 6 | BC5: BLW4 | BD5: BLW4: Broken Lane Line (White) @ 0.25 | BE5: 0.25 | BG5: Durable Paint | BX5: SB
A6: Top Header Cell | B6: AC15 | BB6: new | BC6: CBW6 | BD6: CBW6: Crosswalk Bar (White) @ 15.00 | BE6: 15 | BG6: Permanent Regular Tape | BX6: WB
A7: Bottom Header Cell | B7: AZ28 | BB7: 11 | BC7: CHW8 | BD7: CHW8: Channelizing Line (White) @ 2.00 | BE7: 2 | BG7: Permanent Preform Polymer Tape | BX7: BOTH
A8: DESheet Row Count | B8: 56 | BB8: 12 | BC8: CHY8 | BD8: CHY8: Channelizing Line (Yellow) @ 2.00 | BE8: 2 | BG8: Permanent Profiled Tape
A9: Fixed Empty Rows | B9: 2 | BB9: 14 | BC9: CLW6 | BD9: CLW6: Crosswalk Line (White) @ 3.00 | BE9: 3 | BG9: Permanent Intersection Tape
A10: Usable Empty Rows | B10: 0 | BB10: 3 | BC10: DCY4 | BD10: DCY4: Double Centerline (Yellow) @ 2.00 | BE10: 2 | BG10: Grooves Cut for Pavement Markings
A11: Total Rows Placed | B11: 2 | C11: xlLeft(1) | D11: xlRight(1) | E11: xlRight(1) | G11: xlCenter | H11: xlCenter | I11: xlCenter | J11: xlCenter | K11: xlCenter | L11: xlRight(1) | M11: xlRight(1) | N11: xlRight(1) | O11: xlRight(1) | P11: xlRight(1) | Q11: xlRight(1) | R11: xlRight(1) | S11: xlRight(1) | T11: xlRight(1) | U11: xlRight(1) | V11: xlRight(1) | W11: xlRight(1) | X11: xlRight(1) | Y11: xlRight(1) | Z11: xlRight(1) | AA11: xlLeft(1) | AC11: =C11 -> xlLeft(1) | AD11: xlRight(1) | AE11: xlRight(1) | AF11: =G11 -> xlCenter | AG11: xlCenter | AH11: xlCenter | AI11: xlCenter | AJ11: xlCenter | AK11: xlRight(1) | AL11: xlRight(1) | AM11: xlRight(1) | AN11: xlRight(1) | AO11: xlRight(1) | AP11: xlRight(1) | AQ11: xlRight(1) | AR11: xlRight(1) | AS11: xlRight(1) | AT11: xlRight(1) | AU11: xlRight(1) | AV11: =W11 -> xlRight(1) | AW11: xlRight(1) | AX11: xlRight(1) | AY11: xlRight(1) | AZ11: xlLeft(1) | BB11: 18 | BC11: DDY4 | BD11: DDY4: Double Dotted Line (Yellow) @ 0.67 | BE11: =2/3 -> 0.6666666667 | BG11: Wet Retroreflective Removable Tape
A12: Total Rows Needed | B12: =SUM(B8:B10) -> 58 | C12: General | D12: #+00.00 | E12: #+00.00 | G12: General | H12: General | I12: General | J12: General | K12: General | L12: 0.00 | M12: 0.00 | N12: 0.00 | O12: 0.00 | P12: 0.00 | Q12: 0.00 | R12: 0.00 | S12: 0.00 | T12: 0.00 | U12: 0.00 | V12: 0.00 | W12: 0.00 | X12: 0.00 | Y12: 0.00 | Z12: 0.00 | AA12: General | AC12: General | AD12: #+00.00 | AE12: #+00.00 | AF12: General | AG12: General | AH12: General | AI12: General | AJ12: General | AK12: 0.00 | AL12: 0.00 | AM12: 0.00 | AN12: 0.00 | AO12: 0.00 | AP12: 0.00 | AQ12: 0.00 | AR12: 0.00 | AS12: 0.00 | AT12: 0.00 | AU12: 0.00 | AV12: 0.00 | AW12: 0.00 | AX12: 0.00 | AY12: 0.00 | AZ12: General | BB12: 9 | BC12: DLW4 | BD12: DLW4: Dotted Line (White) @ 0.33 | BE12: =1/3 -> 0.3333333333 | BG12: Nonreflective, Preformed Removable Tape
A13: Last Tab DE Starter Row | B13: 57 | C13: =CELL("width",C13) -> 15 | D13: =CELL("width",D13) -> 16 | E13: =CELL("width",E13) -> 16 | G13: =CELL("width",G13) -> 10 | H13: 54 | I13: 4 | J13: 4 | K13: 4 | L13: 10 | M13: 10 | N13: 10 | O13: 10 | P13: 10 | Q13: 10 | R13: 10 | S13: 10 | T13: 10 | U13: 10 | V13: 10 | W13: 10 | X13: 10 | Y13: 10 | Z13: 10 | AA13: 34 | AC13: =CELL("width",AC13) -> 0 | AD13: 0 | AE13: 0 | AF13: 0 | AG13: 0 | AH13: 0 | AI13: 0 | AJ13: 0 | AK13: 0 | AL13: 0 | AM13: 0 | AN13: 0 | AO13: 0 | AP13: 0 | AQ13: 0 | AR13: 0 | AS13: 0 | AT13: 0 | AU13: 0 | AV13: 0 | AW13: 0 | AX13: 0 | AY13: 0 | AZ13: 0 | BB13: new | BC13: DLY4 | BD13: DLY4: Dotted Line (Yellow) @ 0.33 | BE13: =1/3 -> 0.3333333333 | BG13: Removal of Paint
A14: Last Tab TabSheet Starter Row | B14: 15 | C14: A | D14: B | E14: C | G14: D | H14: E | I14: F | J14: G | K14: H | L14: I | M14: J | N14: K | O14: L | P14: M | Q14: N | R14: O | S14: P | T14: Q | U14: R | V14: S | W14: T | X14: U | Y14: V | Z14: W | AA14: X | AC14: =LOWER(C14) -> a | AD14: =LOWER(D14) -> b | AE14: =LOWER(E14) -> c | AF14: =LOWER(G14) -> d | AG14: e | AH14: f | AI14: g | AJ14: h | AK14: i | AL14: j | AM14: k | AN14: l | AO14: m | AP14: n | AQ14: o | AR14: p | AS14: q | AT14: r | AU14: s | AV14: t | AW14: u | AX14: v | AY14: w | AZ14: x | BB14: 7 | BC14: ELW4 | BD14: ELW4: Edge Line Right (White) @ 1.00 | BE14: 1 | BG14: Removal of Permanent Tape
A15: Last Copy Starter Row | B15: 1 | F15: =BB2 -> Old 9001 | H15: =BC2 -> Line Types (See PM-110) | AC15: 108-22 | BB15: 8 | BC15: ELY4 | BD15: ELY4: Edge Line Left (Yellow) @ 1.00 | BE15: 1 | BG15: Removal of Removable Tape
A16: Tab Loop Number | B16: 2 | F16: Detail Number | G16: Key | H16: Description | I16: Factor | J16: 0 | AC16: =B17 -> 2013-04-16 | BB16: new | BC16: LDW8 | BD16: LDW8: Lane Drop (White) @ 0.50 | BE16: 0.5 | BG16: ="Factored Total: "&BG3 -> Factored Total: Waterborne/Solvent Paint | BH16: =SUMIF($H$57:$H$2000,$BG3,L$57:L$2000)*L$43 -> 0 | BI16: 0 | BJ16: 0 | BK16: 0 | BL16: 0 | BM16: 0 | BN16: 0 | BO16: 0 | BP16: 0 | BQ16: 0 | BR16: 0 | BS16: 0 | BT16: 0 | BU16: 0 | BV16: 0
A17: Revision Date | B17: 2013-04-16 | F17: 2 | G17: BCY4* | H17: BCY4: Broken Centerline (Yellow) @ 0.25 | I17: 0.25 | J17: 0 | AC17: =C44 -> PAVEMENT MARKING LINE REMOVALS | BB17: new | BC17: MNY4*** | BD17: MNY4: Median Nose (Yellow) @ 1.00 | BE17: 1 | BG17: Factored Total: Highbuild Waterborne Paint | BH17: 0 | BI17: 0 | BJ17: 0 | BK17: 0 | BL17: 0 | BM17: 0 | BN17: 0 | BO17: 0 | BP17: 0 | BQ17: 0 | BR17: 0 | BS17: 0 | BT17: 0 | BU17: 0 | BV17: 0
A18: Tabulation Width | B18: 4 | F18: 6 | G18: BLW4 | H18: BLW4: Broken Lane Line (White) @ 0.25 | I18: 0.25 | J18: 0 | BB18: 5 | BC18: NPY4** | BD18: NPY4: No Passing Zone Line (Yellow) @ 1.25 | BE18: 1.25 | BG18: Factored Total: Durable Paint | BH18: 0 | BI18: 0 | BJ18: 0 | BK18: 0 | BL18: 0 | BM18: 0 | BN18: 0 | BO18: 0 | BP18: 0 | BQ18: 0 | BR18: 0 | BS18: 0 | BT18: 0 | BU18: 0 | BV18: 0
A19: Horizontal Grid Lines | B19: Yes | F19: new | G19: CBW6 | H19: CBW6: Crosswalk Bar (White) @ 15.00 | I19: 15 | J19: 0 | AC19: =C46 -> See PM-110 | BB19: new | BC19: RLW4 | BD19: RLW4: Ramp Edge Line Right (White) @ 1.00 | BE19: 1 | BG19: Factored Total: Permanent Regular Tape | BH19: 0 | BI19: 0 | BJ19: 0 | BK19: 0 | BL19: 0 | BM19: 0 | BN19: 0 | BO19: 0 | BP19: 0 | BQ19: 0 | BR19: 0 | BS19: 0 | BT19: 0 | BU19: 0 | BV19: 0
F20: 11 | G20: CHW8 | H20: CHW8: Channelizing Line (White) @ 2.00 | I20: 2 | J20: 0 | AC20: =C47 -> *BCY4 - Place on the same side of the roadway to match existing markings near the project. | AH20: =I47 -> ***MNY4 - Factor of 1.00 as value includes number of 4-inch passes to cover median nose area. | BB20: new | BC20: RLY4 | BD20: RLY4: Ramp Edge Line Left (Yellow) @ 1.00 | BE20: 1 | BG20: Factored Total: Permanent Preform Polymer Tape | BH20: 0 | BI20: 0 | BJ20: 0 | BK20: 0 | BL20: 0 | BM20: 0 | BN20: 0 | BO20: 0 | BP20: 0 | BQ20: 0 | BR20: 0 | BS20: 0 | BT20: 0 | BU20: 0 | BV20: 0
F21: 12 | G21: CHY8 | H21: CHY8: Channelizing Line (Yellow) @ 2.00 | I21: 2 | J21: 0 | AC21: =C48 -> **NPY4 - For estimating purposes only. No Passing Zone Lines will be located in the field. | BB21: 13 | BC21: SLW2 | BD21: SLW2: Stop Line (White) @ 6.00 | BE21: 6 | BG21: Factored Total: Permanent Profiled Tape | BH21: 0 | BI21: 0 | BJ21: 0 | BK21: 0 | BL21: 0 | BM21: 0 | BN21: 0 | BO21: 0 | BP21: 0 | BQ21: 0 | BR21: 0 | BS21: 0 | BT21: 0 | BU21: 0 | BV21: 0
F22: 14 | G22: CLW6 | H22: CLW6: Crosswalk Line (White) @ 3.00 | I22: 3 | J22: 0 | AC22: =C50 -> BCY4: Broken Centerline (Yellow) @ 0.25 | AG22: =H50 -> DCY4: Double Centerline (Yellow) @ 2.00 | AL22: =L50 -> NPY4: No Passing Zone Line (Yellow) @ 1.25 | AR22: =R50 -> BLW4: Broken Lane Line (White) @ 0.25 | AX22: =X50 -> ELW4: Edge Line Right (White) @ 1.00 | BB22: 13 | BC22: SLW4 | BD22: SLW4: Solid Lane Line (White) @ 1.00 | BE22: 1 | BG22: Factored Total: Permanent Intersection Tape | BH22: 0 | BI22: 0 | BJ22: 0 | BK22: 0 | BL22: 0 | BM22: 0 | BN22: 0 | BO22: 0 | BP22: 0 | BQ22: 0 | BR22: 0 | BS22: 0 | BT22: 0 | BU22: 0 | BV22: 0
F23: 3 | G23: DCY4 | H23: DCY4: Double Centerline (Yellow) @ 2.00 | I23: 2 | J23: 0 | AC23: =C51 -> ELY4: Edge Line Left (Yellow) @ 1.00 | AG23: =H51 -> SLW4: Solid Lane Line (White) @ 1.00 | AL23: =L51 ->  | AR23: =R51 ->  | AX23: =X51 ->  | BB23: new | BC23: SPW4 | BD23: SPW4: Sloped Curb 4" (White) @ 3.23 | BE23: 3.23 | BG23: Factored Total: Grooves Cut for Pavement Markings | BH23: 0 | BI23: 0 | BJ23: 0 | BK23: 0 | BL23: 0 | BM23: 0 | BN23: 0 | BO23: 0 | BP23: 0 | BQ23: 0 | BR23: 0 | BS23: 0 | BT23: 0 | BU23: 0 | BV23: 0
F24: 18 | G24: DDY4 | H24: DDY4: Double Dotted Line (Yellow) @ 0.67 | I24: 0.6666666667 | J24: 0 | AC24: =C52 ->  | AG24: =H52 ->  | AL24: =L52 ->  | AR24: =R52 ->  | AX24: =X52 ->  | BB24: 16B | BC24: SPW6 | BD24: SPW6: Sloped Curb 6" (White) @ 3.40 | BE24: 3.4 | BG24: Factored Total: Wet Retroreflective Removable Tape | BH24: 0 | BI24: 0 | BJ24: 0 | BK24: 0 | BL24: 0 | BM24: 0 | BN24: 0 | BO24: 0 | BP24: 0 | BQ24: 0 | BR24: 0 | BS24: 0 | BT24: 0 | BU24: 0 | BV24: 0
F25: 9 | G25: DLW4 | H25: DLW4: Dotted Line (White) @ 0.33 | I25: 0.3333333333 | J25: 0 | AC25: =C53 -> Location | AK25: =L53 -> Length by Line Type (Unfactored) | AZ25: =AA53 -> Remarks | BB25: new | BC25: SPY4 | BD25: SPY4: Sloped Curb 4" (Yellow) @ 3.23 | BE25: 3.23 | BG25: Factored Total: Nonreflective, Preformed Removable Tape | BH25: 0 | BI25: 0 | BJ25: 0 | BK25: 0 | BL25: 0 | BM25: 0 | BN25: 0 | BO25: 0 | BP25: 0 | BQ25: 0 | BR25: 0 | BS25: 0 | BT25: 0 | BU25: 0 | BV25: 0
F26: new | G26: DLY4 | H26: DLY4: Dotted Line (Yellow) @ 0.33 | I26: 0.3333333333 | J26: 0 | AC26: =C54 -> Road ID | AD26: =D54 -> Station to Station | AF26: =G54 -> Dir. of Travel | AG26: =H54 -> Marking Type | AH26: =I54 -> Side | AK26: =IF(L54<>"",L54,"") -> BCY4* | AL26: DCY4 | AM26: NPY4** | AN26: BLW4 | AO26: ELW4 | AP26: ELY4 | AQ26: SLW4 | BB26: 15B | BC26: SPY6 | BD26: SPY6: Sloped Curb 6" (Yellow) @ 3.40 | BE26: 3.4 | BG26: Factored Total: Removal of Paint | BH26: 0 | BI26: 0 | BJ26: 0 | BK26: 0 | BL26: 0 | BM26: 0 | BN26: 0 | BO26: 0 | BP26: 0 | BQ26: 0 | BR26: 0 | BS26: 0 | BT26: 0 | BU26: 0 | BV26: 0
F27: 7 | G27: ELW4 | H27: ELW4: Edge Line Right (White) @ 1.00 | I27: 1 | J27: 0 | BB27: 16A | BC27: STW6 | BD27: STW6: Standard Curb 6" (White) @ 3.03 | BE27: 3.03 | BG27: Factored Total: Removal of Permanent Tape | BH27: 0 | BI27: 0 | BJ27: 0 | BK27: 0 | BL27: 0 | BM27: 0 | BN27: 0 | BO27: 0 | BP27: 0 | BQ27: 0 | BR27: 0 | BS27: 0 | BT27: 0 | BU27: 0 | BV27: 0
F28: 8 | G28: ELY4 | H28: ELY4: Edge Line Left (Yellow) @ 1.00 | I28: 1 | J28: 0 | AH28: =I56 -> L | AI28: C | AJ28: R | AK28: STA | AL28: STA | AM28: STA | AN28: STA | AO28: STA | AP28: STA | AQ28: STA | AR28: STA | AS28: STA | AT28: STA | AU28: STA | AV28: STA | AW28: STA | AX28: STA | AY28: STA | BB28: 15A | BC28: STY6 | BD28: STY6: Standard Curb 6" (Yellow) @ 3.03 | BE28: 3.03 | BG28: Factored Total: Removal of Removable Tape | BH28: 0 | BI28: 0 | BJ28: 0 | BK28: 0 | BL28: 0 | BM28: 0 | BN28: 0 | BO28: 0 | BP28: 0 | BQ28: 0 | BR28: 0 | BS28: 0 | BT28: 0 | BU28: 0 | BV28: 0
F29: new | G29: LDW8 | H29: LDW8: Lane Drop (White) @ 0.50 | I29: 0.5 | J29: 0 | BB29: 17 | BC29: YLW2 | BD29: YLW2: Yield Line (White) @ 1.71 | BE29: 1.71 | BG29: Bid Quantity: Painted Pavement Markings, Waterborne or Solvent-Based | BH29: =SUMIF(BH16:BV16,">0",BH16:BV16) -> 0
F30: new | G30: MNY4*** | H30: MNY4: Median Nose (Yellow) @ 1.00 | I30: 1 | J30: 0 | BG30: Bid Quantity: Painted Pavement Markings, Highbuild Waterborne | BH30: 0
F31: 5 | G31: NPY4** | H31: NPY4: No Passing Zone Line (Yellow) @ 1.25 | I31: 1.25 | J31: 0 | BG31: Bid Quantity: Painted Pavement Markings, Durable | BH31: 0
F32: new | G32: RLW4 | H32: RLW4: Ramp Edge Line Right (White) @ 1.00 | I32: 1 | J32: 0 | BG32: Bid Quantity: Permanent Tape Markings, Regular Marking Tape | BH32: 0
F33: new | G33: RLY4 | H33: RLY4: Ramp Edge Line Left (Yellow) @ 1.00 | I33: 1 | J33: 0 | BG33: Bid Quantity: Permanent Tape Markings, Preformed Polymer Marking Material | BH33: 0
F34: 13 | G34: SLW2 | H34: SLW2: Stop Line (White) @ 6.00 | I34: 6 | J34: 0 | BG34: Bid Quantity: Permanent Tape Markings, Profiled Pavement Marking Tape | BH34: 0
F35: 13 | G35: SLW4 | H35: SLW4: Solid Lane Line (White) @ 1.00 | I35: 1 | J35: 0 | BG35: Bid Quantity: Permanent Tape Markings, Intersection Marking Tape | BH35: 0
F36: new | G36: SPW4 | H36: SPW4: Sloped Curb 4" (White) @ 3.23 | I36: 3.23 | J36: 0 | BG36: Bid Quantity: Grooves Cut for Pavement Markings | BH36: 0
F37: 16B | G37: SPW6 | H37: SPW6: Sloped Curb 6" (White) @ 3.40 | I37: 3.4 | J37: 0 | BG37: Bid Quantity: Wet Retroreflective Removable Tape Markings | BH37: 0
F38: new | G38: SPY4 | H38: SPY4: Sloped Curb 4" (Yellow) @ 3.23 | I38: 3.23 | J38: 0 | BG38: Bid Quantity: Removable, Nonreflective, Preformed Tape | BH38: 0
F39: 15B | G39: SPY6 | H39: SPY6: Sloped Curb 6" (Yellow) @ 3.40 | I39: 3.4 | J39: 0 | BG39: Bid Quantity: Pavement Markings Removed | BH39: =SUMIF(BH26:BV26,">0",BH26:BV26)+SUMIF(BH27:BV27,">0",BH27:BV27) -> 0
F40: 16A | G40: STW6 | H40: STW6: Standard Curb 6" (White) @ 3.03 | I40: 3.03 | J40: 0 | BG40: Incidental Removal of Removable Tape | BH40: =SUMIF(BH28:BV28,">0",BH28:BV28) -> 0
F41: 15A | G41: STY6 | H41: STY6: Standard Curb 6" (Yellow) @ 3.03 | I41: 3.03 | J41: 0
F42: 17 | G42: YLW2 | H42: YLW2: Yield Line (White) @ 1.71 | I42: 1.71 | J42: 0
K43: Factors: | L43: =IF(L$54<>"",VLOOKUP(L$54,$BC$4:$BE$29,3,FALSE),0) -> 0.25 | M43: 2 | N43: 1.25 | O43: 0.25 | P43: 1 | Q43: 1 | R43: 1 | S43: 0 | T43: 0 | U43: 0 | V43: 0 | W43: 0 | X43: 0 | Y43: 0 | Z43: 0
C44: PAVEMENT MARKING LINE REMOVALS
C46: See PM-110
C47: *BCY4 - Place on the same side of the roadway to match existing markings near the project. | I47: ***MNY4 - Factor of 1.00 as value includes number of 4-inch passes to cover median nose area.
C48: **NPY4 - For estimating purposes only. No Passing Zone Lines will be located in the field.
C49: ="This Data Entry Sheet fills Tab "&AC15&" effective "&TEXT(B17,"mm-dd-yy") -> This Data Entry Sheet fills Tab 108-22 effective 04-16-13
C50: =IF(L54<>"",VLOOKUP(L54,BC4:BE29,2,FALSE),"") -> BCY4: Broken Centerline (Yellow) @ 0.25 | H50: =IF(M54<>"",VLOOKUP(M54,BC4:BE29,2,FALSE),"") -> DCY4: Double Centerline (Yellow) @ 2.00 | L50: =IF(N54<>"",VLOOKUP(N54,BC4:BE29,2,FALSE),"") -> NPY4: No Passing Zone Line (Yellow) @ 1.25 | R50: =IF(O54<>"",VLOOKUP(O54,BC4:BE29,2,FALSE),"") -> BLW4: Broken Lane Line (White) @ 0.25 | X50: =IF(P54<>"",VLOOKUP(P54,BC4:BE29,2,FALSE),"") -> ELW4: Edge Line Right (White) @ 1.00
C51: =IF(Q54<>"",VLOOKUP(Q54,BC4:BE29,2,FALSE),"") -> ELY4: Edge Line Left (Yellow) @ 1.00 | H51: =IF(R54<>"",VLOOKUP(R54,BC4:BE29,2,FALSE),"") -> SLW4: Solid Lane Line (White) @ 1.00 | L51: =IF(S54<>"",VLOOKUP(S54,BC4:BE29,2,FALSE),"") ->  | R51: =IF(T54<>"",VLOOKUP(T54,BC4:BE29,2,FALSE),"") ->  | X51: =IF(U54<>"",VLOOKUP(U54,BC4:BE29,2,FALSE),"") -> 
C52: =IF(V54<>"",VLOOKUP(V54,BC4:BE29,2,FALSE),"") ->  | H52: =IF(W54<>"",VLOOKUP(W54,BC4:BE29,2,FALSE),"") ->  | L52: =IF(X54<>"",VLOOKUP(X54,BC4:BE29,2,FALSE),"") ->  | R52: =IF(Y54<>"",VLOOKUP(Y54,BC4:BE29,2,FALSE),"") ->  | X52: =IF(Z54<>"",VLOOKUP(Z54,BC4:BE29,2,FALSE),"") -> 
C53: Location | L53: Length by Line Type (Unfactored) | AA53: Remarks
C54: Road ID | D54: Station to Station | F54: Length (STA) | G54: Dir. of Travel | H54: Marking Type | I54: Side | L54: BCY4* | M54: DCY4 | N54: NPY4** | O54: BLW4 | P54: ELW4 | Q54: ELY4 | R54: SLW4
I56: L | J56: C | K56: R | L56: STA | M56: STA | N56: STA | O56: STA | P56: STA | Q56: STA | R56: STA | S56: STA | T56: STA | U56: STA | V56: STA | W56: STA | X56: STA | Y56: STA | Z56: STA
F57: =(ABS(E57-D57))/100 -> 0
C58: Removals prior to Stage 2 construction | F58: 0
F59: 0
C60: Iowa 141 | D60: 5721.17 | E60: 14875.73 | F60: 91.5456 | G60: NB | J60: X | O60: =F60 -> 91.5456 | AA60: NB Iowa 141 centerline
C61: Iowa 141 | D61: 5721.17 | E61: 6290.04 | F61: 5.6887 | G61: NB | I61: X | Q61: =F61 -> 5.6887 | AA61: NB Iowa 141 left edge line - south shift to Johnson
C62: Iowa 141 | D62: 6677.27 | E62: 7585 | F62: 9.0773 | G62: NB | I62: X | Q62: =F62 -> 9.0773 | AA62: NB Iowa 141 left edge line - Johnson to 28th
C63: Iowa 141 | D63: 7999.04 | E63: 9852.04 | F63: 18.53 | G63: NB | I63: X | Q63: =F63 -> 18.53 | AA63: NB Iowa 141 left edge line - 28th to 19th
C64: Iowa 141 | D64: 10617.36 | E64: 12459.97 | F64: 18.4261 | G64: NB | I64: X | Q64: =F64 -> 18.4261 | AA64: NB Iowa 141 left edge line - 19th to 11th
C65: Iowa 141 | D65: 13309.63 | E65: 15113.23 | F65: 18.036 | G65: NB | I65: X | Q65: =F65 -> 18.036 | AA65: NB Iowa 141 left edge line - 11th to north shift
C66: Iowa 141 | D66: 5615 | E66: 7824.76 | F66: 22.0976 | G66: NB | K66: X | P66: =F66 -> 22.0976 | AA66: NB Iowa 141 right edge line - south shift to 28th
C67: Iowa 141 | D67: 7991.11 | E67: 10435.09 | F67: 24.4398 | G67: NB | K67: X | P67: =F67 -> 24.4398 | AA67: NB Iowa 141 right edge line - 28th to 19th
C68: Iowa 141 | D68: 10687.15 | E68: 13094.49 | F68: 24.0734 | G68: NB | K68: X | P68: =F68 -> 24.0734 | AA68: NB Iowa 141 right edge line - 19th to 11th
C69: Iowa 141 | D69: 13316.25 | E69: 14492.95 | F69: 11.767 | G69: NB | K69: X | P69: =F69 -> 11.767 | AA69: NB Iowa 141 right edge line - 11th to end
C70: Iowa 141 | D70: 5927.87 | E70: 15413.56 | F70: 94.8569 | G70: SB | J70: X | O70: =F70 -> 94.8569 | AA70: SB Iowa 141 centerline
C71: Iowa 141 | D71: 13876.27 | E71: 15413.56 | F71: 15.3729 | G71: SB | I71: X | Q71: =F71 -> 15.3729 | AA71: SB Iowa 141 left edge line - 11th to north shift
C72: Iowa 141 | D72: 11199.1 | E72: 13105.31 | F72: 19.0621 | G72: SB | I72: X | Q72: =F72 -> 19.0621 | AA72: SB Iowa 141 left edge line - 19th to 11th
C73: Iowa 141 | D73: 7970.33 | E73: 10394.37 | F73: 24.2404 | G73: SB | I73: X | Q73: =F73 -> 24.2404 | AA73: SB Iowa 141 left edge line - 28th to 19th
C74: Iowa 141 | D74: 6655.16 | E74: 7806.34 | F74: 11.5118 | G74: SB | I74: X | Q74: =F74 -> 11.5118 | AA74: SB Iowa 141 left edge line - Johnson to 28th
C75: Iowa 141 | D75: 5802.67 | E75: 6440.86 | F75: 6.3819 | G75: SB | I75: X | Q75: =F75 -> 6.3819 | AA75: SB Iowa 141 left edge line - south shift to Johnson
C76: Iowa 141 | D76: 13250.81 | E76: 14459.69 | F76: 12.0888 | G76: SB | K76: X | P76: =F76 -> 12.0888 | AA76: SB Iowa 141 right edge line - 11th to north shift
C77: Iowa 141 | D77: 10613.61 | E77: 13032.46 | F77: 24.1885 | G77: SB | K77: X | P77: =F77 -> 24.1885 | AA77: SB Iowa 141 right edge line - 19th to 11th
C78: Iowa 141 | D78: 7950.12 | E78: 10448.62 | F78: 24.985 | G78: SB | K78: X | P78: =F78 -> 24.985 | AA78: SB Iowa 141 right edge line - 28th to 19th
C79: Iowa 141 | D79: 6626.63 | E79: 7811.8 | F79: 11.8517 | G79: SB | K79: X | P79: =F79 -> 11.8517 | AA79: SB Iowa 141 right edge line - Johnson to 28th
C80: Iowa 141 | D80: 6052.6 | E80: 6509.74 | F80: 4.5714 | G80: SB | K80: X | P80: =F80 -> 4.5714 | AA80: SB Iowa 141 right edge line - south shift to Johnson
C81: Iowa 141 | D81: 6377.83 | E81: 6553.48 | F81: 1.7565 | G81: NB | I81: X | R81: =F81 -> 1.7565 | AA81: NB Iowa 141 left turn lane @ Johnson
C82: Iowa 141 | D82: 7634.7 | E82: 7864.2 | F82: 2.295 | G82: NB | I82: X | R82: 2.295 | AA82: NB Iowa 141 left turn lane @ 28th
C83: Iowa 141 | D83: 9985.56 | E83: 10471.04 | F83: 4.8548 | G83: NB | I83: X | R83: 4.8548 | AA83: NB Iowa 141 left turn lane @ 19th
C84: Iowa 141 | D84: 12593.8 | E84: 13122.15 | F84: 5.2835 | G84: NB | I84: X | R84: 5.2835 | AA84: NB Iowa 141 left turn lane @ 11th
C85: Iowa 141 | D85: 13237.54 | E85: 13747.44 | F85: 5.099 | G85: SB | I85: X | R85: 5.099 | AA85: SB Iowa 141 left turn lane @ 11th
C86: Iowa 141 | D86: 10590.08 | E86: 11065.57 | F86: 4.7549 | G86: SB | I86: X | R86: 4.7549 | AA86: SB Iowa 141 left turn lane @ 19th
C87: Iowa 141 | D87: 7927.46 | E87: 8285.25 | F87: 3.5779 | G87: SB | I87: X | R87: 3.5779 | AA87: SB Iowa 141 left turn lane @ 28th
F88: 0
C89: Removal of temporary pavement markings | F89: 0
F90: 0
C91: Iowa 141 | D91: 4122.1 | E91: 4772.38 | F91: 6.5028 | G91: NB | K91: X | P91: =F91 -> 6.5028 | AA91: Removal of edge line prior to TBR
C92: Iowa 141 | D92: 5621.17 | E92: 5946.17 | F92: 3.25 | G92: NB | J92: X | R92: =F92 -> 3.25 | AA92: Removal of shifting taper
C93: Iowa 141 | D93: 5946.17 | E93: 6553.48 | F93: 6.0731 | G93: NB | J93: X | O93: =F93 -> 6.0731 | AA93: Removal of shifted centerline - 37th to Johnson
C94: Iowa 141 | D94: 6605.43 | E94: 7864.2 | F94: 12.5877 | G94: NB | J94: X | O94: =F94 -> 12.5877 | AA94: Removal of shifted centerline - Johnson to 28th
C95: Iowa 141 | D95: 7927.59 | E95: 10471.04 | F95: 25.4345 | G95: NB | J95: X | O95: =F95 -> 25.4345 | AA95: Removal of shifted centerline - 28th to 19th
C96: Iowa 141 | D96: 10590.09 | E96: 13122.15 | F96: 25.3206 | G96: NB | J96: X | O96: =F96 -> 25.3206 | AA96: Removal of shifted centerline - 19th to 11th
C97: Iowa 141 | D97: 13237.54 | E97: 14875.73 | F97: 16.3819 | G97: NB | J97: X | O97: =F97 -> 16.3819 | AA97: Removal shifted centerline - 11th to Iowa 44
C98: Iowa 141 | D98: 14875.73 | E98: 15213.23 | F98: 3.375 | G98: NB | J98: X | R98: =F98 -> 3.375 | AA98: Removal of shifting taper
C99: Iowa 141 | D99: 15176.06 | E99: 15513.56 | F99: 3.375 | G99: SB | J99: X | R99: =F99 -> 3.375 | AA99: Removal of shifting taper
C100: Iowa 141 | D100: 13237.54 | E100: 15176.06 | F100: 19.3852 | G100: SB | J100: X | O100: =F100 -> 19.3852 | AA100: Removal of shifted centerline - 11th to Iowa 44
C101: Iowa 141 | D101: 10590.08 | E101: 13122.02 | F101: 25.3194 | G101: SB | J101: X | O101: =F101 -> 25.3194 | AA101: Removal of shifted centerline - 19th to 11th
C102: Iowa 141 | D102: 7927.46 | E102: 10471.04 | F102: 25.4358 | G102: SB | J102: X | O102: =F102 -> 25.4358 | AA102: Removal of shifted centerline - 28th to 19th
C103: Iowa 141 | D103: 6605.43 | E103: 7864.2 | F103: 12.5877 | G103: SB | J103: X | O103: =F103 -> 12.5877 | AA103: Removal of shifted centerline - Johnson to 28th
C104: Iowa 141 | D104: 6153.44 | E104: 6553.48 | F104: 4.0004 | G104: SB | J104: X | O104: =F104 -> 4.0004 | AA104: Removal of shifted centerline - 37th to Johnson
C105: Iowa 141 | D105: 5827.89 | E105: 6153.44 | F105: 3.2555 | G105: SB | J105: X | R105: =F105 -> 3.2555 | AA105: Removal of shifting taper
F106: 0
C107: Removals after Stage 2 construction | F107: 0
F108: 0
C109: Iowa 141 | D109: 10259.67 | E109: 10468 | F109: 2.0833 | G109: NB | I109: X | R109: =F109 -> 2.0833 | AA109: NB Iowa 141 left turn lane @ 19th
C110: Iowa 141 | D110: 10592 | E110: 10800.33 | F110: 2.0833 | G110: SB | I110: X | R110: =F110 -> 2.0833 | AA110: SB Iowa 141 left turn lane @ 19th
C111: Iowa 141 | D111: 12909.67 | E111: 13118 | F111: 2.0833 | G111: NB | I111: X | R111: =F111 -> 2.0833 | AA111: NB Iowa 141 left turn lane @ 11th
C112: Iowa 141 | D112: 13242 | E112: 13450.33 | F112: 2.0833 | G112: SB | I112: X | R112: =F112 -> 2.0833 | AA112: SB Iowa 141 left turn lane @ 11th
F113: 0
F114: 0
F115: 0
F116: 0
F117: 0
F118: 0
F119: 0
F120: 0
F121: =(ABS(E121-D121))/100 -> 0
F122: 0
F123: 0
F124: 0
F125: 0
F126: 0
F127: 0
F128: 0
F129: 0
F130: 0
F131: 0
F132: 0
F133: 0
F134: 0
F135: 0
F136: 0
F137: 0
F138: 0
F139: 0
F140: 0
F141: 0
F142: 0
F143: 0
F144: 0
F145: 0
F146: 0
F147: 0
F148: 0
F149: 0
F150: 0
F151: 0
F152: 0
F153: 0
F154: 0
F155: 0
F156: 0
F157: 0
F158: 0
F159: 0
F160: 0
F161: 0
F162: 0
F163: 0
F164: 0
F165: 0
F166: 0
F167: 0
F168: 0
F169: 0
F170: 0
F171: 0
F172: 0
F173: 0
F174: 0
F175: 0
F176: 0
F177: 0
F178: 0
F179: 0
F180: 0
F181: 0
F182: 0
F183: 0
F184: 0
F185: =(ABS(E185-D185))/100 -> 0
F186: 0
F187: 0
F188: 0
F189: 0
F190: 0
F191: 0
F192: 0
F193: 0
F194: 0
F195: 0
F196: 0
F197: 0
F198: 0
F199: 0
F200: 0
F201: 0
F202: 0
... 5798 more rows

Sheet DE108_29
A1: TabTitle | B1: =C16 -> PAVEMENT MARKING SYMBOLS AND LEGENDS
A2: Number of Tab Columns | B2: 27
A3: DE Starter Row Number | B3: 25
A4: TabSheet Starter Row Number | B4: 11
A5: TabSheet Header Row Count | B5: 10
A6: Top Header Cell | B6: AE15
A7: Bottom Header Cell | B7: BE24
A8: DESheet Row Count | B8: 0
A9: Fixed Empty Rows | B9: 2
A10: Usable Empty Rows | B10: 0
A11: Total Rows Placed | B11: 2 | C11: xlLeft(1) | D11: xlRight(1) | E11: xlRight(1) | F11: xlRight(1) | G11: xlRight(1) | H11: xlRight(1) | I11: xlRight(1) | J11: xlRight(1) | K11: xlRight(1) | L11: xlRight(1) | M11: xlRight(1) | N11: xlRight(1) | O11: xlRight(1) | P11: xlRight(1) | Q11: xlRight(1) | R11: xlRight(1) | S11: xlRight(1) | T11: xlRight(1) | U11: xlRight(1) | V11: xlRight(1) | W11: xlRight(1) | X11: xlRight(1) | Y11: xlRight(1) | Z11: xlRight(1) | AA11: xlRight(1) | AB11: xlRight(1) | AC11: xlLeft(1) | AE11: =C11 -> xlLeft(1) | AF11: xlRight(1) | AG11: xlRight(1) | AH11: xlRight(1) | AI11: xlRight(1) | AJ11: xlRight(1) | AK11: xlRight(1) | AL11: xlRight(1) | AM11: xlRight(1) | AN11: xlRight(1) | AO11: xlRight(1) | AP11: xlRight(1) | AQ11: =G11 -> xlRight(1) | AR11: =K11 -> xlRight(1) | AS11: xlRight(1) | AT11: xlRight(1) | AU11: xlRight(1) | AV11: xlRight(1) | AW11: xlRight(1) | AX11: xlRight(1) | AY11: xlRight(1) | AZ11: =X11 -> xlRight(1) | BA11: xlRight(1) | BB11: xlRight(1) | BC11: xlRight(1) | BD11: xlRight(1) | BE11: xlLeft(1)
A12: Total Rows Needed | B12: =SUM(B8:B10) -> 2 | C12: General | D12: #+00.00 | E12: General | F12: 0 | G12: 0 | H12: 0 | I12: 0 | J12: 0 | K12: 0 | L12: 0 | M12: 0 | N12: 0 | O12: 0 | P12: 0 | Q12: 0 | R12: 0 | S12: 0 | T12: 0 | U12: 0 | V12: 0 | W12: 0 | X12: 0 | Y12: 0 | Z12: 0 | AA12: 0 | AB12: 0 | AC12: General | AE12: General | AF12: #+00.00 | AG12: General | AH12: 0 | AI12: 0 | AJ12: 0 | AK12: 0 | AL12: 0 | AM12: 0 | AN12: 0 | AO12: 0 | AP12: 0 | AQ12: =G12 -> 0 | AR12: 0 | AS12: 0 | AT12: 0 | AU12: 0 | AV12: 0 | AW12: 0 | AX12: 0 | AY12: 0 | AZ12: 0 | BA12: 0 | BB12: 0 | BC12: 0 | BD12: 0 | BE12: General
A13: Last Tab DE Starter Row | B13: 25 | C13: =CELL("width", C13) -> 21 | D13: 16 | E13: 5 | F13: 10 | G13: 10 | H13: 10 | I13: 10 | J13: 10 | K13: 10 | L13: 10 | M13: 10 | N13: 10 | O13: 10 | P13: 10 | Q13: 10 | R13: 10 | S13: 10 | T13: 10 | U13: 10 | V13: 10 | W13: 10 | X13: 10 | Y13: 10 | Z13: 10 | AA13: 10 | AB13: 10 | AC13: 33 | AE13: =CELL("width", AE13) -> 0 | AF13: 0 | AG13: 0 | AH13: 0 | AI13: 0 | AJ13: 0 | AK13: 0 | AL13: 0 | AM13: 0 | AN13: 0 | AO13: 0 | AP13: 0 | AQ13: 0 | AR13: 0 | AS13: 0 | AT13: 0 | AU13: 0 | AV13: 0 | AW13: 0 | AX13: 0 | AY13: 0 | AZ13: 0 | BA13: 0 | BB13: 0 | BC13: 0 | BD13: 0 | BE13: 0
A14: Last Tab Tabsheet Starter Row | B14: 11 | C14: A | D14: B | E14: C | F14: D | G14: E | H14: F | I14: G | J14: H | K14: I | L14: J | M14: K | N14: L | O14: M | P14: N | Q14: O | R14: P | S14: Q | T14: R | U14: S | V14: T | W14: U | X14: V | Y14: W | Z14: X | AA14: Y | AB14: Z | AC14: AA | AE14: =LOWER(C14) -> a | AF14: b | AG14: c | AH14: d | AI14: e | AJ14: f | AK14: g | AL14: h | AM14: i | AN14: j | AO14: k | AP14: l | AQ14: m | AR14: n | AS14: o | AT14: p | AU14: q | AV14: r | AW14: s | AX14: t | AY14: u | AZ14: v | BA14: w | BB14: x | BC14: y | BD14: z | BE14: aa
A15: Last Copy Starter Row | B15: 1 | E15: Totals: | F15: =SUBTOTAL(9,F25:F600) -> 0 | G15: =SUBTOTAL(9,G25:G600) -> 0 | H15: 0 | I15: 0 | J15: 0 | K15: 0 | L15: 0 | M15: 0 | N15: 0 | O15: 0 | P15: 0 | Q15: 0 | R15: 0 | S15: 0 | T15: 0 | U15: 0 | V15: 0 | W15: 0 | X15: 0 | Y15: 0 | Z15: 0 | AA15: 0 | AB15: 0 | AE15: 108-29
A16: Tab Loop Number | B16: 2 | C16: PAVEMENT MARKING SYMBOLS AND LEGENDS | AE16: =B17 -> 2015-04-21
A17: Revision Date | B17: 2015-04-21 | AE17: =$C$16 -> PAVEMENT MARKING SYMBOLS AND LEGENDS
A18: Tabulation Width | B18: 4 | C18: Refer to PM-111
A19: Horizontal Grid Lines | B19: Yes | C19: ="This Data Entry Sheet fills Tab "&AE15&" effective "&TEXT(B17,"mm-dd-yy") -> This Data Entry Sheet fills Tab 108-29 effective 04-21-15 | AE19: =C18 -> Refer to PM-111
C20: Road Identification | D20: Location | AB20: Groove Cuts | AC20: Remarks | AE20: =C20 -> Road Identification | AF20: =D20 -> Location | BD20: =AB20 -> Groove Cuts | BE20: =$AC$20 -> Remarks
D21: Station | E21: Side | AF21: =D21 -> Station | AG21: =E21 -> Side
F24: STAW | G24: RTAW | H24: LTAW | I24: CSRW | J24: CSLW | K24: CSTW | L24: CRLW | M24: FERW | N24: LLRW | O24: RLRW | P24: RRCW | Q24: BLSW | R24: WCSW | S24: WPSB | T24: SCLW | U24: XNGW | V24: STPW | W24: AHDW | X24: ONLW | Y24: BIKW | Z24: LANW | AA24: XITW | AB24: EACH | AH24: =F24 -> STAW | AI24: RTAW | AJ24: LTAW | AK24: CSRW | AL24: CSLW | AM24: CSTW | AN24: CRLW | AO24: FERW | AP24: LLRW | AQ24: RLRW | AR24: RRCW | AS24: BLSW | AT24: WCSW | AU24: WPSB | AV24: SCLW | AW24: XNGW | AX24: STPW | AY24: AHDW | AZ24: ONLW | BA24: BIKW | BB24: LANW | BC24: XITW | BD24: EACH

Sheet DE108_30
A1: TabTitle | B1: =C16 -> CRASH CUSHIONS
A2: Number of Tab Columns | B2: 21
A3: DE Starter Row Number | B3: 32
A4: TabSheet Starter Row Number | B4: 18
A5: TabSheet Header Row Count | B5: 17
A6: Top Header Cell | B6: Y15
A7: Bottom Header Cell | B7: AS31
A8: DESheet Row Count | B8: 0
A9: Fixed Empty Rows | B9: 2
A10: Usable Empty Rows | B10: 0
A11: Total Rows Placed | B11: 2 | C11: xlRight(1) | D11: xlCenter | E11: xlRight(1) | F11: xlCenter | G11: xlRight(1) | H11: xlCenter | I11: xlCenter | J11: xlCenter | K11: xlCenter | L11: xlCenter | M11: xlRight(1) | N11: xlRight(1) | O11: xlRight(1) | P11: xlRight(1) | Q11: xlRight(1) | R11: xlRight(1) | S11: xlRight(1) | T11: xlRight(1) | U11: xlRight(1) | V11: xlLeft(1) | W11: xlLeft(1) | Y11: =C11 -> xlRight(1) | Z11: xlCenter | AA11: xlRight(1) | AB11: xlCenter | AC11: xlRight(1) | AD11: xlCenter | AE11: xlCenter | AF11: xlCenter | AG11: xlCenter | AH11: xlCenter | AI11: xlRight(1) | AJ11: xlRight(1) | AK11: xlRight(1) | AL11: xlRight(1) | AM11: xlRight(1) | AN11: xlRight(1) | AO11: =S11 -> xlRight(1) | AP11: xlRight(1) | AQ11: xlRight(1) | AR11: xlLeft(1) | AS11: xlLeft(1)
A12: Total Rows Needed | B12: =SUM(B8:B10) -> 2 | C12: General | D12: General | E12: #+00.00 | F12: General | G12: 0.00 | H12: General | I12: General | J12: General | K12: General | L12: General | M12: 0.00 | N12: 0.00 | O12: 0.00 | P12: 0.00 | Q12: 0.00 | R12: 0.0 | S12: 0.0 | T12: 0 | U12: 0 | V12: General | W12: General | Y12: General | Z12: General | AA12: #+00.00 | AB12: General | AC12: 0.00 | AD12: General | AE12: General | AF12: General | AG12: General | AH12: General | AI12: 0.00 | AJ12: 0.00 | AK12: 0.00 | AL12: 0.00 | AM12: 0.00 | AN12: 0.0 | AO12: 0.0 | AP12: 0 | AQ12: 0 | AR12: General | AS12: General
A13: Last Tab DE Starter Row | B13: 32 | C13: =CELL("width", C13) -> 6 | D13: 6 | E13: 18 | F13: 6 | G13: 9 | H13: 9 | I13: 9 | J13: 9 | K13: 9 | L13: 9 | M13: 9 | N13: 9 | O13: 9 | P13: 9 | Q13: 9 | R13: 9 | S13: 9 | T13: 9 | U13: 9 | V13: 40 | W13: 13 | Y13: =CELL("width", Y13) -> 0 | Z13: 0 | AA13: 0 | AB13: 0 | AC13: 0 | AD13: 0 | AE13: 0 | AF13: 0 | AG13: 0 | AH13: 0 | AI13: 0 | AJ13: 0 | AK13: 0 | AL13: 0 | AM13: 0 | AN13: 0 | AO13: 0 | AP13: 0 | AQ13: 0 | AR13: 0 | AS13: 0
A14: Last Tab Tabsheet Starter Row | B14: 18 | C14: A | D14: B | E14: C | F14: D | G14: E | H14: F | I14: G | J14: H | K14: I | L14: J | M14: K | N14: L | O14: M | P14: N | Q14: O | R14: P | S14: Q | T14: R | U14: S | V14: T | W14: U | Y14: =LOWER(C14) -> a | Z14: b | AA14: c | AB14: d | AC14: e | AD14: f | AE14: g | AF14: h | AG14: i | AH14: j | AI14: k | AJ14: l | AK14: m | AL14: n | AM14: o | AN14: p | AO14: q | AP14: r | AQ14: s | AR14: t | AS14: u
A15: Last Copy Starter Row | B15: 1 | G15: Totals: | H15: =COUNTA(H32:H6000) -> 0 | I15: =COUNTA(I32:I6000) -> 0 | J15: =COUNTA(J32:J6000) -> 0 | K15: =COUNTA(K32:K6000) -> 0 | L15: =COUNTA(L32:L6000) -> 0 | R15: =SUBTOTAL(9,R31:R6000) -> 0 | S15: =SUBTOTAL(9,S31:S6000) -> 0 | T15: =SUBTOTAL(9,T31:T6000,U31:U6000) -> 0 | Y15: 108-30
A16: Tab Loop Number | B16: 2 | C16: CRASH CUSHIONS | Y16: =B17 -> 2013-04-16
A17: Revision Date | B17: 2013-04-16 | Y17: =C16 -> CRASH CUSHIONS
A18: Tabulation Width | B18: 3
A19: Horizontal Grid Lines | B19: Yes | C19: * Bid Item
C20: Lane(s) to which the installation is adjacent. | Y20: =C19 -> * Bid Item
C21: Complete this section when using the Temporary Crash Cushion bid item and Earthwork is needed for Sand Barrel placement. Refer to BA-500 | Y21: =C20 -> Lane(s) to which the installation is adjacent.
C22: ="This Data Entry Sheet fills Tab "&Y15&" effective "&TEXT(B17,"mm-dd-yy") -> This Data Entry Sheet fills Tab 108-30 effective 04-16-13 | Y22: =C21 -> Complete this section when using the Temporary Crash Cushion bid item and Earthwork is needed for Sand Barrel placement. Refer to BA-500
C23: No. | D23: Direction of Traffic | E23: Location Station | F23: Side | G23: Obstacle Width | H23: Crash Cushion (Select One)* | M23: Sand Barrel Details | R23: Earthwork* | T23: Spare Parts Kit (Select One)* | V23: Obstacle Description | W23: Remarks | Y23: =C23 -> No. | Z23: Direction of Traffic | AA23: Location Station | AB23: Side | AC23: Obstacle Width | AD23: Crash Cushion (Select One)* | AI23: =M23 -> Sand Barrel Details | AN23: =R23 -> Earthwork* | AP23: =T23 -> Spare Parts Kit (Select One)* | AR23: =V23 -> Obstacle Description | AS23: =W23 -> Remarks
H25: Temporary | I25: Temporary Redirective | J25: Temporary Severe Use | K25: Permanent | L25: Permanent Severe Use | R25: Excavation Class 10 | S25: Embankment in Place | AD25: =H25 -> Temporary | AE25: =I25 -> Temporary Redirective | AF25: =J25 -> Temporary Severe Use | AG25: =K25 -> Permanent | AH25: =L25 -> Permanent Severe Use | AN25: =R25 -> Excavation Class 10 | AO25: =S25 -> Embankment in Place
T26: Permanent | U26: Permanent Severe Use | AP26: =T26 -> Permanent | AQ26: =U26 -> Permanent Severe Use
M28: Length | N28: Length | O28: Length | P28: Length | Q28: Length | AI28: =M28 -> Length | AJ28: =N28 -> Length | AK28: =O28 -> Length | AL28: =P28 -> Length | AM28: =Q28 -> Length
G31: FT | H31: EACH | I31: EACH | J31: EACH | K31: EACH | L31: EACH | M31: FT | N31: FT | O31: FT | P31: FT | Q31: FT | R31: CY | S31: CY | T31: EACH | U31: EACH | AC31: =G31 -> FT | AI31: =M31 -> FT | AJ31: FT | AK31: FT | AL31: FT | AM31: FT | AN31: CY | AO31: CY | AP31: EACH | AQ31: EACH
N32: =IF(AND(G32<>"",H32<>""),IF(G32<=3.5,24.25,IF(AND(G32>3.5,G32<=10.58),25,IF(AND(G32>10.58,G32<=17.75),25.75,26.6))),"") ->  | O32: =IF(N32<>"",IF(N32=24.25,M32+5.25,IF(N32=25,M32+12.25,IF(N32=25.75,M32+19.25,M32+26.25))),"") ->  | P32: =IF(N32<>"",IF(N32=24.25,M32+3.25,IF(N32=25,M32+10,IF(N32=25.75,M32+17,M32+24))),"") ->  | Q32: =IF(N32<>"",IF(N32=24.25,(0.268*M32)+12,IF(N32=25,(0.268*M32)+38,IF(N32=25.75,(0.268*M32)+64,(0.268*M32)+89))),"") -> 
N96: =IF(AND(G96<>"",H96<>""),IF(G96<=3.5,24.25,IF(AND(G96>3.5,G96<=10.58),25,IF(AND(G96>10.58,G96<=17.75),25.75,26.6))),"") ->  | O96: =IF(N96<>"",IF(N96=24.25,M96+5.25,IF(N96=25,M96+12.25,IF(N96=25.75,M96+19.25,M96+26.25))),"") ->  | P96: =IF(N96<>"",IF(N96=24.25,M96+3.25,IF(N96=25,M96+10,IF(N96=25.75,M96+17,M96+24))),"") ->  | Q96: =IF(N96<>"",IF(N96=24.25,(0.268*M96)+12,IF(N96=25,(0.268*M96)+38,IF(N96=25.75,(0.268*M96)+64,(0.268*M96)+89))),"") -> 
N160: =IF(AND(G160<>"",H160<>""),IF(G160<=3.5,24.25,IF(AND(G160>3.5,G160<=10.58),25,IF(AND(G160>10.58,G160<=17.75),25.75,26.6))),"") ->  | O160: =IF(N160<>"",IF(N160=24.25,M160+5.25,IF(N160=25,M160+12.25,IF(N160=25.75,M160+19.25,M160+26.25))),"") ->  | P160: =IF(N160<>"",IF(N160=24.25,M160+3.25,IF(N160=25,M160+10,IF(N160=25.75,M160+17,M160+24))),"") ->  | Q160: =IF(N160<>"",IF(N160=24.25,(0.268*M160)+12,IF(N160=25,(0.268*M160)+38,IF(N160=25.75,(0.268*M160)+64,(0.268*M160)+89))),"") -> 
N224: =IF(AND(G224<>"",H224<>""),IF(G224<=3.5,24.25,IF(AND(G224>3.5,G224<=10.58),25,IF(AND(G224>10.58,G224<=17.75),25.75,26.6))),"") ->  | O224: =IF(N224<>"",IF(N224=24.25,M224+5.25,IF(N224=25,M224+12.25,IF(N224=25.75,M224+19.25,M224+26.25))),"") ->  | P224: =IF(N224<>"",IF(N224=24.25,M224+3.25,IF(N224=25,M224+10,IF(N224=25.75,M224+17,M224+24))),"") ->  | Q224: =IF(N224<>"",IF(N224=24.25,(0.268*M224)+12,IF(N224=25,(0.268*M224)+38,IF(N224=25.75,(0.268*M224)+64,(0.268*M224)+89))),"") -> 
N288: =IF(AND(G288<>"",H288<>""),IF(G288<=3.5,24.25,IF(AND(G288>3.5,G288<=10.58),25,IF(AND(G288>10.58,G288<=17.75),25.75,26.6))),"") ->  | O288: =IF(N288<>"",IF(N288=24.25,M288+5.25,IF(N288=25,M288+12.25,IF(N288=25.75,M288+19.25,M288+26.25))),"") ->  | P288: =IF(N288<>"",IF(N288=24.25,M288+3.25,IF(N288=25,M288+10,IF(N288=25.75,M288+17,M288+24))),"") ->  | Q288: =IF(N288<>"",IF(N288=24.25,(0.268*M288)+12,IF(N288=25,(0.268*M288)+38,IF(N288=25.75,(0.268*M288)+64,(0.268*M288)+89))),"") -> 
N352: =IF(AND(G352<>"",H352<>""),IF(G352<=3.5,24.25,IF(AND(G352>3.5,G352<=10.58),25,IF(AND(G352>10.58,G352<=17.75),25.75,26.6))),"") ->  | O352: =IF(N352<>"",IF(N352=24.25,M352+5.25,IF(N352=25,M352+12.25,IF(N352=25.75,M352+19.25,M352+26.25))),"") ->  | P352: =IF(N352<>"",IF(N352=24.25,M352+3.25,IF(N352=25,M352+10,IF(N352=25.75,M352+17,M352+24))),"") ->  | Q352: =IF(N352<>"",IF(N352=24.25,(0.268*M352)+12,IF(N352=25,(0.268*M352)+38,IF(N352=25.75,(0.268*M352)+64,(0.268*M352)+89))),"") -> 
N416: =IF(AND(G416<>"",H416<>""),IF(G416<=3.5,24.25,IF(AND(G416>3.5,G416<=10.58),25,IF(AND(G416>10.58,G416<=17.75),25.75,26.6))),"") ->  | O416: =IF(N416<>"",IF(N416=24.25,M416+5.25,IF(N416=25,M416+12.25,IF(N416=25.75,M416+19.25,M416+26.25))),"") ->  | P416: =IF(N416<>"",IF(N416=24.25,M416+3.25,IF(N416=25,M416+10,IF(N416=25.75,M416+17,M416+24))),"") ->  | Q416: =IF(N416<>"",IF(N416=24.25,(0.268*M416)+12,IF(N416=25,(0.268*M416)+38,IF(N416=25.75,(0.268*M416)+64,(0.268*M416)+89))),"") -> 
N480: =IF(AND(G480<>"",H480<>""),IF(G480<=3.5,24.25,IF(AND(G480>3.5,G480<=10.58),25,IF(AND(G480>10.58,G480<=17.75),25.75,26.6))),"") ->  | O480: =IF(N480<>"",IF(N480=24.25,M480+5.25,IF(N480=25,M480+12.25,IF(N480=25.75,M480+19.25,M480+26.25))),"") ->  | P480: =IF(N480<>"",IF(N480=24.25,M480+3.25,IF(N480=25,M480+10,IF(N480=25.75,M480+17,M480+24))),"") ->  | Q480: =IF(N480<>"",IF(N480=24.25,(0.268*M480)+12,IF(N480=25,(0.268*M480)+38,IF(N480=25.75,(0.268*M480)+64,(0.268*M480)+89))),"") -> 
N544: =IF(AND(G544<>"",H544<>""),IF(G544<=3.5,24.25,IF(AND(G544>3.5,G544<=10.58),25,IF(AND(G544>10.58,G544<=17.75),25.75,26.6))),"") ->  | O544: =IF(N544<>"",IF(N544=24.25,M544+5.25,IF(N544=25,M544+12.25,IF(N544=25.75,M544+19.25,M544+26.25))),"") ->  | P544: =IF(N544<>"",IF(N544=24.25,M544+3.25,IF(N544=25,M544+10,IF(N544=25.75,M544+17,M544+24))),"") ->  | Q544: =IF(N544<>"",IF(N544=24.25,(0.268*M544)+12,IF(N544=25,(0.268*M544)+38,IF(N544=25.75,(0.268*M544)+64,(0.268*M544)+89))),"") -> 
N608: =IF(AND(G608<>"",H608<>""),IF(G608<=3.5,24.25,IF(AND(G608>3.5,G608<=10.58),25,IF(AND(G608>10.58,G608<=17.75),25.75,26.6))),"") ->  | O608: =IF(N608<>"",IF(N608=24.25,M608+5.25,IF(N608=25,M608+12.25,IF(N608=25.75,M608+19.25,M608+26.25))),"") ->  | P608: =IF(N608<>"",IF(N608=24.25,M608+3.25,IF(N608=25,M608+10,IF(N608=25.75,M608+17,M608+24))),"") ->  | Q608: =IF(N608<>"",IF(N608=24.25,(0.268*M608)+12,IF(N608=25,(0.268*M608)+38,IF(N608=25.75,(0.268*M608)+64,(0.268*M608)+89))),"") -> 
N672: =IF(AND(G672<>"",H672<>""),IF(G672<=3.5,24.25,IF(AND(G672>3.5,G672<=10.58),25,IF(AND(G672>10.58,G672<=17.75),25.75,26.6))),"") ->  | O672: =IF(N672<>"",IF(N672=24.25,M672+5.25,IF(N672=25,M672+12.25,IF(N672=25.75,M672+19.25,M672+26.25))),"") ->  | P672: =IF(N672<>"",IF(N672=24.25,M672+3.25,IF(N672=25,M672+10,IF(N672=25.75,M672+17,M672+24))),"") ->  | Q672: =IF(N672<>"",IF(N672=24.25,(0.268*M672)+12,IF(N672=25,(0.268*M672)+38,IF(N672=25.75,(0.268*M672)+64,(0.268*M672)+89))),"") -> 
N736: =IF(AND(G736<>"",H736<>""),IF(G736<=3.5,24.25,IF(AND(G736>3.5,G736<=10.58),25,IF(AND(G736>10.58,G736<=17.75),25.75,26.6))),"") ->  | O736: =IF(N736<>"",IF(N736=24.25,M736+5.25,IF(N736=25,M736+12.25,IF(N736=25.75,M736+19.25,M736+26.25))),"") ->  | P736: =IF(N736<>"",IF(N736=24.25,M736+3.25,IF(N736=25,M736+10,IF(N736=25.75,M736+17,M736+24))),"") ->  | Q736: =IF(N736<>"",IF(N736=24.25,(0.268*M736)+12,IF(N736=25,(0.268*M736)+38,IF(N736=25.75,(0.268*M736)+64,(0.268*M736)+89))),"") -> 
N800: =IF(AND(G800<>"",H800<>""),IF(G800<=3.5,24.25,IF(AND(G800>3.5,G800<=10.58),25,IF(AND(G800>10.58,G800<=17.75),25.75,26.6))),"") ->  | O800: =IF(N800<>"",IF(N800=24.25,M800+5.25,IF(N800=25,M800+12.25,IF(N800=25.75,M800+19.25,M800+26.25))),"") ->  | P800: =IF(N800<>"",IF(N800=24.25,M800+3.25,IF(N800=25,M800+10,IF(N800=25.75,M800+17,M800+24))),"") ->  | Q800: =IF(N800<>"",IF(N800=24.25,(0.268*M800)+12,IF(N800=25,(0.268*M800)+38,IF(N800=25.75,(0.268*M800)+64,(0.268*M800)+89))),"") -> 
N864: =IF(AND(G864<>"",H864<>""),IF(G864<=3.5,24.25,IF(AND(G864>3.5,G864<=10.58),25,IF(AND(G864>10.58,G864<=17.75),25.75,26.6))),"") ->  | O864: =IF(N864<>"",IF(N864=24.25,M864+5.25,IF(N864=25,M864+12.25,IF(N864=25.75,M864+19.25,M864+26.25))),"") ->  | P864: =IF(N864<>"",IF(N864=24.25,M864+3.25,IF(N864=25,M864+10,IF(N864=25.75,M864+17,M864+24))),"") ->  | Q864: =IF(N864<>"",IF(N864=24.25,(0.268*M864)+12,IF(N864=25,(0.268*M864)+38,IF(N864=25.75,(0.268*M864)+64,(0.268*M864)+89))),"") -> 
N928: =IF(AND(G928<>"",H928<>""),IF(G928<=3.5,24.25,IF(AND(G928>3.5,G928<=10.58),25,IF(AND(G928>10.58,G928<=17.75),25.75,26.6))),"") ->  | O928: =IF(N928<>"",IF(N928=24.25,M928+5.25,IF(N928=25,M928+12.25,IF(N928=25.75,M928+19.25,M928+26.25))),"") ->  | P928: =IF(N928<>"",IF(N928=24.25,M928+3.25,IF(N928=25,M928+10,IF(N928=25.75,M928+17,M928+24))),"") ->  | Q928: =IF(N928<>"",IF(N928=24.25,(0.268*M928)+12,IF(N928=25,(0.268*M928)+38,IF(N928=25.75,(0.268*M928)+64,(0.268*M928)+89))),"") -> 
N992: =IF(AND(G992<>"",H992<>""),IF(G992<=3.5,24.25,IF(AND(G992>3.5,G992<=10.58),25,IF(AND(G992>10.58,G992<=17.75),25.75,26.6))),"") ->  | O992: =IF(N992<>"",IF(N992=24.25,M992+5.25,IF(N992=25,M992+12.25,IF(N992=25.75,M992+19.25,M992+26.25))),"") ->  | P992: =IF(N992<>"",IF(N992=24.25,M992+3.25,IF(N992=25,M992+10,IF(N992=25.75,M992+17,M992+24))),"") ->  | Q992: =IF(N992<>"",IF(N992=24.25,(0.268*M992)+12,IF(N992=25,(0.268*M992)+38,IF(N992=25.75,(0.268*M992)+64,(0.268*M992)+89))),"") -> 
N1056: =IF(AND(G1056<>"",H1056<>""),IF(G1056<=3.5,24.25,IF(AND(G1056>3.5,G1056<=10.58),25,IF(AND(G1056>10.58,G1056<=17.75),25.75,26.6))),"") ->  | O1056: =IF(N1056<>"",IF(N1056=24.25,M1056+5.25,IF(N1056=25,M1056+12.25,IF(N1056=25.75,M1056+19.25,M1056+26.25))),"") ->  | P1056: =IF(N1056<>"",IF(N1056=24.25,M1056+3.25,IF(N1056=25,M1056+10,IF(N1056=25.75,M1056+17,M1056+24))),"") ->  | Q1056: =IF(N1056<>"",IF(N1056=24.25,(0.268*M1056)+12,IF(N1056=25,(0.268*M1056)+38,IF(N1056=25.75,(0.268*M1056)+64,(0.268*M1056)+89))),"") -> 
N1120: =IF(AND(G1120<>"",H1120<>""),IF(G1120<=3.5,24.25,IF(AND(G1120>3.5,G1120<=10.58),25,IF(AND(G1120>10.58,G1120<=17.75),25.75,26.6))),"") ->  | O1120: =IF(N1120<>"",IF(N1120=24.25,M1120+5.25,IF(N1120=25,M1120+12.25,IF(N1120=25.75,M1120+19.25,M1120+26.25))),"") ->  | P1120: =IF(N1120<>"",IF(N1120=24.25,M1120+3.25,IF(N1120=25,M1120+10,IF(N1120=25.75,M1120+17,M1120+24))),"") ->  | Q1120: =IF(N1120<>"",IF(N1120=24.25,(0.268*M1120)+12,IF(N1120=25,(0.268*M1120)+38,IF(N1120=25.75,(0.268*M1120)+64,(0.268*M1120)+89))),"") -> 
N1184: =IF(AND(G1184<>"",H1184<>""),IF(G1184<=3.5,24.25,IF(AND(G1184>3.5,G1184<=10.58),25,IF(AND(G1184>10.58,G1184<=17.75),25.75,26.6))),"") ->  | O1184: =IF(N1184<>"",IF(N1184=24.25,M1184+5.25,IF(N1184=25,M1184+12.25,IF(N1184=25.75,M1184+19.25,M1184+26.25))),"") ->  | P1184: =IF(N1184<>"",IF(N1184=24.25,M1184+3.25,IF(N1184=25,M1184+10,IF(N1184=25.75,M1184+17,M1184+24))),"") ->  | Q1184: =IF(N1184<>"",IF(N1184=24.25,(0.268*M1184)+12,IF(N1184=25,(0.268*M1184)+38,IF(N1184=25.75,(0.268*M1184)+64,(0.268*M1184)+89))),"") -> 
N1248: =IF(AND(G1248<>"",H1248<>""),IF(G1248<=3.5,24.25,IF(AND(G1248>3.5,G1248<=10.58),25,IF(AND(G1248>10.58,G1248<=17.75),25.75,26.6))),"") ->  | O1248: =IF(N1248<>"",IF(N1248=24.25,M1248+5.25,IF(N1248=25,M1248+12.25,IF(N1248=25.75,M1248+19.25,M1248+26.25))),"") ->  | P1248: =IF(N1248<>"",IF(N1248=24.25,M1248+3.25,IF(N1248=25,M1248+10,IF(N1248=25.75,M1248+17,M1248+24))),"") ->  | Q1248: =IF(N1248<>"",IF(N1248=24.25,(0.268*M1248)+12,IF(N1248=25,(0.268*M1248)+38,IF(N1248=25.75,(0.268*M1248)+64,(0.268*M1248)+89))),"") -> 
N1312: =IF(AND(G1312<>"",H1312<>""),IF(G1312<=3.5,24.25,IF(AND(G1312>3.5,G1312<=10.58),25,IF(AND(G1312>10.58,G1312<=17.75),25.75,26.6))),"") ->  | O1312: =IF(N1312<>"",IF(N1312=24.25,M1312+5.25,IF(N1312=25,M1312+12.25,IF(N1312=25.75,M1312+19.25,M1312+26.25))),"") ->  | P1312: =IF(N1312<>"",IF(N1312=24.25,M1312+3.25,IF(N1312=25,M1312+10,IF(N1312=25.75,M1312+17,M1312+24))),"") ->  | Q1312: =IF(N1312<>"",IF(N1312=24.25,(0.268*M1312)+12,IF(N1312=25,(0.268*M1312)+38,IF(N1312=25.75,(0.268*M1312)+64,(0.268*M1312)+89))),"") -> 
N1376: =IF(AND(G1376<>"",H1376<>""),IF(G1376<=3.5,24.25,IF(AND(G1376>3.5,G1376<=10.58),25,IF(AND(G1376>10.58,G1376<=17.75),25.75,26.6))),"") ->  | O1376: =IF(N1376<>"",IF(N1376=24.25,M1376+5.25,IF(N1376=25,M1376+12.25,IF(N1376=25.75,M1376+19.25,M1376+26.25))),"") ->  | P1376: =IF(N1376<>"",IF(N1376=24.25,M1376+3.25,IF(N1376=25,M1376+10,IF(N1376=25.75,M1376+17,M1376+24))),"") ->  | Q1376: =IF(N1376<>"",IF(N1376=24.25,(0.268*M1376)+12,IF(N1376=25,(0.268*M1376)+38,IF(N1376=25.75,(0.268*M1376)+64,(0.268*M1376)+89))),"") -> 
N1440: =IF(AND(G1440<>"",H1440<>""),IF(G1440<=3.5,24.25,IF(AND(G1440>3.5,G1440<=10.58),25,IF(AND(G1440>10.58,G1440<=17.75),25.75,26.6))),"") ->  | O1440: =IF(N1440<>"",IF(N1440=24.25,M1440+5.25,IF(N1440=25,M1440+12.25,IF(N1440=25.75,M1440+19.25,M1440+26.25))),"") ->  | P1440: =IF(N1440<>"",IF(N1440=24.25,M1440+3.25,IF(N1440=25,M1440+10,IF(N1440=25.75,M1440+17,M1440+24))),"") ->  | Q1440: =IF(N1440<>"",IF(N1440=24.25,(0.268*M1440)+12,IF(N1440=25,(0.268*M1440)+38,IF(N1440=25.75,(0.268*M1440)+64,(0.268*M1440)+89))),"") -> 
N1504: =IF(AND(G1504<>"",H1504<>""),IF(G1504<=3.5,24.25,IF(AND(G1504>3.5,G1504<=10.58),25,IF(AND(G1504>10.58,G1504<=17.75),25.75,26.6))),"") ->  | O1504: =IF(N1504<>"",IF(N1504=24.25,M1504+5.25,IF(N1504=25,M1504+12.25,IF(N1504=25.75,M1504+19.25,M1504+26.25))),"") ->  | P1504: =IF(N1504<>"",IF(N1504=24.25,M1504+3.25,IF(N1504=25,M1504+10,IF(N1504=25.75,M1504+17,M1504+24))),"") ->  | Q1504: =IF(N1504<>"",IF(N1504=24.25,(0.268*M1504)+12,IF(N1504=25,(0.268*M1504)+38,IF(N1504=25.75,(0.268*M1504)+64,(0.268*M1504)+89))),"") -> 
N1568: =IF(AND(G1568<>"",H1568<>""),IF(G1568<=3.5,24.25,IF(AND(G1568>3.5,G1568<=10.58),25,IF(AND(G1568>10.58,G1568<=17.75),25.75,26.6))),"") ->  | O1568: =IF(N1568<>"",IF(N1568=24.25,M1568+5.25,IF(N1568=25,M1568+12.25,IF(N1568=25.75,M1568+19.25,M1568+26.25))),"") ->  | P1568: =IF(N1568<>"",IF(N1568=24.25,M1568+3.25,IF(N1568=25,M1568+10,IF(N1568=25.75,M1568+17,M1568+24))),"") ->  | Q1568: =IF(N1568<>"",IF(N1568=24.25,(0.268*M1568)+12,IF(N1568=25,(0.268*M1568)+38,IF(N1568=25.75,(0.268*M1568)+64,(0.268*M1568)+89))),"") -> 
N1632: =IF(AND(G1632<>"",H1632<>""),IF(G1632<=3.5,24.25,IF(AND(G1632>3.5,G1632<=10.58),25,IF(AND(G1632>10.58,G1632<=17.75),25.75,26.6))),"") ->  | O1632: =IF(N1632<>"",IF(N1632=24.25,M1632+5.25,IF(N1632=25,M1632+12.25,IF(N1632=25.75,M1632+19.25,M1632+26.25))),"") ->  | P1632: =IF(N1632<>"",IF(N1632=24.25,M1632+3.25,IF(N1632=25,M1632+10,IF(N1632=25.75,M1632+17,M1632+24))),"") ->  | Q1632: =IF(N1632<>"",IF(N1632=24.25,(0.268*M1632)+12,IF(N1632=25,(0.268*M1632)+38,IF(N1632=25.75,(0.268*M1632)+64,(0.268*M1632)+89))),"") -> 
N1696: =IF(AND(G1696<>"",H1696<>""),IF(G1696<=3.5,24.25,IF(AND(G1696>3.5,G1696<=10.58),25,IF(AND(G1696>10.58,G1696<=17.75),25.75,26.6))),"") ->  | O1696: =IF(N1696<>"",IF(N1696=24.25,M1696+5.25,IF(N1696=25,M1696+12.25,IF(N1696=25.75,M1696+19.25,M1696+26.25))),"") ->  | P1696: =IF(N1696<>"",IF(N1696=24.25,M1696+3.25,IF(N1696=25,M1696+10,IF(N1696=25.75,M1696+17,M1696+24))),"") ->  | Q1696: =IF(N1696<>"",IF(N1696=24.25,(0.268*M1696)+12,IF(N1696=25,(0.268*M1696)+38,IF(N1696=25.75,(0.268*M1696)+64,(0.268*M1696)+89))),"") -> 
N1760: =IF(AND(G1760<>"",H1760<>""),IF(G1760<=3.5,24.25,IF(AND(G1760>3.5,G1760<=10.58),25,IF(AND(G1760>10.58,G1760<=17.75),25.75,26.6))),"") ->  | O1760: =IF(N1760<>"",IF(N1760=24.25,M1760+5.25,IF(N1760=25,M1760+12.25,IF(N1760=25.75,M1760+19.25,M1760+26.25))),"") ->  | P1760: =IF(N1760<>"",IF(N1760=24.25,M1760+3.25,IF(N1760=25,M1760+10,IF(N1760=25.75,M1760+17,M1760+24))),"") ->  | Q1760: =IF(N1760<>"",IF(N1760=24.25,(0.268*M1760)+12,IF(N1760=25,(0.268*M1760)+38,IF(N1760=25.75,(0.268*M1760)+64,(0.268*M1760)+89))),"") -> 
N1824: =IF(AND(G1824<>"",H1824<>""),IF(G1824<=3.5,24.25,IF(AND(G1824>3.5,G1824<=10.58),25,IF(AND(G1824>10.58,G1824<=17.75),25.75,26.6))),"") ->  | O1824: =IF(N1824<>"",IF(N1824=24.25,M1824+5.25,IF(N1824=25,M1824+12.25,IF(N1824=25.75,M1824+19.25,M1824+26.25))),"") ->  | P1824: =IF(N1824<>"",IF(N1824=24.25,M1824+3.25,IF(N1824=25,M1824+10,IF(N1824=25.75,M1824+17,M1824+24))),"") ->  | Q1824: =IF(N1824<>"",IF(N1824=24.25,(0.268*M1824)+12,IF(N1824=25,(0.268*M1824)+38,IF(N1824=25.75,(0.268*M1824)+64,(0.268*M1824)+89))),"") -> 
N1888: =IF(AND(G1888<>"",H1888<>""),IF(G1888<=3.5,24.25,IF(AND(G1888>3.5,G1888<=10.58),25,IF(AND(G1888>10.58,G1888<=17.75),25.75,26.6))),"") ->  | O1888: =IF(N1888<>"",IF(N1888=24.25,M1888+5.25,IF(N1888=25,M1888+12.25,IF(N1888=25.75,M1888+19.25,M1888+26.25))),"") ->  | P1888: =IF(N1888<>"",IF(N1888=24.25,M1888+3.25,IF(N1888=25,M1888+10,IF(N1888=25.75,M1888+17,M1888+24))),"") ->  | Q1888: =IF(N1888<>"",IF(N1888=24.25,(0.268*M1888)+12,IF(N1888=25,(0.268*M1888)+38,IF(N1888=25.75,(0.268*M1888)+64,(0.268*M1888)+89))),"") -> 
N1952: =IF(AND(G1952<>"",H1952<>""),IF(G1952<=3.5,24.25,IF(AND(G1952>3.5,G1952<=10.58),25,IF(AND(G1952>10.58,G1952<=17.75),25.75,26.6))),"") ->  | O1952: =IF(N1952<>"",IF(N1952=24.25,M1952+5.25,IF(N1952=25,M1952+12.25,IF(N1952=25.75,M1952+19.25,M1952+26.25))),"") ->  | P1952: =IF(N1952<>"",IF(N1952=24.25,M1952+3.25,IF(N1952=25,M1952+10,IF(N1952=25.75,M1952+17,M1952+24))),"") ->  | Q1952: =IF(N1952<>"",IF(N1952=24.25,(0.268*M1952)+12,IF(N1952=25,(0.268*M1952)+38,IF(N1952=25.75,(0.268*M1952)+64,(0.268*M1952)+89))),"") -> 
... 39 more rows

Sheet DE108_33
A1: TabTitle | B1: =C16 -> TEMPORARY BARRIER RAIL
A2: Number of Tab Columns | B2: 8
A3: DE Starter Row Number | B3: 26
A4: TabSheet Starter Row Number | B4: 12
A5: TabSheet Header Row Count | B5: 11
A6: Top Header Cell | B6: L15
A7: Bottom Header Cell | B7: S25
A8: DESheet Row Count | B8: 0
A9: Fixed Empty Rows | B9: 2
A10: Usable Empty Rows | B10: 0
A11: Total Rows Placed | B11: 2 | C11: xlRight(1) | D11: xlRight(1) | E11: xlRight(1) | F11: xlRight(1) | G11: xlCenter | H11: xlCenter | I11: xlCenter | J11: xlLeft(1) | L11: =C11 -> xlRight(1) | M11: xlRight(1) | N11: xlRight(1) | O11: xlRight(1) | P11: xlCenter | Q11: xlCenter | R11: xlCenter | S11: xlLeft(1)
A12: Total Rows Needed | B12: =SUM(B8:B10) -> 2 | C12: General | D12: #+00.00 | E12: #+00.00 | F12: 0.0 | G12: General | H12: General | I12: General | J12: General | L12: General | M12: #+00.00 | N12: #+00.00 | O12: 0.0 | P12: General | Q12: General | R12: General | S12: General
A13: Last Tab DE Starter Row | B13: 26 | C13: =CELL("width", C13) -> 6 | D13: 16 | E13: 16 | F13: 10 | G13: 14 | H13: 14 | I13: 14 | J13: 63 | L13: =CELL("width", L13) -> 0 | M13: 0 | N13: 0 | O13: 0 | P13: 0 | Q13: 0 | R13: 0 | S13: 0
A14: Last Tab Tabsheet Starter Row | B14: 12 | C14: A | D14: B | E14: C | F14: D | G14: E | H14: F | I14: G | J14: H | L14: =LOWER(C14) -> a | M14: b | N14: c | O14: d | P14: e | Q14: f | R14: g | S14: h
A15: Last Copy Starter Row | B15: 1 | E15: Totals: | F15: =SUBTOTAL(9,F26:F6000) -> 0 | L15: 108-33 | U15: =I23 -> Anchored*
A16: Tab Loop Number | B16: 2 | C16: TEMPORARY BARRIER RAIL | L16: =B17 -> 2013-04-16 | U16: Yes
A17: Revision Date | B17: 2013-04-16 | L17: =C16 -> TEMPORARY BARRIER RAIL | U17: No
A18: Tabulation Width | B18: 2 | C18: Refer to BA-400 and BA-401
A19: Horizontal Grid Lines | B19: Yes | C19: * Not a bid item. Anchorage requirements are based on TBR locations shown in the plans. TBR alignments that vary from what is shown in the plans may result in additional TBR sections requiring anchorage. | L19: =C18 -> Refer to BA-400 and BA-401
L20: =C19 -> * Not a bid item. Anchorage requirements are based on TBR locations shown in the plans. TBR alignments that vary from what is shown in the plans may result in additional TBR sections requiring anchorage.
C22: ="This Data Entry Sheet fills Tab "&L15&" effective "&TEXT(B17,"mm-dd-yy") -> This Data Entry Sheet fills Tab 108-33 effective 04-16-13
C23: No. | D23: Station to Station | F23: Length | G23: (Select One) | I23: Anchored* | J23: Remarks | L23: =C23 -> No. | M23: =D23 -> Station to Station | O23: =F23 -> Length | P23: =G23 -> (Select One) | R23: =I23 -> Anchored* | S23: =J23 -> Remarks
G24: Steel | H24: Concrete | P24: =G24 -> Steel | Q24: =H24 -> Concrete
F25: LF | G25: BA-400 | H25: BA-401 | I25: (Y/N) | O25: =F25 -> LF | P25: =G25 -> BA-400 | Q25: =H25 -> BA-401 | R25: =I25 -> (Y/N)

Sheet DE108_34
A1: TabTitle | B1: =C16 -> CHEVRONS
A2: Number of Tab Columns | B2: 5
A3: DE Starter Row Number | B3: 25
A4: TabSheet Starter Row Number | B4: 11
A5: TabSheet Header Row Count | B5: 10
A6: Top Header Cell | B6: I15
A7: Bottom Header Cell | B7: M24
A8: DESheet Row Count | B8: 0
A9: Fixed Empty Rows | B9: 2
A10: Usable Empty Rows | B10: 0
A11: Total Rows Placed | B11: 2 | C11: xlRight(1) | D11: xlRight(1) | E11: xlRight(1) | F11: xlRight(1) | G11: xlLeft(1) | I11: =C11 -> xlRight(1) | J11: =D11 -> xlRight(1) | K11: xlRight(1) | L11: xlRight(1) | M11: xlLeft(1)
A12: Total Rows Needed | B12: =SUM(B8:B10) -> 2 | C12: #+00.00 | D12: #+00.00 | E12: 0 | F12: 0.0 | G12: General | I12: =C12 -> #+00.00 | J12: #+00.00 | K12: 0 | L12: 0.0 | M12: General
A13: Last Tab DE Starter Row | B13: 25 | C13: =CELL("width", C13) -> 16 | D13: =CELL("width", D13) -> 16 | E13: =CELL("width", E13) -> 11 | F13: =CELL("width", F13) -> 11 | G13: =CELL("width", G13) -> 21 | I13: =CELL("width", I13) -> 0 | J13: =CELL("width", J13) -> 0 | K13: =CELL("width", K13) -> 0 | L13: =CELL("width", L13) -> 0 | M13: =CELL("width", M13) -> 0
A14: Last Tab Tabsheet Starter Row | B14: 11 | C14: A | D14: B | E14: C | F14: D | G14: E | I14: =LOWER(C14) -> a | J14: =LOWER(D14) -> b | K14: =LOWER(E14) -> c | L14: =LOWER(F14) -> d | M14: =LOWER(G14) -> e
A15: Last Copy Starter Row | B15: 1 | D15: Totals: | E15: =SUBTOTAL(9,E23:E6000) -> 0 | I15: 108-34
A16: Tab Loop Number | B16: 2 | C16: CHEVRONS | I16: =B17 -> 2010-10-19
A17: Revision Date | B17: 2010-10-19 | I17: =C16 -> CHEVRONS
A18: Tabulation Width | B18: 1 | C18: Refer to Standard Road Plan SI-175
A19: Horizontal Grid Lines | B19: Yes | C19: ="This Data Entry Sheet fills Tab "&I15&" effective "&TEXT(B17,"mm-dd-yy") -> This Data Entry Sheet fills Tab 108-34 effective 10-19-10 | I19: =C18 -> Refer to Standard Road Plan SI-175
C20: Station to Station | E20: Guidance Marker - Chevron | G20: Remarks | I20: =C20 -> Station to Station | K20: =E20 -> Guidance Marker - Chevron | M20: =G20 -> Remarks
E24: EACH | F24: FT | K24: =E24 -> EACH | L24: =F24 -> FT

Sheet 108_22

Sheet 108_22T

Sheet 108_22R

Sheet 108_29

Sheet 108_30

Sheet 108_33

Sheet 108_34

Sheet Index
A1: 100-0A | B1: 1997-10-28 | C1: 4.5.4 | D1: ADAIR | F1: Live English File Path | G1: Z:\IADOTE\v8i\RoadDesignDetails\ExcelTabs\ | I1: Brian R. Smith | J1: bsmith2 | K1: Methods | L1: ROADWAY DESIGN
A2: 100-1A | B2: 1997-07-15 | C2: 03/30/15 | D2: ADAMS | F2: Live Metric File Path | G2: Z:\IADOTE\v8i\RoadDesignDetails\ExcelTabs\MetricTabs\ | I2: Khyle B. Clute | J2: kclute | K2: Methods | L2: ROADWAY DESIGN
A3: 100-1C | B3: 2012-04-17 | C3: C | D3: ALLAMAKEE | F3: Index File Path | G3: Z:\IADOTE\v8i\RoadDesignDetails\PDFsandWebFiles\Indexes\ | I3: Thomas M. Hamski | J3: thamski | K3: Methods | L3: ROADWAY DESIGN
A4: 100-1D | B4: 2005-10-18 | D4: APPANOOSE | F4: Index File Name | G4: TNT_EnglishIndexes.xlsx | I4: Wesley L. Mayberry | J4: wmayber | K4: Methods | L4: ROADWAY DESIGN
A5: 100-4A | B5: 2002-10-29 | D5: AUDUBON | F5: Last Revision English File Path | G5: Z:\IADOTE\v8i\RoadDesignDetails\Old_Details\ExcelTabs\ | I5: John M. Narigon | J5: jnarigo | K5: Methods | L5: ROADWAY DESIGN
A6: 100-7 | B6: 2012-10-16 | D6: BENTON | F6: Last Revision Metric File Path | G6: Z:\IADOTE\v8i\RoadDesignDetails\Old_Details\ExcelTabs\MetricTabs\ | I6: Christopher Poole | J6: cpoole | K6: Methods | L6: ROADWAY DESIGN
A7: 100-10 | B7: 2011-10-18 | D7: BLACK HAWK | F7: Seed Path | G7: Z:\IADOTE\v8i\CADD\SpreadSheets\ExcelTabulations.xltm | I7: Daniel J. Harness | J7: dharnes | K7: Methods | L7: ROADWAY DESIGN
A8: 100-11 | B8: 2008-08-01 | D8: BOONE | F8: VersionCheck Path | G8: Z:\IADOTE\v8i\CADD\SpreadSheets\ExcelTabulations.xlsm | I8: R.D. Skogerboe | J8: dskoger | K8: Road1 | L8: ROADWAY DESIGN
A9: 100-12 | B9: 2008-08-01 | D9: BREMER | F9: Standard Road Plan Path | G9: Z:\IADOTE\v8i\RoadDesignDetails\Indexes\SRP_EnglishIndex.xls | I9: Jason R. Strum | J9: jstrum | K9: Road1 | L9: ROADWAY DESIGN
A10: 100-12A | B10: 2008-08-01 | D10: BUCHANAN | F10: Last Revision Standard Road Plan Path | G10: Z:\IADOTE\v8i\RoadDesignDetails\Indexes\Old_Indexes\SRP_EnglishIndex.xls | I10: Robert A. Schoenrock | J10: rschoen | K10: Road1 | L10: ROADWAY DESIGN
A11: 100-13 | B11: 2010-04-20 | D11: BUENA VISTA | F11: AddIn Path | G11: Z:\IADOTE\v8i\HDR\seed_files\SpreadSheets\ExcelTabulations.xlam | I11: Stacy M. Ryan | J11: sryan | K11: Road1 | L11: ROADWAY DESIGN
A12: 100-14 | B12: 2010-04-20 | D12: BUTLER | F12: Old Files Path | G12: Z:\IADOTE\v8i\RoadDesignDetails\Old_Details\ExcelTabs\ | I12: Nathan A. Thede | J12: nthede | K12: Road1 | L12: ROADWAY DESIGN
A13: 100-15 | B13: 2010-04-20 | D13: CALHOUN | I13: Yanxiao Jia | J13: yjia | K13: Road2 | L13: ROADWAY DESIGN
A14: 100-16 | B14: 2010-10-19 | D14: CARROLL | I14: Ryan R. Miller | J14: rmille3 | K14: Road2 | L14: ROADWAY DESIGN
A15: 100-17 | B15: 2010-04-20 | D15: CASS | I15: Jason M. Holst | J15: jholst | K15: Road2 | L15: ROADWAY DESIGN
A16: 100-18 | B16: 2010-04-20 | D16: CEDAR | I16: Dustin T. Skogerboe | J16: dskoge2 | K16: Road2 | L16: ROADWAY DESIGN
A17: 100-19 | B17: 2012-10-16 | D17: CERRO GORDO | I17: Dung T. Ta | J17: dta | K17: Road2 | L17: ROADWAY DESIGN
A18: 100-20 | B18: 2008-08-01 | D18: CHEROKEE | I18: Paul W. Flattery | J18: pflatte | K18: Road3 | L18: ROADWAY DESIGN
A19: 100-21 | B19: 2008-08-01 | D19: CHICKASAW | I19: Kelly C. Bell | J19: kbell | K19: Road3 | L19: ROADWAY DESIGN
A20: 100-22 | B20: 2008-08-01 | D20: CLARKE | I20: Angela K. Johnson | J20: ajohns1 | K20: Road3 | L20: ROADWAY DESIGN
A21: 100-23 | B21: 2010-10-19 | D21: CLAY | I21: Elijah D. Gansen | J21: egansen | K21: Road3 | L21: ROADWAY DESIGN
A22: 100-24 | B22: 2013-04-16 | D22: CLAYTON | I22: James R. Schoenrock | J22: jschoen | K22: Consultant | L22: ROADWAY DESIGN
A23: 100-26 | B23: 2008-08-01 | D23: CLINTON | I23: Randall E. Schlei | J23: rschlie | K23: Consultant | L23: ROADWAY DESIGN
A24: 100-27 | B24: 2009-10-20 | D24: CRAWFORD | I24: Mark D. Mastellar | J24: mmastel | K24: Roadside | L24: ROADWAY DESIGN
A25: 100-28 | B25: 2010-10-19 | D25: DALLAS | I25: Robert L. Stanley | J25: rstanle | K25: Soils | L25: GEOTECHNICAL DESIGN
A26: 101-4 | B26: 2002-04-30 | D26: DAVIS | I26: Stephen J. Megivern | J26: smegive | K26: Soils | L26: GEOTECHNICAL DESIGN
A27: 101-5 | B27: 2002-04-30 | D27: DECATUR | I27: Mark A. Dell | J27: mdell | K27: Soils | L27: GEOTECHNICAL DESIGN
A28: 101-6 | B28: 2002-04-30 | D28: DELAWARE | I28: David R. Claman | J28: dclaman | K28: Bridge | L28: HYDRAULIC DESIGN
A29: 101-7 | B29: 2002-04-30 | D29: DES MOINES | I29: Zachary K. Abrams | J29: zabrams | K29: TrafficAndSafety | L29: ROADWAY DESIGN
A30: 101-8 | B30: 2013-04-16 | D30: DICKINSON
A31: 101-13 | B31: 2004-04-20 | D31: DUBUQUE
A32: 101-16 | B32: 2009-10-20 | D32: EMMET
A33: 101-17 | B33: 2011-04-19 | D33: FAYETTE
A34: 101-18 | B34: 2011-04-19 | D34: FLOYD
A35: 102-3 | B35: 2013-04-16 | D35: FRANKLIN
A36: 102-4 | B36: 2011-10-18 | D36: FREMONT
A37: 102-5 | B37: 2012-10-16 | D37: GREENE
A38: 102-5A | B38: 2008-08-01 | D38: GRUNDY
A39: 102-6C | B39: 2011-10-18 | D39: GUTHRIE
A40: 102-10 | B40: 2008-08-01 | D40: HAMILTON
A41: 102-11 | B41: 2008-08-01 | D41: HANCOCK
A42: 102-12 | B42: 2008-08-01 | D42: HARDIN
A43: 102-14 | B43: 2012-04-17 | D43: HARRISON
A44: 102-15 | B44: 2008-08-01 | D44: HENRY
A45: 103-1 | B45: 2010-10-19 | D45: HOWARD
A46: 103-3 | B46: 2012-10-16 | D46: HUMBOLDT
A47: 103-4 | B47: 2011-04-19 | D47: IDA
A48: 103-5 | B48: 2008-08-01 | D48: IOWA
A49: 103-6 | B49: 2011-04-19 | D49: JACKSON
A50: 103-7 | B50: 2008-08-01 | D50: JASPER
A51: 104-3 | B51: 2012-10-16 | D51: JEFFERSON
A52: 104-4 | B52: 2009-10-20 | D52: JOHNSON
A53: 104-5A | B53: 2011-10-18 | D53: JONES
A54: 104-5B | B54: 2011-10-18 | D54: KEOKUK
A55: 104-5C | B55: 2012-04-17 | D55: KOSSUTH
A56: 104-8 | B56: 2008-08-01 | D56: LEE
A57: 104-8A | B57: 2010-04-20 | D57: LINN
A58: 104-9 | B58: 2012-04-17 | D58: LOUISA
A59: 104-10 | B59: 2008-08-01 | D59: LUCAS
A60: 104-11 | B60: 2008-08-01 | D60: LYON
A61: 104-12 | B61: 2012-10-16 | D61: MADISON
A62: 104-13 | B62: 2013-04-16 | D62: MAHASKA
A63: 105-1 | B63: 1994-09-27 | D63: MARION
A64: 105-3 | B64: 2005-10-18 | D64: MARSHALL
A65: 105-4 | B65: 2011-10-18 | D65: MILLS
A66: 106-1 | B66: 2008-08-01 | D66: MITCHELL
A67: 106-2 | B67: 2008-08-01 | D67: MONONA
A68: 106-3 | B68: 2008-08-01 | D68: MONROE
A69: 106-4 | B69: 2013-04-16 | D69: MONTGOMERY
A70: 106-5 | B70: 2008-08-01 | D70: MUSCATINE
A71: 106-7 | B71: 2008-08-01 | D71: O'BRIEN
A72: 106-8 | B72: 2011-04-19 | D72: OSCEOLA
A73: 107-7 | B73: 2008-08-01 | D73: PAGE
A74: 107-22 | B74: 2013-04-16 | D74: PALO ALTO
A75: 107-23 | B75: 2011-10-18 | D75: PLYMOUTH
A76: 107-24 | B76: 2008-08-01 | D76: POCAHONTAS
A77: 107-25 | B77: 2008-08-01 | D77: POLK
A78: 107-29 | B78: 2012-04-17 | D78: POTTAWATTAMIE
A79: 107-30 | B79: 2012-04-17 | D79: POWESHIEK
A80: 107-31 | B80: 2011-04-19 | D80: RINGGOLD
A81: 108-1 | B81: 2008-08-01 | D81: SAC
A82: 108-2 | B82: 2008-08-01 | D82: SCOTT
A83: 108-2A | B83: 2008-08-01 | D83: SHELBY
A84: 108-8A | B84: 2010-10-19 | D84: SIOUX
A85: 108-8B | B85: 2011-10-18 | D85: STORY
A86: 108-8C | B86: 2011-10-18 | D86: TAMA
A87: 108-8D | B87: 2010-10-19 | D87: TAYLOR
A88: 108-9A | B88: 2010-04-20 | D88: UNION
A89: 108-11A | B89: 2008-08-01 | D89: VAN BUREN
A90: 108-12 | B90: 2008-08-01 | D90: WAPELLO
A91: 108-13A | B91: 2008-08-01 | D91: WARREN
A92: 108-15 | B92: 2008-08-01 | D92: WASHINGTON
A93: 108-16 | B93: 2010-10-19 | D93: WAYNE
A94: 108-18 | B94: 2011-10-18 | D94: WEBSTER
A95: 108-18B | B95: 2012-10-16 | D95: WINNEBAGO
A96: 108-22 | B96: 2013-04-16 | D96: WINNESHIEK
A97: 108-23A | B97: 2008-08-01 | D97: WOODBURY
A98: 108-24 | B98: 2011-04-19 | D98: WORTH
A99: 108-26A | B99: 2008-08-01 | D99: WRIGHT
A100: 108-27 | B100: 2012-10-16
A101: 108-28 | B101: 2008-08-01
A102: 108-29 | B102: 2012-10-16
A103: 108-30 | B103: 2013-04-16
A104: 108-33 | B104: 2013-04-16
A105: 108-34 | B105: 2010-10-19
A106: 108-35 | B106: 2012-04-17
A107: 110-1 | B107: 2013-04-16
A108: 110-2 | B108: 2013-04-16
A109: 110-3 | B109: 2008-08-01
A110: 110-4 | B110: 2008-08-01
A111: 110-5 | B111: 2008-08-01
A112: 110-6 | B112: 2008-08-01
A113: 110-7A | B113: 2012-04-17
A114: 110-7B | B114: 2010-10-19
A115: 110-8 | B115: 2008-08-01
A116: 110-9 | B116: 2011-10-18
A117: 110-10 | B117: 2008-08-01
A118: 110-11 | B118: 2008-08-01
A119: 110-12A | B119: 2013-04-16
A120: 110-13 | B120: 2010-04-20
A121: 110-14 | B121: 2013-04-16
A122: 110-15 | B122: 2013-04-16
A123: 110-16 | B123: 2013-04-16
A124: 111-1 | B124: 2012-04-17
A125: 111-2 | B125: 1989-02-28
A126: 111-23 | B126: 2002-10-29
A127: 111-25 | B127: 2011-10-18
A128: 112-3 | B128: 2013-04-16
A129: 112-5 | B129: 2008-08-01
A130: 112-6 | B130: 2013-04-16
A131: 112-7 | B131: 2010-10-19
A132: 112-8 | B132: 2012-10-16
A133: 112-9 | B133: 2012-04-17
A134: 112-10 | B134: 2011-04-19
A135: 113-1 | B135: 2013-04-16
A136: 113-2 | B136: 2013-04-16
A137: 113-3 | B137: 2011-10-18
A138: 113-10 | B138: 2012-10-16
A139: 213-2 | B139: 2011-10-18
A140: 213-3 | B140: 2011-10-18
A141: 231-1 | B141: 2011-10-18
A142: 231-2 | B142: 2012-10-16
A143: 232-3A | B143: 2012-10-16
A144: 232-3B | B144: 2012-10-16
A145: 232-3C | B145: 2012-10-16
A146: 232-3D | B146: 2012-10-16
A147: 232-4 | B147: 2011-10-18
A148: 232-6 | B148: 2011-10-18
A149: 232-7 | B149: 2012-10-16
A150: 232-9 | B150: 2011-10-18
A151: 232-11 | B151: 2012-10-16
A152: 241-5 | B152: 2011-10-18
A153: 252-1 | B153: 2012-10-16
A154: 253-1 | B154: 2011-10-18
A155: 254-1 | B155: 2001-10-02
A156: 262-3 | B156: 2012-10-16
A157: 262-4 | B157: 2013-04-16
A158: 262-5 | B158: 2005-10-18
A159: 262-6 | B159: 2005-10-18
A160: 263-1 | B160: 2011-10-18
A161: 271-1 | B161: 2011-10-18
A162: 271-2 | B162: 1985-08-20
A163: 271-4 | B163: 2011-10-18
A164: 271-9 | B164: 1994-09-27
